Workbook

Sheet Instructions
B1: SYC Predicted Log Race Scoring Spreadsheet
B2: © 2012-2013 Steve Hazlerig
B3: Email: steve@hazlerig.com
B5: This spreadsheet is used by yacht clubs to score Predicted Log Race (Cruiser Navigation) contests.
B7: Instructions
B9: 1) In general, enter data only in the cells and sheets that are highlighted in Yellow. All of the Green sheets are calculated from data entered in the Yellow sheets.
B10: 2) Start by entering contest-specific information into the "Contest Entry" sheet.
C11: a) If the spreadsheet still has a previous contest in it, click "Reset Entire Spreadsheet for New Contest" to clear out the previous contest data.
C12: b) Enter the contest data into the appropriate cells: Club Name, Contest Name, Date, Official Mileage, Number of Contestants Expected (if known).
C13: c) Enter the Number of Control Points, Number of Classes, and Team Size for your contest.
C14: d) Edit the "Class Table" Speeds and Finish Times for your contest
C15: e) If there is a Club Logo above the "Print All Results" button, drag it out of the way. Then drag your Club's Logo into the "Logo" box so it will appear on each sheet.
B16: 3) Before the contest, enter all contestant registration information into the "Log Entry" sheet.
C17: a) As you receive registration information, you can start to pre-enter contestants in the top section of this sheet.
C18: b) Start by typing the contestant's IPBA Number or boat name in the row provided. If the contestant is found in the "Contestants" sheet, then the rest of the information will be pre-filled.
C19: c) If you need to change any of the information associated with the contestant, change it in the "Log Entry" sheet and it will be updated into the "Contestants" sheet.
C20: d) If the contestant is not found by IPBA Number or boat name, then type in the contestant information in the "Log Entry" sheet and it will be added to the "Contestants" sheet.
C21: e) If the contestant does not have an IPBA Number, then either have one assigned or make up an unused number. IPBA Numbers must be unique.
C22: f) While entering contestants, you can always go to the first empty column (to enter the next contestant) by typing "Control-N"
C23: g) Observers can be pre-assigned and entered into the appropriate row in the "Log Entry" sheet.
C24: h) New Yacht Club names should be entered in the "Yacht Clubs" sheet. These are only used for printing the "optional" Certificates.
B25: 4) On the morning of the contest, as Predicted Logs are received, enter the Distances and Predicted Times in the appropriate rows of the "Log Entry" sheet.
C26: a) To assist with finding a contestant, type "Control-G" on the keyboard. A box will come up with a list of all contestants by boat name. Choose the contestant and click OK.
C27: b) Errors in the contestant data will be highlighted in red.
C28: c) After entering the Predicted Log, you can (optionally) click the Print button in the contestant's column to print a "Cross-Check Log" to give to the contestant.
C29: d) After entering each Predicted Log, check the "Total Predicted Seconds" and the "Total Predicted Mileage" against the Log for errors.
C30: e) As Predicted Logs are entered, the "Start Times" sheet will be updated in real time and can be printed out manually as needed, or displayed with a projector.
C31: f) As you enter logs, the "Predicted Logs Entered" cell in the "Contest Entry" sheet will update. It will highlight Red until all Predicted Logs are entered.
C32: g) If you need to delete a contestant for any reason, select their IPBA Number, hit Backspace to delete it, and then hit Enter. This is currently the only correct way.
C33: h) After all Predicted Logs are entered, click the "Print All Start Times" button on the "Contest Entry" sheet to print Start Times for all contestants.
B34: 5) After the contest, as Contest Logs are received, enter the Actual Times and Times Outs (if any) in the appropriate rows of the "Log Entry" sheet.
C35: a) To assist with finding a contestant, type "Control-G" on the keyboard. A box will come up with a list of all contestants by boat name. Choose the contestant and click OK.
C36: b) After entering each Contest Log, check the "Total Seconds of Error" against the Log for errors.
C37: c) As Contest Logs are entered, the green sheets (Overall Results, Class Results, etc.) will be updated in real time.
C38: d) As you enter logs, the "Contest Logs Entered" cell in the "Contest Entry" sheet will update. It will highlight Red until all Actual Logs are entered.
C39: e) After all Contest Logs are entered, click the "Print All Results" button on the "Contest Entry" sheet to print all results documents
C40: f) If you wish to print Certificates for 2nd and 3rd in each Class, click on the "Certificates" sheet and use Excel's Print command.
B41: 6) Be sure to save your work often, and make backup copies as needed to avoid losing information.
B42: 7) After the contest, if you have added contestants or changed contestant information (such as Navigator, Boat Name, Speed, or Class), or added Yacht Club names,
C43: please email a copy of this spreadsheet to steve@hazlerig.com, so that the new contestant and club information will be carried forward to the next contest.
B44: 8) Please send any feedback or bug reports directly to me at steve@hazlerig.com.

Sheet Contest Entry
A1: Club Name: | B1: SYC
A2: Contest Name: | B2: Stimson
A3: Contest Date: | B3: 2018-09-15
A4: Official Mileage: | B4: 14
A5: Contestants Expected: | B5: 9 | F5: (1-48)
A6: Contestants Entered: | B6: =COUNTA(IPBA_Numbers) -> 9
A7: Predicted Logs Entered: | B7: =COUNT(Predicted_Start_Times) -> 9
A8: Contest Logs Entered: | B8: =COUNT(Actual_Start_Times) -> 9
A9: Number of Novices: | B9: =COUNT(Novice_Rank) -> 1 | C9: =COUNT('Log Entry'!79:79)+ROW() -> 15 | D9: =COUNT('Log Entry'!79:79)+ROW() -> 15 | E9: =COUNT('Log Entry'!79:79)+ROW() -> 15
A10: Number of Control Points: | B10: 4 | F10: (1 - 8)
A11: Number of Classes: | B11: 5 | F11: (3 - 5)
A12: Team Size: | B12: 3 | F12: (2 - 5)
A13: Use Handicap? | B13: Yes
A15: Class Table | B15: Speed > | C15: Speed <= | D15: Finish Min | E15: Finish Max
A16: Class 1: | B16: below | C16: 8 | D16: 1450 | E16: 1500
A17: Class 2: | B17: =C16 -> 8 | C17: 8.5 | D17: 1505 | E17: 1515
A18: Class 3: | B18: =C17 -> 8.5 | C18: 9 | D18: 1520 | E18: 1530
A19: Class 4: | B19: 9 | C19: 9.5 | D19: 1535 | E19: 1545
A20: Class 5: | B20: 9.5 | C20: above | D20: 1550 | E20: 1600
A22: Class Divisor: | B22: =(B8-3)/B11 -> 1.2 | F22: ( <= 9.0 )
I26: Logo
I32: FALSE

Sheet Log Entry
A1: IPBA Number | C1: 165 | E1: 689 | F1: 7 | G1: 694 | H1: 677 | I1: 120 | J1: 663 | K1: 533 | L1: 1100
A2: Contestant Name | C2: Brent Reys | E2: Clint Chapin | F2: Jim Korzetz | G2: Jim VanAntwerp | H2: Ken Case | I2: Mike Henry | J2: Larry O'Keefe | K2: Team Klett/Elbon/Cullen | L2: Dan DeGard | AY2: =IFERROR(VLOOKUP(AY$1,Contestants!$A:$H,ROW(),FALSE),"") ->  | AZ2: =IFERROR(VLOOKUP(AZ$1,Contestants!$A:$H,ROW(),FALSE),"") ->  | BA2: =IFERROR(VLOOKUP(BA$1,Contestants!$A:$H,ROW(),FALSE),"") ->  | BB2: =IFERROR(VLOOKUP(BB$1,Contestants!$A:$H,ROW(),FALSE),"") ->  | BC2: =IFERROR(VLOOKUP(BC$1,Contestants!$A:$H,ROW(),FALSE),"") ->  | BD2: =IFERROR(VLOOKUP(BD$1,Contestants!$A:$H,ROW(),FALSE),"") ->  | BE2: =IFERROR(VLOOKUP(BE$1,Contestants!$A:$H,ROW(),FALSE),"") ->  | BF2: =IFERROR(VLOOKUP(BF$1,Contestants!$A:$H,ROW(),FALSE),"") ->  | BG2: =IFERROR(VLOOKUP(BG$1,Contestants!$A:$H,ROW(),FALSE),"") ->  | BH2: =IFERROR(VLOOKUP(BH$1,Contestants!$A:$H,ROW(),FALSE),"") ->  | BI2: =IFERROR(VLOOKUP(BI$1,Contestants!$A:$H,ROW(),FALSE),"") ->  | BJ2: =IFERROR(VLOOKUP(BJ$1,Contestants!$A:$H,ROW(),FALSE),"") -> 
A3: Navigator Name(s) | C3: Alex Lorenz | E3: Lynn Hvalsoe | F3: Dick Timmerman | G3: OJ Potter | H3: Debbie Case | I3: Billie Henry | J3: Ted Burns | K3: Elbon/Klett | L3: JJ Johnson | AY3: =IFERROR(VLOOKUP(AY$1,Contestants!$A:$H,ROW(),FALSE),"") ->  | AZ3: =IFERROR(VLOOKUP(AZ$1,Contestants!$A:$H,ROW(),FALSE),"") ->  | BA3: =IFERROR(VLOOKUP(BA$1,Contestants!$A:$H,ROW(),FALSE),"") ->  | BB3: =IFERROR(VLOOKUP(BB$1,Contestants!$A:$H,ROW(),FALSE),"") ->  | BC3: =IFERROR(VLOOKUP(BC$1,Contestants!$A:$H,ROW(),FALSE),"") ->  | BD3: =IFERROR(VLOOKUP(BD$1,Contestants!$A:$H,ROW(),FALSE),"") ->  | BE3: =IFERROR(VLOOKUP(BE$1,Contestants!$A:$H,ROW(),FALSE),"") ->  | BF3: =IFERROR(VLOOKUP(BF$1,Contestants!$A:$H,ROW(),FALSE),"") ->  | BG3: =IFERROR(VLOOKUP(BG$1,Contestants!$A:$H,ROW(),FALSE),"") ->  | BH3: =IFERROR(VLOOKUP(BH$1,Contestants!$A:$H,ROW(),FALSE),"") ->  | BI3: =IFERROR(VLOOKUP(BI$1,Contestants!$A:$H,ROW(),FALSE),"") ->  | BJ3: =IFERROR(VLOOKUP(BJ$1,Contestants!$A:$H,ROW(),FALSE),"") -> 
A4: Boat Name | C4: PANACHE | E4: SOJOURN | F4: FREEDOM | G4: SARAH B | H4: RAZZLE | I4: PEACHY KEEN | J4: MISS MIRANDA | K4: KLETTITAT | L4: SAGA | AY4: =IFERROR(UPPER(VLOOKUP(AY$1,Contestants!$A:$H,ROW(),FALSE)),"") ->  | AZ4: =IFERROR(UPPER(VLOOKUP(AZ$1,Contestants!$A:$H,ROW(),FALSE)),"") ->  | BA4: =IFERROR(UPPER(VLOOKUP(BA$1,Contestants!$A:$H,ROW(),FALSE)),"") ->  | BB4: =IFERROR(UPPER(VLOOKUP(BB$1,Contestants!$A:$H,ROW(),FALSE)),"") ->  | BC4: =IFERROR(UPPER(VLOOKUP(BC$1,Contestants!$A:$H,ROW(),FALSE)),"") ->  | BD4: =IFERROR(UPPER(VLOOKUP(BD$1,Contestants!$A:$H,ROW(),FALSE)),"") ->  | BE4: =IFERROR(UPPER(VLOOKUP(BE$1,Contestants!$A:$H,ROW(),FALSE)),"") ->  | BF4: =IFERROR(UPPER(VLOOKUP(BF$1,Contestants!$A:$H,ROW(),FALSE)),"") ->  | BG4: =IFERROR(UPPER(VLOOKUP(BG$1,Contestants!$A:$H,ROW(),FALSE)),"") ->  | BH4: =IFERROR(UPPER(VLOOKUP(BH$1,Contestants!$A:$H,ROW(),FALSE)),"") ->  | BI4: =IFERROR(UPPER(VLOOKUP(BI$1,Contestants!$A:$H,ROW(),FALSE)),"") ->  | BJ4: =IFERROR(UPPER(VLOOKUP(BJ$1,Contestants!$A:$H,ROW(),FALSE)),"") -> 
A5: Yacht Club | C5: SYC | E5: MBYC | F5: PYC | G5: BYC | H5: SYC | I5: BYC | J5: SYC | K5: QCYC | L5: BYC | AY5: =IFERROR(VLOOKUP(AY$1,Contestants!$A:$H,ROW(),FALSE),"") ->  | AZ5: =IFERROR(VLOOKUP(AZ$1,Contestants!$A:$H,ROW(),FALSE),"") ->  | BA5: =IFERROR(VLOOKUP(BA$1,Contestants!$A:$H,ROW(),FALSE),"") ->  | BB5: =IFERROR(VLOOKUP(BB$1,Contestants!$A:$H,ROW(),FALSE),"") ->  | BC5: =IFERROR(VLOOKUP(BC$1,Contestants!$A:$H,ROW(),FALSE),"") ->  | BD5: =IFERROR(VLOOKUP(BD$1,Contestants!$A:$H,ROW(),FALSE),"") ->  | BE5: =IFERROR(VLOOKUP(BE$1,Contestants!$A:$H,ROW(),FALSE),"") ->  | BF5: =IFERROR(VLOOKUP(BF$1,Contestants!$A:$H,ROW(),FALSE),"") ->  | BG5: =IFERROR(VLOOKUP(BG$1,Contestants!$A:$H,ROW(),FALSE),"") ->  | BH5: =IFERROR(VLOOKUP(BH$1,Contestants!$A:$H,ROW(),FALSE),"") ->  | BI5: =IFERROR(VLOOKUP(BI$1,Contestants!$A:$H,ROW(),FALSE),"") ->  | BJ5: =IFERROR(VLOOKUP(BJ$1,Contestants!$A:$H,ROW(),FALSE),"") -> 
A6: Cruise Speed | C6: 9.474 | E6: 7.3 | F6: 8.39 | G6: 7 | H6: 9.89 | I6: 8.175 | J6: 8.592 | K6: 9.61 | L6: 8 | AY6: =IFERROR(VLOOKUP(AY$1,Contestants!$A:$H,ROW(),FALSE),"") ->  | AZ6: =IFERROR(VLOOKUP(AZ$1,Contestants!$A:$H,ROW(),FALSE),"") ->  | BA6: =IFERROR(VLOOKUP(BA$1,Contestants!$A:$H,ROW(),FALSE),"") ->  | BB6: =IFERROR(VLOOKUP(BB$1,Contestants!$A:$H,ROW(),FALSE),"") ->  | BC6: =IFERROR(VLOOKUP(BC$1,Contestants!$A:$H,ROW(),FALSE),"") ->  | BD6: =IFERROR(VLOOKUP(BD$1,Contestants!$A:$H,ROW(),FALSE),"") ->  | BE6: =IFERROR(VLOOKUP(BE$1,Contestants!$A:$H,ROW(),FALSE),"") ->  | BF6: =IFERROR(VLOOKUP(BF$1,Contestants!$A:$H,ROW(),FALSE),"") ->  | BG6: =IFERROR(VLOOKUP(BG$1,Contestants!$A:$H,ROW(),FALSE),"") ->  | BH6: =IFERROR(VLOOKUP(BH$1,Contestants!$A:$H,ROW(),FALSE),"") ->  | BI6: =IFERROR(VLOOKUP(BI$1,Contestants!$A:$H,ROW(),FALSE),"") ->  | BJ6: =IFERROR(VLOOKUP(BJ$1,Contestants!$A:$H,ROW(),FALSE),"") -> 
A7: Slow Speed | C7: 6.923 | D7: 7 | E7: 7 | F7: 7 | H7: 7 | I7: 7 | AY7: =IFERROR(VLOOKUP(AY$1,Contestants!$A:$H,ROW(),FALSE),"") ->  | AZ7: =IFERROR(VLOOKUP(AZ$1,Contestants!$A:$H,ROW(),FALSE),"") ->  | BA7: =IFERROR(VLOOKUP(BA$1,Contestants!$A:$H,ROW(),FALSE),"") ->  | BB7: =IFERROR(VLOOKUP(BB$1,Contestants!$A:$H,ROW(),FALSE),"") ->  | BC7: =IFERROR(VLOOKUP(BC$1,Contestants!$A:$H,ROW(),FALSE),"") ->  | BD7: =IFERROR(VLOOKUP(BD$1,Contestants!$A:$H,ROW(),FALSE),"") ->  | BE7: =IFERROR(VLOOKUP(BE$1,Contestants!$A:$H,ROW(),FALSE),"") ->  | BF7: =IFERROR(VLOOKUP(BF$1,Contestants!$A:$H,ROW(),FALSE),"") ->  | BG7: =IFERROR(VLOOKUP(BG$1,Contestants!$A:$H,ROW(),FALSE),"") ->  | BH7: =IFERROR(VLOOKUP(BH$1,Contestants!$A:$H,ROW(),FALSE),"") ->  | BI7: =IFERROR(VLOOKUP(BI$1,Contestants!$A:$H,ROW(),FALSE),"") ->  | BJ7: =IFERROR(VLOOKUP(BJ$1,Contestants!$A:$H,ROW(),FALSE),"") -> 
A8: Finish Class | C8: 4 | E8: 1 | F8: 2 | G8: 1 | H8: 5 | I8: 2 | J8: 3 | K8: 5 | L8: 1 | AY8: =IFERROR(VLOOKUP(AY$1,Contestants!$A:$H,ROW(),FALSE),"") ->  | AZ8: =IFERROR(VLOOKUP(AZ$1,Contestants!$A:$H,ROW(),FALSE),"") ->  | BA8: =IFERROR(VLOOKUP(BA$1,Contestants!$A:$H,ROW(),FALSE),"") ->  | BB8: =IFERROR(VLOOKUP(BB$1,Contestants!$A:$H,ROW(),FALSE),"") ->  | BC8: =IFERROR(VLOOKUP(BC$1,Contestants!$A:$H,ROW(),FALSE),"") ->  | BD8: =IFERROR(VLOOKUP(BD$1,Contestants!$A:$H,ROW(),FALSE),"") ->  | BE8: =IFERROR(VLOOKUP(BE$1,Contestants!$A:$H,ROW(),FALSE),"") ->  | BF8: =IFERROR(VLOOKUP(BF$1,Contestants!$A:$H,ROW(),FALSE),"") ->  | BG8: =IFERROR(VLOOKUP(BG$1,Contestants!$A:$H,ROW(),FALSE),"") ->  | BH8: =IFERROR(VLOOKUP(BH$1,Contestants!$A:$H,ROW(),FALSE),"") ->  | BI8: =IFERROR(VLOOKUP(BI$1,Contestants!$A:$H,ROW(),FALSE),"") ->  | BJ8: =IFERROR(VLOOKUP(BJ$1,Contestants!$A:$H,ROW(),FALSE),"") -> 
A9: Observer
A10: Racing Less Than 3 Years
A11: Novice | L11: Yes
A12: Print This Contestant
A13: Distances | B13: CP1 | C13: 3.74 | E13: 3.773 | F13: 3.791 | G13: 3.97 | H13: 3.708 | I13: 3.77 | J13: 3.732 | K13: 3.705 | L13: 3.92
B14: CP2 | C14: 2.958 | E14: 2.961 | F14: 2.924 | G14: 2.98 | H14: 2.963 | I14: 2.9 | J14: 2.96 | K14: 2.979 | L14: 2.91
B15: CP3 | C15: 3.948 | E15: 4.084 | F15: 3.991 | G15: 4.07 | H15: 3.949 | I15: 4.06 | J15: 3.926 | K15: 3.908 | L15: 3.93
B16: CP4 | C16: 2.977 | E16: 2.957 | F16: 3.044 | G16: 2.98 | H16: 2.993 | I16: 2.98 | J16: 2.998 | K16: 2.99 | L16: 2.93
B17: CP5
B18: CP6
B19: CP7
B20: CP8
A21: Total Predicted Mileage | C21: =SUM(C13:C20) -> 13.623 | D21: =SUM(D13:D20) -> 0 | E21: 13.775 | F21: 13.75 | G21: 14 | H21: 13.613 | I21: 13.71 | J21: 13.616 | K21: 13.582 | L21: =SUM(L13:L20) -> 13.69 | M21: 0 | N21: =SUM(N13:N20) -> 0 | O21: 0 | P21: 0 | Q21: 0 | R21: 0 | S21: 0 | T21: 0 | U21: 0 | V21: 0 | W21: 0 | X21: 0 | Y21: 0 | Z21: 0 | AA21: 0 | AB21: 0 | AC21: 0 | AD21: 0 | AE21: 0 | AF21: 0 | AG21: 0 | AH21: 0 | AI21: 0 | AJ21: 0 | AK21: 0 | AL21: 0 | AM21: 0 | AN21: 0 | AO21: 0 | AP21: 0 | AQ21: 0 | AR21: 0 | AS21: 0 | AT21: 0 | AU21: 0 | AV21: 0 | AW21: 0 | AX21: 0 | AY21: 0 | AZ21: 0 | BA21: 0 | BB21: 0 | BC21: 0 | BD21: 0 | BE21: 0 | BF21: 0 | BG21: =SUM(BG13:BG20) -> 0 | BH21: 0 | BI21: 0 | BJ21: 0
A22: Predicted Start Time | C22: 140748 | E22: 123238 | F22: 131939 | G22: 124516 | H22: 142120 | I22: 131621 | J22: 134614 | K22: 141816 | L22: 130732
A23: Predicted Run Times | B23: CP1 | C23: 2409 | E23: 3118 | F23: 2837 | G23: 3457 | H23: 2249 | I23: 2903 | J23: 2714 | K23: 2347 | L23: 3023
B24: CP2 | C24: 2214 | E24: 2723 | F24: 2531 | G24: 3040 | H24: 2311 | I24: 2628 | J24: 2528 | K24: 2236 | L24: 2631
B25: CP3 | C25: 2512 | E25: 3430 | F25: 2846 | G25: 3517 | H25: 2411 | I25: 3039 | J25: 2809 | K25: 2437 | L25: 2905
B26: CP4 | C26: 2037 | E26: 2411 | F26: 2227 | G26: 2350 | H26: 2129 | I26: 2232 | J26: 2243 | K26: 2044 | L26: 2129
B27: CP5
B28: CP6
B29: CP7
B30: CP8
A31: Total Predicted Run Time | C31: =HoursMinutesAndSeconds(C33) -> 13212 | D31: =HoursMinutesAndSeconds(D33) -> 0 | E31: 15722 | F31: 14521 | G31: 20444 | H31: 13140 | I31: 14842 | J31: 14334 | K31: 13144 | L31: 14728 | M31: 0 | N31: 0 | O31: 0 | P31: 0 | Q31: 0 | R31: 0 | S31: 0 | T31: 0 | U31: 0 | V31: 0 | W31: 0 | X31: 0 | Y31: 0 | Z31: 0 | AA31: 0 | AB31: 0 | AC31: 0 | AD31: 0 | AE31: 0 | AF31: 0 | AG31: 0 | AH31: 0 | AI31: 0 | AJ31: 0 | AK31: 0 | AL31: 0 | AM31: 0 | AN31: 0 | AO31: 0 | AP31: 0 | AQ31: 0 | AR31: 0 | AS31: 0 | AT31: 0 | AU31: 0 | AV31: 0 | AW31: 0 | AX31: 0 | AY31: 0 | AZ31: 0 | BA31: 0 | BB31: 0 | BC31: 0 | BD31: 0 | BE31: 0 | BF31: 0 | BG31: =HoursMinutesAndSeconds(BG33) -> 0 | BH31: 0 | BI31: 0 | BJ31: 0
A32: Predicted Finish Time | C32: =HoursMinutesAndSeconds(seconds(C22)+C33) -> 154000 | D32: =HoursMinutesAndSeconds(seconds(D22)+D33) -> 0 | E32: =HoursMinutesAndSeconds(seconds(E22)+E33) -> 143000 | F32: =HoursMinutesAndSeconds(seconds(F22)+F33) -> 150500 | G32: =HoursMinutesAndSeconds(seconds(G22)+G33) -> 145000 | H32: =HoursMinutesAndSeconds(seconds(H22)+H33) -> 155300 | I32: =HoursMinutesAndSeconds(seconds(I22)+I33) -> 150503 | J32: =HoursMinutesAndSeconds(seconds(J22)+J33) -> 152948 | K32: =HoursMinutesAndSeconds(seconds(K22)+K33) -> 155000 | L32: =HoursMinutesAndSeconds(seconds(L22)+L33) -> 145500 | M32: =HoursMinutesAndSeconds(seconds(M22)+M33) -> 0 | N32: =HoursMinutesAndSeconds(seconds(N22)+N33) -> 0 | O32: =HoursMinutesAndSeconds(seconds(O22)+O33) -> 0 | P32: =HoursMinutesAndSeconds(seconds(P22)+P33) -> 0 | Q32: =HoursMinutesAndSeconds(seconds(Q22)+Q33) -> 0 | R32: =HoursMinutesAndSeconds(seconds(R22)+R33) -> 0 | S32: =HoursMinutesAndSeconds(seconds(S22)+S33) -> 0 | T32: =HoursMinutesAndSeconds(seconds(T22)+T33) -> 0 | U32: =HoursMinutesAndSeconds(seconds(U22)+U33) -> 0 | V32: =HoursMinutesAndSeconds(seconds(V22)+V33) -> 0 | W32: =HoursMinutesAndSeconds(seconds(W22)+W33) -> 0 | X32: =HoursMinutesAndSeconds(seconds(X22)+X33) -> 0 | Y32: =HoursMinutesAndSeconds(seconds(Y22)+Y33) -> 0 | Z32: =HoursMinutesAndSeconds(seconds(Z22)+Z33) -> 0 | AA32: =HoursMinutesAndSeconds(seconds(AA22)+AA33) -> 0 | AB32: =HoursMinutesAndSeconds(seconds(AB22)+AB33) -> 0 | AC32: =HoursMinutesAndSeconds(seconds(AC22)+AC33) -> 0 | AD32: =HoursMinutesAndSeconds(seconds(AD22)+AD33) -> 0 | AE32: =HoursMinutesAndSeconds(seconds(AE22)+AE33) -> 0 | AF32: =HoursMinutesAndSeconds(seconds(AF22)+AF33) -> 0 | AG32: =HoursMinutesAndSeconds(seconds(AG22)+AG33) -> 0 | AH32: =HoursMinutesAndSeconds(seconds(AH22)+AH33) -> 0 | AI32: =HoursMinutesAndSeconds(seconds(AI22)+AI33) -> 0 | AJ32: =HoursMinutesAndSeconds(seconds(AJ22)+AJ33) -> 0 | AK32: =HoursMinutesAndSeconds(seconds(AK22)+AK33) -> 0 | AL32: =HoursMinutesAndSeconds(seconds(AL22)+AL33) -> 0 | AM32: =HoursMinutesAndSeconds(seconds(AM22)+AM33) -> 0 | AN32: =HoursMinutesAndSeconds(seconds(AN22)+AN33) -> 0 | AO32: =HoursMinutesAndSeconds(seconds(AO22)+AO33) -> 0 | AP32: =HoursMinutesAndSeconds(seconds(AP22)+AP33) -> 0 | AQ32: =HoursMinutesAndSeconds(seconds(AQ22)+AQ33) -> 0 | AR32: =HoursMinutesAndSeconds(seconds(AR22)+AR33) -> 0 | AS32: =HoursMinutesAndSeconds(seconds(AS22)+AS33) -> 0 | AT32: =HoursMinutesAndSeconds(seconds(AT22)+AT33) -> 0 | AU32: =HoursMinutesAndSeconds(seconds(AU22)+AU33) -> 0 | AV32: =HoursMinutesAndSeconds(seconds(AV22)+AV33) -> 0 | AW32: =HoursMinutesAndSeconds(seconds(AW22)+AW33) -> 0 | AX32: =HoursMinutesAndSeconds(seconds(AX22)+AX33) -> 0 | AY32: =HoursMinutesAndSeconds(seconds(AY22)+AY33) -> 0 | AZ32: =HoursMinutesAndSeconds(seconds(AZ22)+AZ33) -> 0 | BA32: =HoursMinutesAndSeconds(seconds(BA22)+BA33) -> 0 | BB32: =HoursMinutesAndSeconds(seconds(BB22)+BB33) -> 0 | BC32: =HoursMinutesAndSeconds(seconds(BC22)+BC33) -> 0 | BD32: =HoursMinutesAndSeconds(seconds(BD22)+BD33) -> 0 | BE32: =HoursMinutesAndSeconds(seconds(BE22)+BE33) -> 0 | BF32: =HoursMinutesAndSeconds(seconds(BF22)+BF33) -> 0 | BG32: =HoursMinutesAndSeconds(seconds(BG22)+BG33) -> 0 | BH32: =HoursMinutesAndSeconds(seconds(BH22)+BH33) -> 0 | BI32: =HoursMinutesAndSeconds(seconds(BI22)+BI33) -> 0 | BJ32: =HoursMinutesAndSeconds(seconds(BJ22)+BJ33) -> 0
A33: Total Predicted Seconds | C33: =seconds(C23)+seconds(C24)+seconds(C25)+seconds(C26)+seconds(C27)+seconds(C28)+seconds(C29)+seconds(C30) -> 5532 | D33: 0 | E33: 7042 | F33: 6321 | G33: 7484 | H33: 5500 | I33: 6522 | J33: 6214 | K33: 5504 | L33: =seconds(L23)+seconds(L24)+seconds(L25)+seconds(L26)+seconds(L27)+seconds(L28)+seconds(L29)+seconds(L30) -> 6448 | M33: 0 | N33: =seconds(N23)+seconds(N24)+seconds(N25)+seconds(N26)+seconds(N27)+seconds(N28)+seconds(N29)+seconds(N30) -> 0 | O33: 0 | P33: 0 | Q33: 0 | R33: 0 | S33: 0 | T33: 0 | U33: 0 | V33: 0 | W33: 0 | X33: 0 | Y33: =seconds(Y23)+seconds(Y24)+seconds(Y25)+seconds(Y26)+seconds(Y27)+seconds(Y28)+seconds(Y29)+seconds(Y30) -> 0 | Z33: 0 | AA33: 0 | AB33: 0 | AC33: 0 | AD33: 0 | AE33: 0 | AF33: 0 | AG33: 0 | AH33: 0 | AI33: 0 | AJ33: 0 | AK33: 0 | AL33: 0 | AM33: 0 | AN33: 0 | AO33: 0 | AP33: 0 | AQ33: 0 | AR33: 0 | AS33: 0 | AT33: 0 | AU33: 0 | AV33: 0 | AW33: 0 | AX33: 0 | AY33: 0 | AZ33: 0 | BA33: 0 | BB33: 0 | BC33: 0 | BD33: 0 | BE33: 0 | BF33: 0 | BG33: =seconds(BG23)+seconds(BG24)+seconds(BG25)+seconds(BG26)+seconds(BG27)+seconds(BG28)+seconds(BG29)+seconds(BG30) -> 0 | BH33: 0 | BI33: 0 | BJ33: 0
A34: Actual Start Time | C34: 140451 | E34: 122911 | F34: 131707 | G34: 124343 | H34: 142025 | I34: 131958 | J34: 134349 | K34: 141441 | L34: 130802
A35: Actual Times | B35: CP1 | C35: 142950 | E35: 130050 | F35: 134544 | G35: 131840 | H35: 144352 | I35: 134838 | J35: 141048 | K35: 143911 | L35: 133808
B36: CP2 | C36: 145221 | E36: 132714 | F36: 141118 | G36: 134931 | H36: 150905 | I36: 141507 | J36: 143617 | K36: 150118 | L36: 140540
B37: CP3 | C37: 151744 | E37: 140114 | F37: 144009 | G37: 142508 | H37: 153238 | I37: 144529 | J37: 150343 | K37: 152601 | L37: 143440
B38: CP4 | C38: 153804 | E38: 142536 | F38: 150244 | G38: 144848 | H38: 155419 | I38: 150804 | J38: 152623 | K38: 154643 | L38: 145645
B39: CP5
B40: CP6
B41: CP7
B42: CP8
A43: Time Outs | B43: CP1
B44: CP2
B45: CP3
B46: CP4
B47: CP5
B48: CP6
B49: CP7
B50: CP8
A51: Actual Run Times | B51: CP1 | C51: =IF(ISBLANK(C35),0,HoursMinutesAndSeconds(seconds(C35)-seconds(C34)-seconds(C43))) -> 2459 | D51: =IF(ISBLANK(D35),0,HoursMinutesAndSeconds(seconds(D35)-seconds(D34)-seconds(D43))) -> 0 | E51: =IF(ISBLANK(E35),0,HoursMinutesAndSeconds(seconds(E35)-seconds(E34)-seconds(E43))) -> 3139 | F51: =IF(ISBLANK(F35),0,HoursMinutesAndSeconds(seconds(F35)-seconds(F34)-seconds(F43))) -> 2837 | G51: =IF(ISBLANK(G35),0,HoursMinutesAndSeconds(seconds(G35)-seconds(G34)-seconds(G43))) -> 3457 | H51: =IF(ISBLANK(H35),0,HoursMinutesAndSeconds(seconds(H35)-seconds(H34)-seconds(H43))) -> 2327 | I51: =IF(ISBLANK(I35),0,HoursMinutesAndSeconds(seconds(I35)-seconds(I34)-seconds(I43))) -> 2840 | J51: =IF(ISBLANK(J35),0,HoursMinutesAndSeconds(seconds(J35)-seconds(J34)-seconds(J43))) -> 2659 | K51: =IF(ISBLANK(K35),0,HoursMinutesAndSeconds(seconds(K35)-seconds(K34)-seconds(K43))) -> 2430 | L51: =IF(ISBLANK(L35),0,HoursMinutesAndSeconds(seconds(L35)-seconds(L34)-seconds(L43))) -> 3006 | M51: =IF(ISBLANK(M35),0,HoursMinutesAndSeconds(seconds(M35)-seconds(M34)-seconds(M43))) -> 0 | N51: =IF(ISBLANK(N35),0,HoursMinutesAndSeconds(seconds(N35)-seconds(N34)-seconds(N43))) -> 0 | O51: =IF(ISBLANK(O35),0,HoursMinutesAndSeconds(seconds(O35)-seconds(O34)-seconds(O43))) -> 0 | P51: =IF(ISBLANK(P35),0,HoursMinutesAndSeconds(seconds(P35)-seconds(P34)-seconds(P43))) -> 0 | Q51: =IF(ISBLANK(Q35),0,HoursMinutesAndSeconds(seconds(Q35)-seconds(Q34)-seconds(Q43))) -> 0 | R51: =IF(ISBLANK(R35),0,HoursMinutesAndSeconds(seconds(R35)-seconds(R34)-seconds(R43))) -> 0 | S51: =IF(ISBLANK(S35),0,HoursMinutesAndSeconds(seconds(S35)-seconds(S34)-seconds(S43))) -> 0 | T51: =IF(ISBLANK(T35),0,HoursMinutesAndSeconds(seconds(T35)-seconds(T34)-seconds(T43))) -> 0 | U51: =IF(ISBLANK(U35),0,HoursMinutesAndSeconds(seconds(U35)-seconds(U34)-seconds(U43))) -> 0 | V51: =IF(ISBLANK(V35),0,HoursMinutesAndSeconds(seconds(V35)-seconds(V34)-seconds(V43))) -> 0 | W51: =IF(ISBLANK(W35),0,HoursMinutesAndSeconds(seconds(W35)-seconds(W34)-seconds(W43))) -> 0 | X51: =IF(ISBLANK(X35),0,HoursMinutesAndSeconds(seconds(X35)-seconds(X34)-seconds(X43))) -> 0 | Y51: =IF(ISBLANK(Y35),0,HoursMinutesAndSeconds(seconds(Y35)-seconds(Y34)-seconds(Y43))) -> 0 | Z51: =IF(ISBLANK(Z35),0,HoursMinutesAndSeconds(seconds(Z35)-seconds(Z34)-seconds(Z43))) -> 0 | AA51: =IF(ISBLANK(AA35),0,HoursMinutesAndSeconds(seconds(AA35)-seconds(AA34)-seconds(AA43))) -> 0 | AB51: =IF(ISBLANK(AB35),0,HoursMinutesAndSeconds(seconds(AB35)-seconds(AB34)-seconds(AB43))) -> 0 | AC51: =IF(ISBLANK(AC35),0,HoursMinutesAndSeconds(seconds(AC35)-seconds(AC34)-seconds(AC43))) -> 0 | AD51: =IF(ISBLANK(AD35),0,HoursMinutesAndSeconds(seconds(AD35)-seconds(AD34)-seconds(AD43))) -> 0 | AE51: =IF(ISBLANK(AE35),0,HoursMinutesAndSeconds(seconds(AE35)-seconds(AE34)-seconds(AE43))) -> 0 | AF51: =IF(ISBLANK(AF35),0,HoursMinutesAndSeconds(seconds(AF35)-seconds(AF34)-seconds(AF43))) -> 0 | AG51: =IF(ISBLANK(AG35),0,HoursMinutesAndSeconds(seconds(AG35)-seconds(AG34)-seconds(AG43))) -> 0 | AH51: =IF(ISBLANK(AH35),0,HoursMinutesAndSeconds(seconds(AH35)-seconds(AH34)-seconds(AH43))) -> 0 | AI51: =IF(ISBLANK(AI35),0,HoursMinutesAndSeconds(seconds(AI35)-seconds(AI34)-seconds(AI43))) -> 0 | AJ51: =IF(ISBLANK(AJ35),0,HoursMinutesAndSeconds(seconds(AJ35)-seconds(AJ34)-seconds(AJ43))) -> 0 | AK51: =IF(ISBLANK(AK35),0,HoursMinutesAndSeconds(seconds(AK35)-seconds(AK34)-seconds(AK43))) -> 0 | AL51: =IF(ISBLANK(AL35),0,HoursMinutesAndSeconds(seconds(AL35)-seconds(AL34)-seconds(AL43))) -> 0 | AM51: =IF(ISBLANK(AM35),0,HoursMinutesAndSeconds(seconds(AM35)-seconds(AM34)-seconds(AM43))) -> 0 | AN51: =IF(ISBLANK(AN35),0,HoursMinutesAndSeconds(seconds(AN35)-seconds(AN34)-seconds(AN43))) -> 0 | AO51: =IF(ISBLANK(AO35),0,HoursMinutesAndSeconds(seconds(AO35)-seconds(AO34)-seconds(AO43))) -> 0 | AP51: =IF(ISBLANK(AP35),0,HoursMinutesAndSeconds(seconds(AP35)-seconds(AP34)-seconds(AP43))) -> 0 | AQ51: =IF(ISBLANK(AQ35),0,HoursMinutesAndSeconds(seconds(AQ35)-seconds(AQ34)-seconds(AQ43))) -> 0 | AR51: =IF(ISBLANK(AR35),0,HoursMinutesAndSeconds(seconds(AR35)-seconds(AR34)-seconds(AR43))) -> 0 | AS51: =IF(ISBLANK(AS35),0,HoursMinutesAndSeconds(seconds(AS35)-seconds(AS34)-seconds(AS43))) -> 0 | AT51: =IF(ISBLANK(AT35),0,HoursMinutesAndSeconds(seconds(AT35)-seconds(AT34)-seconds(AT43))) -> 0 | AU51: =IF(ISBLANK(AU35),0,HoursMinutesAndSeconds(seconds(AU35)-seconds(AU34)-seconds(AU43))) -> 0 | AV51: =IF(ISBLANK(AV35),0,HoursMinutesAndSeconds(seconds(AV35)-seconds(AV34)-seconds(AV43))) -> 0 | AW51: =IF(ISBLANK(AW35),0,HoursMinutesAndSeconds(seconds(AW35)-seconds(AW34)-seconds(AW43))) -> 0 | AX51: =IF(ISBLANK(AX35),0,HoursMinutesAndSeconds(seconds(AX35)-seconds(AX34)-seconds(AX43))) -> 0 | AY51: =IF(ISBLANK(AY35),0,HoursMinutesAndSeconds(seconds(AY35)-seconds(AY34)-seconds(AY43))) -> 0 | AZ51: =IF(ISBLANK(AZ35),0,HoursMinutesAndSeconds(seconds(AZ35)-seconds(AZ34)-seconds(AZ43))) -> 0 | BA51: =IF(ISBLANK(BA35),0,HoursMinutesAndSeconds(seconds(BA35)-seconds(BA34)-seconds(BA43))) -> 0 | BB51: =IF(ISBLANK(BB35),0,HoursMinutesAndSeconds(seconds(BB35)-seconds(BB34)-seconds(BB43))) -> 0 | BC51: =IF(ISBLANK(BC35),0,HoursMinutesAndSeconds(seconds(BC35)-seconds(BC34)-seconds(BC43))) -> 0 | BD51: =IF(ISBLANK(BD35),0,HoursMinutesAndSeconds(seconds(BD35)-seconds(BD34)-seconds(BD43))) -> 0 | BE51: =IF(ISBLANK(BE35),0,HoursMinutesAndSeconds(seconds(BE35)-seconds(BE34)-seconds(BE43))) -> 0 | BF51: =IF(ISBLANK(BF35),0,HoursMinutesAndSeconds(seconds(BF35)-seconds(BF34)-seconds(BF43))) -> 0 | BG51: =IF(ISBLANK(BG35),0,HoursMinutesAndSeconds(seconds(BG35)-seconds(BG34)-seconds(BG43))) -> 0 | BH51: =IF(ISBLANK(BH35),0,HoursMinutesAndSeconds(seconds(BH35)-seconds(BH34)-seconds(BH43))) -> 0 | BI51: =IF(ISBLANK(BI35),0,HoursMinutesAndSeconds(seconds(BI35)-seconds(BI34)-seconds(BI43))) -> 0 | BJ51: =IF(ISBLANK(BJ35),0,HoursMinutesAndSeconds(seconds(BJ35)-seconds(BJ34)-seconds(BJ43))) -> 0
B52: CP2 | C52: =IF(ISBLANK(C36),0,HoursMinutesAndSeconds(seconds(C36)-seconds(C35)-seconds(C44))) -> 2231 | D52: =IF(ISBLANK(D36),0,HoursMinutesAndSeconds(seconds(D36)-seconds(D35)-seconds(D44))) -> 0 | E52: =IF(ISBLANK(E36),0,HoursMinutesAndSeconds(seconds(E36)-seconds(E35)-seconds(E44))) -> 2624 | F52: =IF(ISBLANK(F36),0,HoursMinutesAndSeconds(seconds(F36)-seconds(F35)-seconds(F44))) -> 2534 | G52: =IF(ISBLANK(G36),0,HoursMinutesAndSeconds(seconds(G36)-seconds(G35)-seconds(G44))) -> 3051 | H52: =IF(ISBLANK(H36),0,HoursMinutesAndSeconds(seconds(H36)-seconds(H35)-seconds(H44))) -> 2513 | I52: =IF(ISBLANK(I36),0,HoursMinutesAndSeconds(seconds(I36)-seconds(I35)-seconds(I44))) -> 2629 | J52: =IF(ISBLANK(J36),0,HoursMinutesAndSeconds(seconds(J36)-seconds(J35)-seconds(J44))) -> 2529 | K52: =IF(ISBLANK(K36),0,HoursMinutesAndSeconds(seconds(K36)-seconds(K35)-seconds(K44))) -> 2207 | L52: =IF(ISBLANK(L36),0,HoursMinutesAndSeconds(seconds(L36)-seconds(L35)-seconds(L44))) -> 2732 | M52: =IF(ISBLANK(M36),0,HoursMinutesAndSeconds(seconds(M36)-seconds(M35)-seconds(M44))) -> 0 | N52: =IF(ISBLANK(N36),0,HoursMinutesAndSeconds(seconds(N36)-seconds(N35)-seconds(N44))) -> 0 | O52: =IF(ISBLANK(O36),0,HoursMinutesAndSeconds(seconds(O36)-seconds(O35)-seconds(O44))) -> 0 | P52: =IF(ISBLANK(P36),0,HoursMinutesAndSeconds(seconds(P36)-seconds(P35)-seconds(P44))) -> 0 | Q52: =IF(ISBLANK(Q36),0,HoursMinutesAndSeconds(seconds(Q36)-seconds(Q35)-seconds(Q44))) -> 0 | R52: =IF(ISBLANK(R36),0,HoursMinutesAndSeconds(seconds(R36)-seconds(R35)-seconds(R44))) -> 0 | S52: =IF(ISBLANK(S36),0,HoursMinutesAndSeconds(seconds(S36)-seconds(S35)-seconds(S44))) -> 0 | T52: =IF(ISBLANK(T36),0,HoursMinutesAndSeconds(seconds(T36)-seconds(T35)-seconds(T44))) -> 0 | U52: =IF(ISBLANK(U36),0,HoursMinutesAndSeconds(seconds(U36)-seconds(U35)-seconds(U44))) -> 0 | V52: =IF(ISBLANK(V36),0,HoursMinutesAndSeconds(seconds(V36)-seconds(V35)-seconds(V44))) -> 0 | W52: =IF(ISBLANK(W36),0,HoursMinutesAndSeconds(seconds(W36)-seconds(W35)-seconds(W44))) -> 0 | X52: =IF(ISBLANK(X36),0,HoursMinutesAndSeconds(seconds(X36)-seconds(X35)-seconds(X44))) -> 0 | Y52: =IF(ISBLANK(Y36),0,HoursMinutesAndSeconds(seconds(Y36)-seconds(Y35)-seconds(Y44))) -> 0 | Z52: =IF(ISBLANK(Z36),0,HoursMinutesAndSeconds(seconds(Z36)-seconds(Z35)-seconds(Z44))) -> 0 | AA52: =IF(ISBLANK(AA36),0,HoursMinutesAndSeconds(seconds(AA36)-seconds(AA35)-seconds(AA44))) -> 0 | AB52: =IF(ISBLANK(AB36),0,HoursMinutesAndSeconds(seconds(AB36)-seconds(AB35)-seconds(AB44))) -> 0 | AC52: =IF(ISBLANK(AC36),0,HoursMinutesAndSeconds(seconds(AC36)-seconds(AC35)-seconds(AC44))) -> 0 | AD52: =IF(ISBLANK(AD36),0,HoursMinutesAndSeconds(seconds(AD36)-seconds(AD35)-seconds(AD44))) -> 0 | AE52: =IF(ISBLANK(AE36),0,HoursMinutesAndSeconds(seconds(AE36)-seconds(AE35)-seconds(AE44))) -> 0 | AF52: =IF(ISBLANK(AF36),0,HoursMinutesAndSeconds(seconds(AF36)-seconds(AF35)-seconds(AF44))) -> 0 | AG52: =IF(ISBLANK(AG36),0,HoursMinutesAndSeconds(seconds(AG36)-seconds(AG35)-seconds(AG44))) -> 0 | AH52: =IF(ISBLANK(AH36),0,HoursMinutesAndSeconds(seconds(AH36)-seconds(AH35)-seconds(AH44))) -> 0 | AI52: =IF(ISBLANK(AI36),0,HoursMinutesAndSeconds(seconds(AI36)-seconds(AI35)-seconds(AI44))) -> 0 | AJ52: =IF(ISBLANK(AJ36),0,HoursMinutesAndSeconds(seconds(AJ36)-seconds(AJ35)-seconds(AJ44))) -> 0 | AK52: =IF(ISBLANK(AK36),0,HoursMinutesAndSeconds(seconds(AK36)-seconds(AK35)-seconds(AK44))) -> 0 | AL52: =IF(ISBLANK(AL36),0,HoursMinutesAndSeconds(seconds(AL36)-seconds(AL35)-seconds(AL44))) -> 0 | AM52: =IF(ISBLANK(AM36),0,HoursMinutesAndSeconds(seconds(AM36)-seconds(AM35)-seconds(AM44))) -> 0 | AN52: =IF(ISBLANK(AN36),0,HoursMinutesAndSeconds(seconds(AN36)-seconds(AN35)-seconds(AN44))) -> 0 | AO52: =IF(ISBLANK(AO36),0,HoursMinutesAndSeconds(seconds(AO36)-seconds(AO35)-seconds(AO44))) -> 0 | AP52: =IF(ISBLANK(AP36),0,HoursMinutesAndSeconds(seconds(AP36)-seconds(AP35)-seconds(AP44))) -> 0 | AQ52: =IF(ISBLANK(AQ36),0,HoursMinutesAndSeconds(seconds(AQ36)-seconds(AQ35)-seconds(AQ44))) -> 0 | AR52: =IF(ISBLANK(AR36),0,HoursMinutesAndSeconds(seconds(AR36)-seconds(AR35)-seconds(AR44))) -> 0 | AS52: =IF(ISBLANK(AS36),0,HoursMinutesAndSeconds(seconds(AS36)-seconds(AS35)-seconds(AS44))) -> 0 | AT52: =IF(ISBLANK(AT36),0,HoursMinutesAndSeconds(seconds(AT36)-seconds(AT35)-seconds(AT44))) -> 0 | AU52: =IF(ISBLANK(AU36),0,HoursMinutesAndSeconds(seconds(AU36)-seconds(AU35)-seconds(AU44))) -> 0 | AV52: =IF(ISBLANK(AV36),0,HoursMinutesAndSeconds(seconds(AV36)-seconds(AV35)-seconds(AV44))) -> 0 | AW52: =IF(ISBLANK(AW36),0,HoursMinutesAndSeconds(seconds(AW36)-seconds(AW35)-seconds(AW44))) -> 0 | AX52: =IF(ISBLANK(AX36),0,HoursMinutesAndSeconds(seconds(AX36)-seconds(AX35)-seconds(AX44))) -> 0 | AY52: =IF(ISBLANK(AY36),0,HoursMinutesAndSeconds(seconds(AY36)-seconds(AY35)-seconds(AY44))) -> 0 | AZ52: =IF(ISBLANK(AZ36),0,HoursMinutesAndSeconds(seconds(AZ36)-seconds(AZ35)-seconds(AZ44))) -> 0 | BA52: =IF(ISBLANK(BA36),0,HoursMinutesAndSeconds(seconds(BA36)-seconds(BA35)-seconds(BA44))) -> 0 | BB52: =IF(ISBLANK(BB36),0,HoursMinutesAndSeconds(seconds(BB36)-seconds(BB35)-seconds(BB44))) -> 0 | BC52: =IF(ISBLANK(BC36),0,HoursMinutesAndSeconds(seconds(BC36)-seconds(BC35)-seconds(BC44))) -> 0 | BD52: =IF(ISBLANK(BD36),0,HoursMinutesAndSeconds(seconds(BD36)-seconds(BD35)-seconds(BD44))) -> 0 | BE52: =IF(ISBLANK(BE36),0,HoursMinutesAndSeconds(seconds(BE36)-seconds(BE35)-seconds(BE44))) -> 0 | BF52: =IF(ISBLANK(BF36),0,HoursMinutesAndSeconds(seconds(BF36)-seconds(BF35)-seconds(BF44))) -> 0 | BG52: =IF(ISBLANK(BG36),0,HoursMinutesAndSeconds(seconds(BG36)-seconds(BG35)-seconds(BG44))) -> 0 | BH52: =IF(ISBLANK(BH36),0,HoursMinutesAndSeconds(seconds(BH36)-seconds(BH35)-seconds(BH44))) -> 0 | BI52: =IF(ISBLANK(BI36),0,HoursMinutesAndSeconds(seconds(BI36)-seconds(BI35)-seconds(BI44))) -> 0 | BJ52: =IF(ISBLANK(BJ36),0,HoursMinutesAndSeconds(seconds(BJ36)-seconds(BJ35)-seconds(BJ44))) -> 0
B53: CP3 | C53: =IF(ISBLANK(C37),0,HoursMinutesAndSeconds(seconds(C37)-seconds(C36)-seconds(C45))) -> 2523 | D53: =IF(ISBLANK(D37),0,HoursMinutesAndSeconds(seconds(D37)-seconds(D36)-seconds(D45))) -> 0 | E53: =IF(ISBLANK(E37),0,HoursMinutesAndSeconds(seconds(E37)-seconds(E36)-seconds(E45))) -> 3400 | F53: =IF(ISBLANK(F37),0,HoursMinutesAndSeconds(seconds(F37)-seconds(F36)-seconds(F45))) -> 2851 | G53: =IF(ISBLANK(G37),0,HoursMinutesAndSeconds(seconds(G37)-seconds(G36)-seconds(G45))) -> 3537 | H53: =IF(ISBLANK(H37),0,HoursMinutesAndSeconds(seconds(H37)-seconds(H36)-seconds(H45))) -> 2333 | I53: =IF(ISBLANK(I37),0,HoursMinutesAndSeconds(seconds(I37)-seconds(I36)-seconds(I45))) -> 3022 | J53: =IF(ISBLANK(J37),0,HoursMinutesAndSeconds(seconds(J37)-seconds(J36)-seconds(J45))) -> 2726 | K53: =IF(ISBLANK(K37),0,HoursMinutesAndSeconds(seconds(K37)-seconds(K36)-seconds(K45))) -> 2443 | L53: =IF(ISBLANK(L37),0,HoursMinutesAndSeconds(seconds(L37)-seconds(L36)-seconds(L45))) -> 2900 | M53: =IF(ISBLANK(M37),0,HoursMinutesAndSeconds(seconds(M37)-seconds(M36)-seconds(M45))) -> 0 | N53: =IF(ISBLANK(N37),0,HoursMinutesAndSeconds(seconds(N37)-seconds(N36)-seconds(N45))) -> 0 | O53: =IF(ISBLANK(O37),0,HoursMinutesAndSeconds(seconds(O37)-seconds(O36)-seconds(O45))) -> 0 | P53: =IF(ISBLANK(P37),0,HoursMinutesAndSeconds(seconds(P37)-seconds(P36)-seconds(P45))) -> 0 | Q53: =IF(ISBLANK(Q37),0,HoursMinutesAndSeconds(seconds(Q37)-seconds(Q36)-seconds(Q45))) -> 0 | R53: =IF(ISBLANK(R37),0,HoursMinutesAndSeconds(seconds(R37)-seconds(R36)-seconds(R45))) -> 0 | S53: =IF(ISBLANK(S37),0,HoursMinutesAndSeconds(seconds(S37)-seconds(S36)-seconds(S45))) -> 0 | T53: =IF(ISBLANK(T37),0,HoursMinutesAndSeconds(seconds(T37)-seconds(T36)-seconds(T45))) -> 0 | U53: =IF(ISBLANK(U37),0,HoursMinutesAndSeconds(seconds(U37)-seconds(U36)-seconds(U45))) -> 0 | V53: =IF(ISBLANK(V37),0,HoursMinutesAndSeconds(seconds(V37)-seconds(V36)-seconds(V45))) -> 0 | W53: =IF(ISBLANK(W37),0,HoursMinutesAndSeconds(seconds(W37)-seconds(W36)-seconds(W45))) -> 0 | X53: =IF(ISBLANK(X37),0,HoursMinutesAndSeconds(seconds(X37)-seconds(X36)-seconds(X45))) -> 0 | Y53: =IF(ISBLANK(Y37),0,HoursMinutesAndSeconds(seconds(Y37)-seconds(Y36)-seconds(Y45))) -> 0 | Z53: =IF(ISBLANK(Z37),0,HoursMinutesAndSeconds(seconds(Z37)-seconds(Z36)-seconds(Z45))) -> 0 | AA53: =IF(ISBLANK(AA37),0,HoursMinutesAndSeconds(seconds(AA37)-seconds(AA36)-seconds(AA45))) -> 0 | AB53: =IF(ISBLANK(AB37),0,HoursMinutesAndSeconds(seconds(AB37)-seconds(AB36)-seconds(AB45))) -> 0 | AC53: =IF(ISBLANK(AC37),0,HoursMinutesAndSeconds(seconds(AC37)-seconds(AC36)-seconds(AC45))) -> 0 | AD53: =IF(ISBLANK(AD37),0,HoursMinutesAndSeconds(seconds(AD37)-seconds(AD36)-seconds(AD45))) -> 0 | AE53: =IF(ISBLANK(AE37),0,HoursMinutesAndSeconds(seconds(AE37)-seconds(AE36)-seconds(AE45))) -> 0 | AF53: =IF(ISBLANK(AF37),0,HoursMinutesAndSeconds(seconds(AF37)-seconds(AF36)-seconds(AF45))) -> 0 | AG53: =IF(ISBLANK(AG37),0,HoursMinutesAndSeconds(seconds(AG37)-seconds(AG36)-seconds(AG45))) -> 0 | AH53: =IF(ISBLANK(AH37),0,HoursMinutesAndSeconds(seconds(AH37)-seconds(AH36)-seconds(AH45))) -> 0 | AI53: =IF(ISBLANK(AI37),0,HoursMinutesAndSeconds(seconds(AI37)-seconds(AI36)-seconds(AI45))) -> 0 | AJ53: =IF(ISBLANK(AJ37),0,HoursMinutesAndSeconds(seconds(AJ37)-seconds(AJ36)-seconds(AJ45))) -> 0 | AK53: =IF(ISBLANK(AK37),0,HoursMinutesAndSeconds(seconds(AK37)-seconds(AK36)-seconds(AK45))) -> 0 | AL53: =IF(ISBLANK(AL37),0,HoursMinutesAndSeconds(seconds(AL37)-seconds(AL36)-seconds(AL45))) -> 0 | AM53: =IF(ISBLANK(AM37),0,HoursMinutesAndSeconds(seconds(AM37)-seconds(AM36)-seconds(AM45))) -> 0 | AN53: =IF(ISBLANK(AN37),0,HoursMinutesAndSeconds(seconds(AN37)-seconds(AN36)-seconds(AN45))) -> 0 | AO53: =IF(ISBLANK(AO37),0,HoursMinutesAndSeconds(seconds(AO37)-seconds(AO36)-seconds(AO45))) -> 0 | AP53: =IF(ISBLANK(AP37),0,HoursMinutesAndSeconds(seconds(AP37)-seconds(AP36)-seconds(AP45))) -> 0 | AQ53: =IF(ISBLANK(AQ37),0,HoursMinutesAndSeconds(seconds(AQ37)-seconds(AQ36)-seconds(AQ45))) -> 0 | AR53: =IF(ISBLANK(AR37),0,HoursMinutesAndSeconds(seconds(AR37)-seconds(AR36)-seconds(AR45))) -> 0 | AS53: =IF(ISBLANK(AS37),0,HoursMinutesAndSeconds(seconds(AS37)-seconds(AS36)-seconds(AS45))) -> 0 | AT53: =IF(ISBLANK(AT37),0,HoursMinutesAndSeconds(seconds(AT37)-seconds(AT36)-seconds(AT45))) -> 0 | AU53: =IF(ISBLANK(AU37),0,HoursMinutesAndSeconds(seconds(AU37)-seconds(AU36)-seconds(AU45))) -> 0 | AV53: =IF(ISBLANK(AV37),0,HoursMinutesAndSeconds(seconds(AV37)-seconds(AV36)-seconds(AV45))) -> 0 | AW53: =IF(ISBLANK(AW37),0,HoursMinutesAndSeconds(seconds(AW37)-seconds(AW36)-seconds(AW45))) -> 0 | AX53: =IF(ISBLANK(AX37),0,HoursMinutesAndSeconds(seconds(AX37)-seconds(AX36)-seconds(AX45))) -> 0 | AY53: =IF(ISBLANK(AY37),0,HoursMinutesAndSeconds(seconds(AY37)-seconds(AY36)-seconds(AY45))) -> 0 | AZ53: =IF(ISBLANK(AZ37),0,HoursMinutesAndSeconds(seconds(AZ37)-seconds(AZ36)-seconds(AZ45))) -> 0 | BA53: =IF(ISBLANK(BA37),0,HoursMinutesAndSeconds(seconds(BA37)-seconds(BA36)-seconds(BA45))) -> 0 | BB53: =IF(ISBLANK(BB37),0,HoursMinutesAndSeconds(seconds(BB37)-seconds(BB36)-seconds(BB45))) -> 0 | BC53: =IF(ISBLANK(BC37),0,HoursMinutesAndSeconds(seconds(BC37)-seconds(BC36)-seconds(BC45))) -> 0 | BD53: =IF(ISBLANK(BD37),0,HoursMinutesAndSeconds(seconds(BD37)-seconds(BD36)-seconds(BD45))) -> 0 | BE53: =IF(ISBLANK(BE37),0,HoursMinutesAndSeconds(seconds(BE37)-seconds(BE36)-seconds(BE45))) -> 0 | BF53: =IF(ISBLANK(BF37),0,HoursMinutesAndSeconds(seconds(BF37)-seconds(BF36)-seconds(BF45))) -> 0 | BG53: =IF(ISBLANK(BG37),0,HoursMinutesAndSeconds(seconds(BG37)-seconds(BG36)-seconds(BG45))) -> 0 | BH53: =IF(ISBLANK(BH37),0,HoursMinutesAndSeconds(seconds(BH37)-seconds(BH36)-seconds(BH45))) -> 0 | BI53: =IF(ISBLANK(BI37),0,HoursMinutesAndSeconds(seconds(BI37)-seconds(BI36)-seconds(BI45))) -> 0 | BJ53: =IF(ISBLANK(BJ37),0,HoursMinutesAndSeconds(seconds(BJ37)-seconds(BJ36)-seconds(BJ45))) -> 0
B54: CP4 | C54: =IF(ISBLANK(C38),0,HoursMinutesAndSeconds(seconds(C38)-seconds(C37)-seconds(C46))) -> 2020 | D54: =IF(ISBLANK(D38),0,HoursMinutesAndSeconds(seconds(D38)-seconds(D37)-seconds(D46))) -> 0 | E54: =IF(ISBLANK(E38),0,HoursMinutesAndSeconds(seconds(E38)-seconds(E37)-seconds(E46))) -> 2422 | F54: =IF(ISBLANK(F38),0,HoursMinutesAndSeconds(seconds(F38)-seconds(F37)-seconds(F46))) -> 2235 | G54: =IF(ISBLANK(G38),0,HoursMinutesAndSeconds(seconds(G38)-seconds(G37)-seconds(G46))) -> 2340 | H54: =IF(ISBLANK(H38),0,HoursMinutesAndSeconds(seconds(H38)-seconds(H37)-seconds(H46))) -> 2141 | I54: =IF(ISBLANK(I38),0,HoursMinutesAndSeconds(seconds(I38)-seconds(I37)-seconds(I46))) -> 2235 | J54: =IF(ISBLANK(J38),0,HoursMinutesAndSeconds(seconds(J38)-seconds(J37)-seconds(J46))) -> 2240 | K54: =IF(ISBLANK(K38),0,HoursMinutesAndSeconds(seconds(K38)-seconds(K37)-seconds(K46))) -> 2042 | L54: =IF(ISBLANK(L38),0,HoursMinutesAndSeconds(seconds(L38)-seconds(L37)-seconds(L46))) -> 2205 | M54: =IF(ISBLANK(M38),0,HoursMinutesAndSeconds(seconds(M38)-seconds(M37)-seconds(M46))) -> 0 | N54: =IF(ISBLANK(N38),0,HoursMinutesAndSeconds(seconds(N38)-seconds(N37)-seconds(N46))) -> 0 | O54: =IF(ISBLANK(O38),0,HoursMinutesAndSeconds(seconds(O38)-seconds(O37)-seconds(O46))) -> 0 | P54: =IF(ISBLANK(P38),0,HoursMinutesAndSeconds(seconds(P38)-seconds(P37)-seconds(P46))) -> 0 | Q54: =IF(ISBLANK(Q38),0,HoursMinutesAndSeconds(seconds(Q38)-seconds(Q37)-seconds(Q46))) -> 0 | R54: =IF(ISBLANK(R38),0,HoursMinutesAndSeconds(seconds(R38)-seconds(R37)-seconds(R46))) -> 0 | S54: =IF(ISBLANK(S38),0,HoursMinutesAndSeconds(seconds(S38)-seconds(S37)-seconds(S46))) -> 0 | T54: =IF(ISBLANK(T38),0,HoursMinutesAndSeconds(seconds(T38)-seconds(T37)-seconds(T46))) -> 0 | U54: =IF(ISBLANK(U38),0,HoursMinutesAndSeconds(seconds(U38)-seconds(U37)-seconds(U46))) -> 0 | V54: =IF(ISBLANK(V38),0,HoursMinutesAndSeconds(seconds(V38)-seconds(V37)-seconds(V46))) -> 0 | W54: =IF(ISBLANK(W38),0,HoursMinutesAndSeconds(seconds(W38)-seconds(W37)-seconds(W46))) -> 0 | X54: =IF(ISBLANK(X38),0,HoursMinutesAndSeconds(seconds(X38)-seconds(X37)-seconds(X46))) -> 0 | Y54: =IF(ISBLANK(Y38),0,HoursMinutesAndSeconds(seconds(Y38)-seconds(Y37)-seconds(Y46))) -> 0 | Z54: =IF(ISBLANK(Z38),0,HoursMinutesAndSeconds(seconds(Z38)-seconds(Z37)-seconds(Z46))) -> 0 | AA54: =IF(ISBLANK(AA38),0,HoursMinutesAndSeconds(seconds(AA38)-seconds(AA37)-seconds(AA46))) -> 0 | AB54: =IF(ISBLANK(AB38),0,HoursMinutesAndSeconds(seconds(AB38)-seconds(AB37)-seconds(AB46))) -> 0 | AC54: =IF(ISBLANK(AC38),0,HoursMinutesAndSeconds(seconds(AC38)-seconds(AC37)-seconds(AC46))) -> 0 | AD54: =IF(ISBLANK(AD38),0,HoursMinutesAndSeconds(seconds(AD38)-seconds(AD37)-seconds(AD46))) -> 0 | AE54: =IF(ISBLANK(AE38),0,HoursMinutesAndSeconds(seconds(AE38)-seconds(AE37)-seconds(AE46))) -> 0 | AF54: =IF(ISBLANK(AF38),0,HoursMinutesAndSeconds(seconds(AF38)-seconds(AF37)-seconds(AF46))) -> 0 | AG54: =IF(ISBLANK(AG38),0,HoursMinutesAndSeconds(seconds(AG38)-seconds(AG37)-seconds(AG46))) -> 0 | AH54: =IF(ISBLANK(AH38),0,HoursMinutesAndSeconds(seconds(AH38)-seconds(AH37)-seconds(AH46))) -> 0 | AI54: =IF(ISBLANK(AI38),0,HoursMinutesAndSeconds(seconds(AI38)-seconds(AI37)-seconds(AI46))) -> 0 | AJ54: =IF(ISBLANK(AJ38),0,HoursMinutesAndSeconds(seconds(AJ38)-seconds(AJ37)-seconds(AJ46))) -> 0 | AK54: =IF(ISBLANK(AK38),0,HoursMinutesAndSeconds(seconds(AK38)-seconds(AK37)-seconds(AK46))) -> 0 | AL54: =IF(ISBLANK(AL38),0,HoursMinutesAndSeconds(seconds(AL38)-seconds(AL37)-seconds(AL46))) -> 0 | AM54: =IF(ISBLANK(AM38),0,HoursMinutesAndSeconds(seconds(AM38)-seconds(AM37)-seconds(AM46))) -> 0 | AN54: =IF(ISBLANK(AN38),0,HoursMinutesAndSeconds(seconds(AN38)-seconds(AN37)-seconds(AN46))) -> 0 | AO54: =IF(ISBLANK(AO38),0,HoursMinutesAndSeconds(seconds(AO38)-seconds(AO37)-seconds(AO46))) -> 0 | AP54: =IF(ISBLANK(AP38),0,HoursMinutesAndSeconds(seconds(AP38)-seconds(AP37)-seconds(AP46))) -> 0 | AQ54: =IF(ISBLANK(AQ38),0,HoursMinutesAndSeconds(seconds(AQ38)-seconds(AQ37)-seconds(AQ46))) -> 0 | AR54: =IF(ISBLANK(AR38),0,HoursMinutesAndSeconds(seconds(AR38)-seconds(AR37)-seconds(AR46))) -> 0 | AS54: =IF(ISBLANK(AS38),0,HoursMinutesAndSeconds(seconds(AS38)-seconds(AS37)-seconds(AS46))) -> 0 | AT54: =IF(ISBLANK(AT38),0,HoursMinutesAndSeconds(seconds(AT38)-seconds(AT37)-seconds(AT46))) -> 0 | AU54: =IF(ISBLANK(AU38),0,HoursMinutesAndSeconds(seconds(AU38)-seconds(AU37)-seconds(AU46))) -> 0 | AV54: =IF(ISBLANK(AV38),0,HoursMinutesAndSeconds(seconds(AV38)-seconds(AV37)-seconds(AV46))) -> 0 | AW54: =IF(ISBLANK(AW38),0,HoursMinutesAndSeconds(seconds(AW38)-seconds(AW37)-seconds(AW46))) -> 0 | AX54: =IF(ISBLANK(AX38),0,HoursMinutesAndSeconds(seconds(AX38)-seconds(AX37)-seconds(AX46))) -> 0 | AY54: =IF(ISBLANK(AY38),0,HoursMinutesAndSeconds(seconds(AY38)-seconds(AY37)-seconds(AY46))) -> 0 | AZ54: =IF(ISBLANK(AZ38),0,HoursMinutesAndSeconds(seconds(AZ38)-seconds(AZ37)-seconds(AZ46))) -> 0 | BA54: =IF(ISBLANK(BA38),0,HoursMinutesAndSeconds(seconds(BA38)-seconds(BA37)-seconds(BA46))) -> 0 | BB54: =IF(ISBLANK(BB38),0,HoursMinutesAndSeconds(seconds(BB38)-seconds(BB37)-seconds(BB46))) -> 0 | BC54: =IF(ISBLANK(BC38),0,HoursMinutesAndSeconds(seconds(BC38)-seconds(BC37)-seconds(BC46))) -> 0 | BD54: =IF(ISBLANK(BD38),0,HoursMinutesAndSeconds(seconds(BD38)-seconds(BD37)-seconds(BD46))) -> 0 | BE54: =IF(ISBLANK(BE38),0,HoursMinutesAndSeconds(seconds(BE38)-seconds(BE37)-seconds(BE46))) -> 0 | BF54: =IF(ISBLANK(BF38),0,HoursMinutesAndSeconds(seconds(BF38)-seconds(BF37)-seconds(BF46))) -> 0 | BG54: =IF(ISBLANK(BG38),0,HoursMinutesAndSeconds(seconds(BG38)-seconds(BG37)-seconds(BG46))) -> 0 | BH54: =IF(ISBLANK(BH38),0,HoursMinutesAndSeconds(seconds(BH38)-seconds(BH37)-seconds(BH46))) -> 0 | BI54: =IF(ISBLANK(BI38),0,HoursMinutesAndSeconds(seconds(BI38)-seconds(BI37)-seconds(BI46))) -> 0 | BJ54: =IF(ISBLANK(BJ38),0,HoursMinutesAndSeconds(seconds(BJ38)-seconds(BJ37)-seconds(BJ46))) -> 0
B55: CP5 | C55: =IF(ISBLANK(C39),0,HoursMinutesAndSeconds(seconds(C39)-seconds(C38)-seconds(C47))) -> 0 | D55: =IF(ISBLANK(D39),0,HoursMinutesAndSeconds(seconds(D39)-seconds(D38)-seconds(D47))) -> 0 | E55: =IF(ISBLANK(E39),0,HoursMinutesAndSeconds(seconds(E39)-seconds(E38)-seconds(E47))) -> 0 | F55: =IF(ISBLANK(F39),0,HoursMinutesAndSeconds(seconds(F39)-seconds(F38)-seconds(F47))) -> 0 | G55: =IF(ISBLANK(G39),0,HoursMinutesAndSeconds(seconds(G39)-seconds(G38)-seconds(G47))) -> 0 | H55: =IF(ISBLANK(H39),0,HoursMinutesAndSeconds(seconds(H39)-seconds(H38)-seconds(H47))) -> 0 | I55: =IF(ISBLANK(I39),0,HoursMinutesAndSeconds(seconds(I39)-seconds(I38)-seconds(I47))) -> 0 | J55: =IF(ISBLANK(J39),0,HoursMinutesAndSeconds(seconds(J39)-seconds(J38)-seconds(J47))) -> 0 | K55: =IF(ISBLANK(K39),0,HoursMinutesAndSeconds(seconds(K39)-seconds(K38)-seconds(K47))) -> 0 | L55: =IF(ISBLANK(L39),0,HoursMinutesAndSeconds(seconds(L39)-seconds(L38)-seconds(L47))) -> 0 | M55: =IF(ISBLANK(M39),0,HoursMinutesAndSeconds(seconds(M39)-seconds(M38)-seconds(M47))) -> 0 | N55: =IF(ISBLANK(N39),0,HoursMinutesAndSeconds(seconds(N39)-seconds(N38)-seconds(N47))) -> 0 | O55: =IF(ISBLANK(O39),0,HoursMinutesAndSeconds(seconds(O39)-seconds(O38)-seconds(O47))) -> 0 | P55: =IF(ISBLANK(P39),0,HoursMinutesAndSeconds(seconds(P39)-seconds(P38)-seconds(P47))) -> 0 | Q55: =IF(ISBLANK(Q39),0,HoursMinutesAndSeconds(seconds(Q39)-seconds(Q38)-seconds(Q47))) -> 0 | R55: =IF(ISBLANK(R39),0,HoursMinutesAndSeconds(seconds(R39)-seconds(R38)-seconds(R47))) -> 0 | S55: =IF(ISBLANK(S39),0,HoursMinutesAndSeconds(seconds(S39)-seconds(S38)-seconds(S47))) -> 0 | T55: =IF(ISBLANK(T39),0,HoursMinutesAndSeconds(seconds(T39)-seconds(T38)-seconds(T47))) -> 0 | U55: =IF(ISBLANK(U39),0,HoursMinutesAndSeconds(seconds(U39)-seconds(U38)-seconds(U47))) -> 0 | V55: =IF(ISBLANK(V39),0,HoursMinutesAndSeconds(seconds(V39)-seconds(V38)-seconds(V47))) -> 0 | W55: =IF(ISBLANK(W39),0,HoursMinutesAndSeconds(seconds(W39)-seconds(W38)-seconds(W47))) -> 0 | X55: =IF(ISBLANK(X39),0,HoursMinutesAndSeconds(seconds(X39)-seconds(X38)-seconds(X47))) -> 0 | Y55: =IF(ISBLANK(Y39),0,HoursMinutesAndSeconds(seconds(Y39)-seconds(Y38)-seconds(Y47))) -> 0 | Z55: =IF(ISBLANK(Z39),0,HoursMinutesAndSeconds(seconds(Z39)-seconds(Z38)-seconds(Z47))) -> 0 | AA55: =IF(ISBLANK(AA39),0,HoursMinutesAndSeconds(seconds(AA39)-seconds(AA38)-seconds(AA47))) -> 0 | AB55: =IF(ISBLANK(AB39),0,HoursMinutesAndSeconds(seconds(AB39)-seconds(AB38)-seconds(AB47))) -> 0 | AC55: =IF(ISBLANK(AC39),0,HoursMinutesAndSeconds(seconds(AC39)-seconds(AC38)-seconds(AC47))) -> 0 | AD55: =IF(ISBLANK(AD39),0,HoursMinutesAndSeconds(seconds(AD39)-seconds(AD38)-seconds(AD47))) -> 0 | AE55: =IF(ISBLANK(AE39),0,HoursMinutesAndSeconds(seconds(AE39)-seconds(AE38)-seconds(AE47))) -> 0 | AF55: =IF(ISBLANK(AF39),0,HoursMinutesAndSeconds(seconds(AF39)-seconds(AF38)-seconds(AF47))) -> 0 | AG55: =IF(ISBLANK(AG39),0,HoursMinutesAndSeconds(seconds(AG39)-seconds(AG38)-seconds(AG47))) -> 0 | AH55: =IF(ISBLANK(AH39),0,HoursMinutesAndSeconds(seconds(AH39)-seconds(AH38)-seconds(AH47))) -> 0 | AI55: =IF(ISBLANK(AI39),0,HoursMinutesAndSeconds(seconds(AI39)-seconds(AI38)-seconds(AI47))) -> 0 | AJ55: =IF(ISBLANK(AJ39),0,HoursMinutesAndSeconds(seconds(AJ39)-seconds(AJ38)-seconds(AJ47))) -> 0 | AK55: =IF(ISBLANK(AK39),0,HoursMinutesAndSeconds(seconds(AK39)-seconds(AK38)-seconds(AK47))) -> 0 | AL55: =IF(ISBLANK(AL39),0,HoursMinutesAndSeconds(seconds(AL39)-seconds(AL38)-seconds(AL47))) -> 0 | AM55: =IF(ISBLANK(AM39),0,HoursMinutesAndSeconds(seconds(AM39)-seconds(AM38)-seconds(AM47))) -> 0 | AN55: =IF(ISBLANK(AN39),0,HoursMinutesAndSeconds(seconds(AN39)-seconds(AN38)-seconds(AN47))) -> 0 | AO55: =IF(ISBLANK(AO39),0,HoursMinutesAndSeconds(seconds(AO39)-seconds(AO38)-seconds(AO47))) -> 0 | AP55: =IF(ISBLANK(AP39),0,HoursMinutesAndSeconds(seconds(AP39)-seconds(AP38)-seconds(AP47))) -> 0 | AQ55: =IF(ISBLANK(AQ39),0,HoursMinutesAndSeconds(seconds(AQ39)-seconds(AQ38)-seconds(AQ47))) -> 0 | AR55: =IF(ISBLANK(AR39),0,HoursMinutesAndSeconds(seconds(AR39)-seconds(AR38)-seconds(AR47))) -> 0 | AS55: =IF(ISBLANK(AS39),0,HoursMinutesAndSeconds(seconds(AS39)-seconds(AS38)-seconds(AS47))) -> 0 | AT55: =IF(ISBLANK(AT39),0,HoursMinutesAndSeconds(seconds(AT39)-seconds(AT38)-seconds(AT47))) -> 0 | AU55: =IF(ISBLANK(AU39),0,HoursMinutesAndSeconds(seconds(AU39)-seconds(AU38)-seconds(AU47))) -> 0 | AV55: =IF(ISBLANK(AV39),0,HoursMinutesAndSeconds(seconds(AV39)-seconds(AV38)-seconds(AV47))) -> 0 | AW55: =IF(ISBLANK(AW39),0,HoursMinutesAndSeconds(seconds(AW39)-seconds(AW38)-seconds(AW47))) -> 0 | AX55: =IF(ISBLANK(AX39),0,HoursMinutesAndSeconds(seconds(AX39)-seconds(AX38)-seconds(AX47))) -> 0 | AY55: =IF(ISBLANK(AY39),0,HoursMinutesAndSeconds(seconds(AY39)-seconds(AY38)-seconds(AY47))) -> 0 | AZ55: =IF(ISBLANK(AZ39),0,HoursMinutesAndSeconds(seconds(AZ39)-seconds(AZ38)-seconds(AZ47))) -> 0 | BA55: =IF(ISBLANK(BA39),0,HoursMinutesAndSeconds(seconds(BA39)-seconds(BA38)-seconds(BA47))) -> 0 | BB55: =IF(ISBLANK(BB39),0,HoursMinutesAndSeconds(seconds(BB39)-seconds(BB38)-seconds(BB47))) -> 0 | BC55: =IF(ISBLANK(BC39),0,HoursMinutesAndSeconds(seconds(BC39)-seconds(BC38)-seconds(BC47))) -> 0 | BD55: =IF(ISBLANK(BD39),0,HoursMinutesAndSeconds(seconds(BD39)-seconds(BD38)-seconds(BD47))) -> 0 | BE55: =IF(ISBLANK(BE39),0,HoursMinutesAndSeconds(seconds(BE39)-seconds(BE38)-seconds(BE47))) -> 0 | BF55: =IF(ISBLANK(BF39),0,HoursMinutesAndSeconds(seconds(BF39)-seconds(BF38)-seconds(BF47))) -> 0 | BG55: =IF(ISBLANK(BG39),0,HoursMinutesAndSeconds(seconds(BG39)-seconds(BG38)-seconds(BG47))) -> 0 | BH55: =IF(ISBLANK(BH39),0,HoursMinutesAndSeconds(seconds(BH39)-seconds(BH38)-seconds(BH47))) -> 0 | BI55: =IF(ISBLANK(BI39),0,HoursMinutesAndSeconds(seconds(BI39)-seconds(BI38)-seconds(BI47))) -> 0 | BJ55: =IF(ISBLANK(BJ39),0,HoursMinutesAndSeconds(seconds(BJ39)-seconds(BJ38)-seconds(BJ47))) -> 0
B56: CP6 | C56: =IF(ISBLANK(C40),0,HoursMinutesAndSeconds(seconds(C40)-seconds(C39)-seconds(C48))) -> 0 | D56: =IF(ISBLANK(D40),0,HoursMinutesAndSeconds(seconds(D40)-seconds(D39)-seconds(D48))) -> 0 | E56: =IF(ISBLANK(E40),0,HoursMinutesAndSeconds(seconds(E40)-seconds(E39)-seconds(E48))) -> 0 | F56: =IF(ISBLANK(F40),0,HoursMinutesAndSeconds(seconds(F40)-seconds(F39)-seconds(F48))) -> 0 | G56: =IF(ISBLANK(G40),0,HoursMinutesAndSeconds(seconds(G40)-seconds(G39)-seconds(G48))) -> 0 | H56: =IF(ISBLANK(H40),0,HoursMinutesAndSeconds(seconds(H40)-seconds(H39)-seconds(H48))) -> 0 | I56: =IF(ISBLANK(I40),0,HoursMinutesAndSeconds(seconds(I40)-seconds(I39)-seconds(I48))) -> 0 | J56: =IF(ISBLANK(J40),0,HoursMinutesAndSeconds(seconds(J40)-seconds(J39)-seconds(J48))) -> 0 | K56: =IF(ISBLANK(K40),0,HoursMinutesAndSeconds(seconds(K40)-seconds(K39)-seconds(K48))) -> 0 | L56: =IF(ISBLANK(L40),0,HoursMinutesAndSeconds(seconds(L40)-seconds(L39)-seconds(L48))) -> 0 | M56: =IF(ISBLANK(M40),0,HoursMinutesAndSeconds(seconds(M40)-seconds(M39)-seconds(M48))) -> 0 | N56: =IF(ISBLANK(N40),0,HoursMinutesAndSeconds(seconds(N40)-seconds(N39)-seconds(N48))) -> 0 | O56: =IF(ISBLANK(O40),0,HoursMinutesAndSeconds(seconds(O40)-seconds(O39)-seconds(O48))) -> 0 | P56: =IF(ISBLANK(P40),0,HoursMinutesAndSeconds(seconds(P40)-seconds(P39)-seconds(P48))) -> 0 | Q56: =IF(ISBLANK(Q40),0,HoursMinutesAndSeconds(seconds(Q40)-seconds(Q39)-seconds(Q48))) -> 0 | R56: =IF(ISBLANK(R40),0,HoursMinutesAndSeconds(seconds(R40)-seconds(R39)-seconds(R48))) -> 0 | S56: =IF(ISBLANK(S40),0,HoursMinutesAndSeconds(seconds(S40)-seconds(S39)-seconds(S48))) -> 0 | T56: =IF(ISBLANK(T40),0,HoursMinutesAndSeconds(seconds(T40)-seconds(T39)-seconds(T48))) -> 0 | U56: =IF(ISBLANK(U40),0,HoursMinutesAndSeconds(seconds(U40)-seconds(U39)-seconds(U48))) -> 0 | V56: =IF(ISBLANK(V40),0,HoursMinutesAndSeconds(seconds(V40)-seconds(V39)-seconds(V48))) -> 0 | W56: =IF(ISBLANK(W40),0,HoursMinutesAndSeconds(seconds(W40)-seconds(W39)-seconds(W48))) -> 0 | X56: =IF(ISBLANK(X40),0,HoursMinutesAndSeconds(seconds(X40)-seconds(X39)-seconds(X48))) -> 0 | Y56: =IF(ISBLANK(Y40),0,HoursMinutesAndSeconds(seconds(Y40)-seconds(Y39)-seconds(Y48))) -> 0 | Z56: =IF(ISBLANK(Z40),0,HoursMinutesAndSeconds(seconds(Z40)-seconds(Z39)-seconds(Z48))) -> 0 | AA56: =IF(ISBLANK(AA40),0,HoursMinutesAndSeconds(seconds(AA40)-seconds(AA39)-seconds(AA48))) -> 0 | AB56: =IF(ISBLANK(AB40),0,HoursMinutesAndSeconds(seconds(AB40)-seconds(AB39)-seconds(AB48))) -> 0 | AC56: =IF(ISBLANK(AC40),0,HoursMinutesAndSeconds(seconds(AC40)-seconds(AC39)-seconds(AC48))) -> 0 | AD56: =IF(ISBLANK(AD40),0,HoursMinutesAndSeconds(seconds(AD40)-seconds(AD39)-seconds(AD48))) -> 0 | AE56: =IF(ISBLANK(AE40),0,HoursMinutesAndSeconds(seconds(AE40)-seconds(AE39)-seconds(AE48))) -> 0 | AF56: =IF(ISBLANK(AF40),0,HoursMinutesAndSeconds(seconds(AF40)-seconds(AF39)-seconds(AF48))) -> 0 | AG56: =IF(ISBLANK(AG40),0,HoursMinutesAndSeconds(seconds(AG40)-seconds(AG39)-seconds(AG48))) -> 0 | AH56: =IF(ISBLANK(AH40),0,HoursMinutesAndSeconds(seconds(AH40)-seconds(AH39)-seconds(AH48))) -> 0 | AI56: =IF(ISBLANK(AI40),0,HoursMinutesAndSeconds(seconds(AI40)-seconds(AI39)-seconds(AI48))) -> 0 | AJ56: =IF(ISBLANK(AJ40),0,HoursMinutesAndSeconds(seconds(AJ40)-seconds(AJ39)-seconds(AJ48))) -> 0 | AK56: =IF(ISBLANK(AK40),0,HoursMinutesAndSeconds(seconds(AK40)-seconds(AK39)-seconds(AK48))) -> 0 | AL56: =IF(ISBLANK(AL40),0,HoursMinutesAndSeconds(seconds(AL40)-seconds(AL39)-seconds(AL48))) -> 0 | AM56: =IF(ISBLANK(AM40),0,HoursMinutesAndSeconds(seconds(AM40)-seconds(AM39)-seconds(AM48))) -> 0 | AN56: =IF(ISBLANK(AN40),0,HoursMinutesAndSeconds(seconds(AN40)-seconds(AN39)-seconds(AN48))) -> 0 | AO56: =IF(ISBLANK(AO40),0,HoursMinutesAndSeconds(seconds(AO40)-seconds(AO39)-seconds(AO48))) -> 0 | AP56: =IF(ISBLANK(AP40),0,HoursMinutesAndSeconds(seconds(AP40)-seconds(AP39)-seconds(AP48))) -> 0 | AQ56: =IF(ISBLANK(AQ40),0,HoursMinutesAndSeconds(seconds(AQ40)-seconds(AQ39)-seconds(AQ48))) -> 0 | AR56: =IF(ISBLANK(AR40),0,HoursMinutesAndSeconds(seconds(AR40)-seconds(AR39)-seconds(AR48))) -> 0 | AS56: =IF(ISBLANK(AS40),0,HoursMinutesAndSeconds(seconds(AS40)-seconds(AS39)-seconds(AS48))) -> 0 | AT56: =IF(ISBLANK(AT40),0,HoursMinutesAndSeconds(seconds(AT40)-seconds(AT39)-seconds(AT48))) -> 0 | AU56: =IF(ISBLANK(AU40),0,HoursMinutesAndSeconds(seconds(AU40)-seconds(AU39)-seconds(AU48))) -> 0 | AV56: =IF(ISBLANK(AV40),0,HoursMinutesAndSeconds(seconds(AV40)-seconds(AV39)-seconds(AV48))) -> 0 | AW56: =IF(ISBLANK(AW40),0,HoursMinutesAndSeconds(seconds(AW40)-seconds(AW39)-seconds(AW48))) -> 0 | AX56: =IF(ISBLANK(AX40),0,HoursMinutesAndSeconds(seconds(AX40)-seconds(AX39)-seconds(AX48))) -> 0 | AY56: =IF(ISBLANK(AY40),0,HoursMinutesAndSeconds(seconds(AY40)-seconds(AY39)-seconds(AY48))) -> 0 | AZ56: =IF(ISBLANK(AZ40),0,HoursMinutesAndSeconds(seconds(AZ40)-seconds(AZ39)-seconds(AZ48))) -> 0 | BA56: =IF(ISBLANK(BA40),0,HoursMinutesAndSeconds(seconds(BA40)-seconds(BA39)-seconds(BA48))) -> 0 | BB56: =IF(ISBLANK(BB40),0,HoursMinutesAndSeconds(seconds(BB40)-seconds(BB39)-seconds(BB48))) -> 0 | BC56: =IF(ISBLANK(BC40),0,HoursMinutesAndSeconds(seconds(BC40)-seconds(BC39)-seconds(BC48))) -> 0 | BD56: =IF(ISBLANK(BD40),0,HoursMinutesAndSeconds(seconds(BD40)-seconds(BD39)-seconds(BD48))) -> 0 | BE56: =IF(ISBLANK(BE40),0,HoursMinutesAndSeconds(seconds(BE40)-seconds(BE39)-seconds(BE48))) -> 0 | BF56: =IF(ISBLANK(BF40),0,HoursMinutesAndSeconds(seconds(BF40)-seconds(BF39)-seconds(BF48))) -> 0 | BG56: =IF(ISBLANK(BG40),0,HoursMinutesAndSeconds(seconds(BG40)-seconds(BG39)-seconds(BG48))) -> 0 | BH56: =IF(ISBLANK(BH40),0,HoursMinutesAndSeconds(seconds(BH40)-seconds(BH39)-seconds(BH48))) -> 0 | BI56: =IF(ISBLANK(BI40),0,HoursMinutesAndSeconds(seconds(BI40)-seconds(BI39)-seconds(BI48))) -> 0 | BJ56: =IF(ISBLANK(BJ40),0,HoursMinutesAndSeconds(seconds(BJ40)-seconds(BJ39)-seconds(BJ48))) -> 0
B57: CP7 | C57: =IF(ISBLANK(C41),0,HoursMinutesAndSeconds(seconds(C41)-seconds(C40)-seconds(C49))) -> 0 | D57: =IF(ISBLANK(D41),0,HoursMinutesAndSeconds(seconds(D41)-seconds(D40)-seconds(D49))) -> 0 | E57: =IF(ISBLANK(E41),0,HoursMinutesAndSeconds(seconds(E41)-seconds(E40)-seconds(E49))) -> 0 | F57: =IF(ISBLANK(F41),0,HoursMinutesAndSeconds(seconds(F41)-seconds(F40)-seconds(F49))) -> 0 | G57: =IF(ISBLANK(G41),0,HoursMinutesAndSeconds(seconds(G41)-seconds(G40)-seconds(G49))) -> 0 | H57: =IF(ISBLANK(H41),0,HoursMinutesAndSeconds(seconds(H41)-seconds(H40)-seconds(H49))) -> 0 | I57: =IF(ISBLANK(I41),0,HoursMinutesAndSeconds(seconds(I41)-seconds(I40)-seconds(I49))) -> 0 | J57: =IF(ISBLANK(J41),0,HoursMinutesAndSeconds(seconds(J41)-seconds(J40)-seconds(J49))) -> 0 | K57: =IF(ISBLANK(K41),0,HoursMinutesAndSeconds(seconds(K41)-seconds(K40)-seconds(K49))) -> 0 | L57: =IF(ISBLANK(L41),0,HoursMinutesAndSeconds(seconds(L41)-seconds(L40)-seconds(L49))) -> 0 | M57: =IF(ISBLANK(M41),0,HoursMinutesAndSeconds(seconds(M41)-seconds(M40)-seconds(M49))) -> 0 | N57: =IF(ISBLANK(N41),0,HoursMinutesAndSeconds(seconds(N41)-seconds(N40)-seconds(N49))) -> 0 | O57: =IF(ISBLANK(O41),0,HoursMinutesAndSeconds(seconds(O41)-seconds(O40)-seconds(O49))) -> 0 | P57: =IF(ISBLANK(P41),0,HoursMinutesAndSeconds(seconds(P41)-seconds(P40)-seconds(P49))) -> 0 | Q57: =IF(ISBLANK(Q41),0,HoursMinutesAndSeconds(seconds(Q41)-seconds(Q40)-seconds(Q49))) -> 0 | R57: =IF(ISBLANK(R41),0,HoursMinutesAndSeconds(seconds(R41)-seconds(R40)-seconds(R49))) -> 0 | S57: =IF(ISBLANK(S41),0,HoursMinutesAndSeconds(seconds(S41)-seconds(S40)-seconds(S49))) -> 0 | T57: =IF(ISBLANK(T41),0,HoursMinutesAndSeconds(seconds(T41)-seconds(T40)-seconds(T49))) -> 0 | U57: =IF(ISBLANK(U41),0,HoursMinutesAndSeconds(seconds(U41)-seconds(U40)-seconds(U49))) -> 0 | V57: =IF(ISBLANK(V41),0,HoursMinutesAndSeconds(seconds(V41)-seconds(V40)-seconds(V49))) -> 0 | W57: =IF(ISBLANK(W41),0,HoursMinutesAndSeconds(seconds(W41)-seconds(W40)-seconds(W49))) -> 0 | X57: =IF(ISBLANK(X41),0,HoursMinutesAndSeconds(seconds(X41)-seconds(X40)-seconds(X49))) -> 0 | Y57: =IF(ISBLANK(Y41),0,HoursMinutesAndSeconds(seconds(Y41)-seconds(Y40)-seconds(Y49))) -> 0 | Z57: =IF(ISBLANK(Z41),0,HoursMinutesAndSeconds(seconds(Z41)-seconds(Z40)-seconds(Z49))) -> 0 | AA57: =IF(ISBLANK(AA41),0,HoursMinutesAndSeconds(seconds(AA41)-seconds(AA40)-seconds(AA49))) -> 0 | AB57: =IF(ISBLANK(AB41),0,HoursMinutesAndSeconds(seconds(AB41)-seconds(AB40)-seconds(AB49))) -> 0 | AC57: =IF(ISBLANK(AC41),0,HoursMinutesAndSeconds(seconds(AC41)-seconds(AC40)-seconds(AC49))) -> 0 | AD57: =IF(ISBLANK(AD41),0,HoursMinutesAndSeconds(seconds(AD41)-seconds(AD40)-seconds(AD49))) -> 0 | AE57: =IF(ISBLANK(AE41),0,HoursMinutesAndSeconds(seconds(AE41)-seconds(AE40)-seconds(AE49))) -> 0 | AF57: =IF(ISBLANK(AF41),0,HoursMinutesAndSeconds(seconds(AF41)-seconds(AF40)-seconds(AF49))) -> 0 | AG57: =IF(ISBLANK(AG41),0,HoursMinutesAndSeconds(seconds(AG41)-seconds(AG40)-seconds(AG49))) -> 0 | AH57: =IF(ISBLANK(AH41),0,HoursMinutesAndSeconds(seconds(AH41)-seconds(AH40)-seconds(AH49))) -> 0 | AI57: =IF(ISBLANK(AI41),0,HoursMinutesAndSeconds(seconds(AI41)-seconds(AI40)-seconds(AI49))) -> 0 | AJ57: =IF(ISBLANK(AJ41),0,HoursMinutesAndSeconds(seconds(AJ41)-seconds(AJ40)-seconds(AJ49))) -> 0 | AK57: =IF(ISBLANK(AK41),0,HoursMinutesAndSeconds(seconds(AK41)-seconds(AK40)-seconds(AK49))) -> 0 | AL57: =IF(ISBLANK(AL41),0,HoursMinutesAndSeconds(seconds(AL41)-seconds(AL40)-seconds(AL49))) -> 0 | AM57: =IF(ISBLANK(AM41),0,HoursMinutesAndSeconds(seconds(AM41)-seconds(AM40)-seconds(AM49))) -> 0 | AN57: =IF(ISBLANK(AN41),0,HoursMinutesAndSeconds(seconds(AN41)-seconds(AN40)-seconds(AN49))) -> 0 | AO57: =IF(ISBLANK(AO41),0,HoursMinutesAndSeconds(seconds(AO41)-seconds(AO40)-seconds(AO49))) -> 0 | AP57: =IF(ISBLANK(AP41),0,HoursMinutesAndSeconds(seconds(AP41)-seconds(AP40)-seconds(AP49))) -> 0 | AQ57: =IF(ISBLANK(AQ41),0,HoursMinutesAndSeconds(seconds(AQ41)-seconds(AQ40)-seconds(AQ49))) -> 0 | AR57: =IF(ISBLANK(AR41),0,HoursMinutesAndSeconds(seconds(AR41)-seconds(AR40)-seconds(AR49))) -> 0 | AS57: =IF(ISBLANK(AS41),0,HoursMinutesAndSeconds(seconds(AS41)-seconds(AS40)-seconds(AS49))) -> 0 | AT57: =IF(ISBLANK(AT41),0,HoursMinutesAndSeconds(seconds(AT41)-seconds(AT40)-seconds(AT49))) -> 0 | AU57: =IF(ISBLANK(AU41),0,HoursMinutesAndSeconds(seconds(AU41)-seconds(AU40)-seconds(AU49))) -> 0 | AV57: =IF(ISBLANK(AV41),0,HoursMinutesAndSeconds(seconds(AV41)-seconds(AV40)-seconds(AV49))) -> 0 | AW57: =IF(ISBLANK(AW41),0,HoursMinutesAndSeconds(seconds(AW41)-seconds(AW40)-seconds(AW49))) -> 0 | AX57: =IF(ISBLANK(AX41),0,HoursMinutesAndSeconds(seconds(AX41)-seconds(AX40)-seconds(AX49))) -> 0 | AY57: =IF(ISBLANK(AY41),0,HoursMinutesAndSeconds(seconds(AY41)-seconds(AY40)-seconds(AY49))) -> 0 | AZ57: =IF(ISBLANK(AZ41),0,HoursMinutesAndSeconds(seconds(AZ41)-seconds(AZ40)-seconds(AZ49))) -> 0 | BA57: =IF(ISBLANK(BA41),0,HoursMinutesAndSeconds(seconds(BA41)-seconds(BA40)-seconds(BA49))) -> 0 | BB57: =IF(ISBLANK(BB41),0,HoursMinutesAndSeconds(seconds(BB41)-seconds(BB40)-seconds(BB49))) -> 0 | BC57: =IF(ISBLANK(BC41),0,HoursMinutesAndSeconds(seconds(BC41)-seconds(BC40)-seconds(BC49))) -> 0 | BD57: =IF(ISBLANK(BD41),0,HoursMinutesAndSeconds(seconds(BD41)-seconds(BD40)-seconds(BD49))) -> 0 | BE57: =IF(ISBLANK(BE41),0,HoursMinutesAndSeconds(seconds(BE41)-seconds(BE40)-seconds(BE49))) -> 0 | BF57: =IF(ISBLANK(BF41),0,HoursMinutesAndSeconds(seconds(BF41)-seconds(BF40)-seconds(BF49))) -> 0 | BG57: =IF(ISBLANK(BG41),0,HoursMinutesAndSeconds(seconds(BG41)-seconds(BG40)-seconds(BG49))) -> 0 | BH57: =IF(ISBLANK(BH41),0,HoursMinutesAndSeconds(seconds(BH41)-seconds(BH40)-seconds(BH49))) -> 0 | BI57: =IF(ISBLANK(BI41),0,HoursMinutesAndSeconds(seconds(BI41)-seconds(BI40)-seconds(BI49))) -> 0 | BJ57: =IF(ISBLANK(BJ41),0,HoursMinutesAndSeconds(seconds(BJ41)-seconds(BJ40)-seconds(BJ49))) -> 0
B58: CP8 | C58: =IF(ISBLANK(C42),0,HoursMinutesAndSeconds(seconds(C42)-seconds(C41)-seconds(C50))) -> 0 | D58: =IF(ISBLANK(D42),0,HoursMinutesAndSeconds(seconds(D42)-seconds(D41)-seconds(D50))) -> 0 | E58: =IF(ISBLANK(E42),0,HoursMinutesAndSeconds(seconds(E42)-seconds(E41)-seconds(E50))) -> 0 | F58: =IF(ISBLANK(F42),0,HoursMinutesAndSeconds(seconds(F42)-seconds(F41)-seconds(F50))) -> 0 | G58: =IF(ISBLANK(G42),0,HoursMinutesAndSeconds(seconds(G42)-seconds(G41)-seconds(G50))) -> 0 | H58: =IF(ISBLANK(H42),0,HoursMinutesAndSeconds(seconds(H42)-seconds(H41)-seconds(H50))) -> 0 | I58: =IF(ISBLANK(I42),0,HoursMinutesAndSeconds(seconds(I42)-seconds(I41)-seconds(I50))) -> 0 | J58: =IF(ISBLANK(J42),0,HoursMinutesAndSeconds(seconds(J42)-seconds(J41)-seconds(J50))) -> 0 | K58: =IF(ISBLANK(K42),0,HoursMinutesAndSeconds(seconds(K42)-seconds(K41)-seconds(K50))) -> 0 | L58: =IF(ISBLANK(L42),0,HoursMinutesAndSeconds(seconds(L42)-seconds(L41)-seconds(L50))) -> 0 | M58: =IF(ISBLANK(M42),0,HoursMinutesAndSeconds(seconds(M42)-seconds(M41)-seconds(M50))) -> 0 | N58: =IF(ISBLANK(N42),0,HoursMinutesAndSeconds(seconds(N42)-seconds(N41)-seconds(N50))) -> 0 | O58: =IF(ISBLANK(O42),0,HoursMinutesAndSeconds(seconds(O42)-seconds(O41)-seconds(O50))) -> 0 | P58: =IF(ISBLANK(P42),0,HoursMinutesAndSeconds(seconds(P42)-seconds(P41)-seconds(P50))) -> 0 | Q58: =IF(ISBLANK(Q42),0,HoursMinutesAndSeconds(seconds(Q42)-seconds(Q41)-seconds(Q50))) -> 0 | R58: =IF(ISBLANK(R42),0,HoursMinutesAndSeconds(seconds(R42)-seconds(R41)-seconds(R50))) -> 0 | S58: =IF(ISBLANK(S42),0,HoursMinutesAndSeconds(seconds(S42)-seconds(S41)-seconds(S50))) -> 0 | T58: =IF(ISBLANK(T42),0,HoursMinutesAndSeconds(seconds(T42)-seconds(T41)-seconds(T50))) -> 0 | U58: =IF(ISBLANK(U42),0,HoursMinutesAndSeconds(seconds(U42)-seconds(U41)-seconds(U50))) -> 0 | V58: =IF(ISBLANK(V42),0,HoursMinutesAndSeconds(seconds(V42)-seconds(V41)-seconds(V50))) -> 0 | W58: =IF(ISBLANK(W42),0,HoursMinutesAndSeconds(seconds(W42)-seconds(W41)-seconds(W50))) -> 0 | X58: =IF(ISBLANK(X42),0,HoursMinutesAndSeconds(seconds(X42)-seconds(X41)-seconds(X50))) -> 0 | Y58: =IF(ISBLANK(Y42),0,HoursMinutesAndSeconds(seconds(Y42)-seconds(Y41)-seconds(Y50))) -> 0 | Z58: =IF(ISBLANK(Z42),0,HoursMinutesAndSeconds(seconds(Z42)-seconds(Z41)-seconds(Z50))) -> 0 | AA58: =IF(ISBLANK(AA42),0,HoursMinutesAndSeconds(seconds(AA42)-seconds(AA41)-seconds(AA50))) -> 0 | AB58: =IF(ISBLANK(AB42),0,HoursMinutesAndSeconds(seconds(AB42)-seconds(AB41)-seconds(AB50))) -> 0 | AC58: =IF(ISBLANK(AC42),0,HoursMinutesAndSeconds(seconds(AC42)-seconds(AC41)-seconds(AC50))) -> 0 | AD58: =IF(ISBLANK(AD42),0,HoursMinutesAndSeconds(seconds(AD42)-seconds(AD41)-seconds(AD50))) -> 0 | AE58: =IF(ISBLANK(AE42),0,HoursMinutesAndSeconds(seconds(AE42)-seconds(AE41)-seconds(AE50))) -> 0 | AF58: =IF(ISBLANK(AF42),0,HoursMinutesAndSeconds(seconds(AF42)-seconds(AF41)-seconds(AF50))) -> 0 | AG58: =IF(ISBLANK(AG42),0,HoursMinutesAndSeconds(seconds(AG42)-seconds(AG41)-seconds(AG50))) -> 0 | AH58: =IF(ISBLANK(AH42),0,HoursMinutesAndSeconds(seconds(AH42)-seconds(AH41)-seconds(AH50))) -> 0 | AI58: =IF(ISBLANK(AI42),0,HoursMinutesAndSeconds(seconds(AI42)-seconds(AI41)-seconds(AI50))) -> 0 | AJ58: =IF(ISBLANK(AJ42),0,HoursMinutesAndSeconds(seconds(AJ42)-seconds(AJ41)-seconds(AJ50))) -> 0 | AK58: =IF(ISBLANK(AK42),0,HoursMinutesAndSeconds(seconds(AK42)-seconds(AK41)-seconds(AK50))) -> 0 | AL58: =IF(ISBLANK(AL42),0,HoursMinutesAndSeconds(seconds(AL42)-seconds(AL41)-seconds(AL50))) -> 0 | AM58: =IF(ISBLANK(AM42),0,HoursMinutesAndSeconds(seconds(AM42)-seconds(AM41)-seconds(AM50))) -> 0 | AN58: =IF(ISBLANK(AN42),0,HoursMinutesAndSeconds(seconds(AN42)-seconds(AN41)-seconds(AN50))) -> 0 | AO58: =IF(ISBLANK(AO42),0,HoursMinutesAndSeconds(seconds(AO42)-seconds(AO41)-seconds(AO50))) -> 0 | AP58: =IF(ISBLANK(AP42),0,HoursMinutesAndSeconds(seconds(AP42)-seconds(AP41)-seconds(AP50))) -> 0 | AQ58: =IF(ISBLANK(AQ42),0,HoursMinutesAndSeconds(seconds(AQ42)-seconds(AQ41)-seconds(AQ50))) -> 0 | AR58: =IF(ISBLANK(AR42),0,HoursMinutesAndSeconds(seconds(AR42)-seconds(AR41)-seconds(AR50))) -> 0 | AS58: =IF(ISBLANK(AS42),0,HoursMinutesAndSeconds(seconds(AS42)-seconds(AS41)-seconds(AS50))) -> 0 | AT58: =IF(ISBLANK(AT42),0,HoursMinutesAndSeconds(seconds(AT42)-seconds(AT41)-seconds(AT50))) -> 0 | AU58: =IF(ISBLANK(AU42),0,HoursMinutesAndSeconds(seconds(AU42)-seconds(AU41)-seconds(AU50))) -> 0 | AV58: =IF(ISBLANK(AV42),0,HoursMinutesAndSeconds(seconds(AV42)-seconds(AV41)-seconds(AV50))) -> 0 | AW58: =IF(ISBLANK(AW42),0,HoursMinutesAndSeconds(seconds(AW42)-seconds(AW41)-seconds(AW50))) -> 0 | AX58: =IF(ISBLANK(AX42),0,HoursMinutesAndSeconds(seconds(AX42)-seconds(AX41)-seconds(AX50))) -> 0 | AY58: =IF(ISBLANK(AY42),0,HoursMinutesAndSeconds(seconds(AY42)-seconds(AY41)-seconds(AY50))) -> 0 | AZ58: =IF(ISBLANK(AZ42),0,HoursMinutesAndSeconds(seconds(AZ42)-seconds(AZ41)-seconds(AZ50))) -> 0 | BA58: =IF(ISBLANK(BA42),0,HoursMinutesAndSeconds(seconds(BA42)-seconds(BA41)-seconds(BA50))) -> 0 | BB58: =IF(ISBLANK(BB42),0,HoursMinutesAndSeconds(seconds(BB42)-seconds(BB41)-seconds(BB50))) -> 0 | BC58: =IF(ISBLANK(BC42),0,HoursMinutesAndSeconds(seconds(BC42)-seconds(BC41)-seconds(BC50))) -> 0 | BD58: =IF(ISBLANK(BD42),0,HoursMinutesAndSeconds(seconds(BD42)-seconds(BD41)-seconds(BD50))) -> 0 | BE58: =IF(ISBLANK(BE42),0,HoursMinutesAndSeconds(seconds(BE42)-seconds(BE41)-seconds(BE50))) -> 0 | BF58: =IF(ISBLANK(BF42),0,HoursMinutesAndSeconds(seconds(BF42)-seconds(BF41)-seconds(BF50))) -> 0 | BG58: =IF(ISBLANK(BG42),0,HoursMinutesAndSeconds(seconds(BG42)-seconds(BG41)-seconds(BG50))) -> 0 | BH58: =IF(ISBLANK(BH42),0,HoursMinutesAndSeconds(seconds(BH42)-seconds(BH41)-seconds(BH50))) -> 0 | BI58: =IF(ISBLANK(BI42),0,HoursMinutesAndSeconds(seconds(BI42)-seconds(BI41)-seconds(BI50))) -> 0 | BJ58: =IF(ISBLANK(BJ42),0,HoursMinutesAndSeconds(seconds(BJ42)-seconds(BJ41)-seconds(BJ50))) -> 0
A59: Actual Total Run Time | C59: =HoursMinutesAndSeconds(C60) -> 13313 | D59: =HoursMinutesAndSeconds(D60) -> 0 | E59: 15625 | F59: 14537 | G59: =HoursMinutesAndSeconds(G60) -> 20505 | H59: =HoursMinutesAndSeconds(H60) -> 13354 | I59: 14806 | J59: 14234 | K59: =HoursMinutesAndSeconds(K60) -> 13202 | L59: =HoursMinutesAndSeconds(L60) -> 14843 | M59: =HoursMinutesAndSeconds(M60) -> 0 | N59: =HoursMinutesAndSeconds(N60) -> 0 | O59: =HoursMinutesAndSeconds(O60) -> 0 | P59: =HoursMinutesAndSeconds(P60) -> 0 | Q59: 0 | R59: =HoursMinutesAndSeconds(R60) -> 0 | S59: =HoursMinutesAndSeconds(S60) -> 0 | T59: =HoursMinutesAndSeconds(T60) -> 0 | U59: =HoursMinutesAndSeconds(U60) -> 0 | V59: =HoursMinutesAndSeconds(V60) -> 0 | W59: =HoursMinutesAndSeconds(W60) -> 0 | X59: 0 | Y59: =HoursMinutesAndSeconds(Y60) -> 0 | Z59: =HoursMinutesAndSeconds(Z60) -> 0 | AA59: =HoursMinutesAndSeconds(AA60) -> 0 | AB59: =HoursMinutesAndSeconds(AB60) -> 0 | AC59: =HoursMinutesAndSeconds(AC60) -> 0 | AD59: =HoursMinutesAndSeconds(AD60) -> 0 | AE59: 0 | AF59: =HoursMinutesAndSeconds(AF60) -> 0 | AG59: =HoursMinutesAndSeconds(AG60) -> 0 | AH59: =HoursMinutesAndSeconds(AH60) -> 0 | AI59: =HoursMinutesAndSeconds(AI60) -> 0 | AJ59: =HoursMinutesAndSeconds(AJ60) -> 0 | AK59: =HoursMinutesAndSeconds(AK60) -> 0 | AL59: 0 | AM59: =HoursMinutesAndSeconds(AM60) -> 0 | AN59: =HoursMinutesAndSeconds(AN60) -> 0 | AO59: =HoursMinutesAndSeconds(AO60) -> 0 | AP59: =HoursMinutesAndSeconds(AP60) -> 0 | AQ59: =HoursMinutesAndSeconds(AQ60) -> 0 | AR59: =HoursMinutesAndSeconds(AR60) -> 0 | AS59: 0 | AT59: =HoursMinutesAndSeconds(AT60) -> 0 | AU59: =HoursMinutesAndSeconds(AU60) -> 0 | AV59: =HoursMinutesAndSeconds(AV60) -> 0 | AW59: =HoursMinutesAndSeconds(AW60) -> 0 | AX59: =HoursMinutesAndSeconds(AX60) -> 0 | AY59: =HoursMinutesAndSeconds(AY60) -> 0 | AZ59: 0 | BA59: =HoursMinutesAndSeconds(BA60) -> 0 | BB59: =HoursMinutesAndSeconds(BB60) -> 0 | BC59: =HoursMinutesAndSeconds(BC60) -> 0 | BD59: =HoursMinutesAndSeconds(BD60) -> 0 | BE59: =HoursMinutesAndSeconds(BE60) -> 0 | BF59: =HoursMinutesAndSeconds(BF60) -> 0 | BG59: 0 | BH59: 0 | BI59: 0 | BJ59: =HoursMinutesAndSeconds(BJ60) -> 0
A60: Total Actual Seconds | C60: =seconds(C51)+seconds(C52)+seconds(C53)+seconds(C54)+seconds(C55)+seconds(C56)+seconds(C57)+seconds(C58) -> 5593 | D60: =seconds(D51)+seconds(D52)+seconds(D53)+seconds(D54)+seconds(D55)+seconds(D56)+seconds(D57)+seconds(D58) -> 0 | E60: 6985 | F60: 6337 | G60: =seconds(G51)+seconds(G52)+seconds(G53)+seconds(G54)+seconds(G55)+seconds(G56)+seconds(G57)+seconds(G58) -> 7505 | H60: 5634 | I60: 6486 | J60: 6154 | K60: 5522 | L60: 6523 | M60: 0 | N60: =seconds(N51)+seconds(N52)+seconds(N53)+seconds(N54)+seconds(N55)+seconds(N56)+seconds(N57)+seconds(N58) -> 0 | O60: 0 | P60: 0 | Q60: 0 | R60: 0 | S60: 0 | T60: 0 | U60: 0 | V60: 0 | W60: 0 | X60: 0 | Y60: 0 | Z60: 0 | AA60: 0 | AB60: 0 | AC60: 0 | AD60: 0 | AE60: 0 | AF60: 0 | AG60: 0 | AH60: 0 | AI60: 0 | AJ60: 0 | AK60: 0 | AL60: 0 | AM60: 0 | AN60: 0 | AO60: 0 | AP60: 0 | AQ60: 0 | AR60: 0 | AS60: 0 | AT60: 0 | AU60: 0 | AV60: 0 | AW60: 0 | AX60: 0 | AY60: 0 | AZ60: 0 | BA60: 0 | BB60: 0 | BC60: 0 | BD60: 0 | BE60: 0 | BF60: 0 | BG60: =seconds(BG51)+seconds(BG52)+seconds(BG53)+seconds(BG54)+seconds(BG55)+seconds(BG56)+seconds(BG57)+seconds(BG58) -> 0 | BH60: 0 | BI60: 0 | BJ60: 0
A61: Seconds of Error | B61: CP1 | C61: =IF(ISBLANK(C35),0,seconds(C23)-seconds(C51)) -> -50 | D61: =IF(ISBLANK(D35),0,seconds(D23)-seconds(D51)) -> 0 | E61: =IF(ISBLANK(E35),0,seconds(E23)-seconds(E51)) -> -21 | F61: =IF(ISBLANK(F35),0,seconds(F23)-seconds(F51)) -> 0 | G61: =IF(ISBLANK(G35),0,seconds(G23)-seconds(G51)) -> 0 | H61: =IF(ISBLANK(H35),0,seconds(H23)-seconds(H51)) -> -38 | I61: =IF(ISBLANK(I35),0,seconds(I23)-seconds(I51)) -> 23 | J61: =IF(ISBLANK(J35),0,seconds(J23)-seconds(J51)) -> 15 | K61: =IF(ISBLANK(K35),0,seconds(K23)-seconds(K51)) -> -43 | L61: =IF(ISBLANK(L35),0,seconds(L23)-seconds(L51)) -> 17 | M61: =IF(ISBLANK(M35),0,seconds(M23)-seconds(M51)) -> 0 | N61: =IF(ISBLANK(N35),0,seconds(N23)-seconds(N51)) -> 0 | O61: =IF(ISBLANK(O35),0,seconds(O23)-seconds(O51)) -> 0 | P61: =IF(ISBLANK(P35),0,seconds(P23)-seconds(P51)) -> 0 | Q61: =IF(ISBLANK(Q35),0,seconds(Q23)-seconds(Q51)) -> 0 | R61: =IF(ISBLANK(R35),0,seconds(R23)-seconds(R51)) -> 0 | S61: =IF(ISBLANK(S35),0,seconds(S23)-seconds(S51)) -> 0 | T61: =IF(ISBLANK(T35),0,seconds(T23)-seconds(T51)) -> 0 | U61: =IF(ISBLANK(U35),0,seconds(U23)-seconds(U51)) -> 0 | V61: =IF(ISBLANK(V35),0,seconds(V23)-seconds(V51)) -> 0 | W61: =IF(ISBLANK(W35),0,seconds(W23)-seconds(W51)) -> 0 | X61: =IF(ISBLANK(X35),0,seconds(X23)-seconds(X51)) -> 0 | Y61: =IF(ISBLANK(Y35),0,seconds(Y23)-seconds(Y51)) -> 0 | Z61: =IF(ISBLANK(Z35),0,seconds(Z23)-seconds(Z51)) -> 0 | AA61: =IF(ISBLANK(AA35),0,seconds(AA23)-seconds(AA51)) -> 0 | AB61: =IF(ISBLANK(AB35),0,seconds(AB23)-seconds(AB51)) -> 0 | AC61: =IF(ISBLANK(AC35),0,seconds(AC23)-seconds(AC51)) -> 0 | AD61: =IF(ISBLANK(AD35),0,seconds(AD23)-seconds(AD51)) -> 0 | AE61: =IF(ISBLANK(AE35),0,seconds(AE23)-seconds(AE51)) -> 0 | AF61: =IF(ISBLANK(AF35),0,seconds(AF23)-seconds(AF51)) -> 0 | AG61: =IF(ISBLANK(AG35),0,seconds(AG23)-seconds(AG51)) -> 0 | AH61: =IF(ISBLANK(AH35),0,seconds(AH23)-seconds(AH51)) -> 0 | AI61: =IF(ISBLANK(AI35),0,seconds(AI23)-seconds(AI51)) -> 0 | AJ61: =IF(ISBLANK(AJ35),0,seconds(AJ23)-seconds(AJ51)) -> 0 | AK61: =IF(ISBLANK(AK35),0,seconds(AK23)-seconds(AK51)) -> 0 | AL61: =IF(ISBLANK(AL35),0,seconds(AL23)-seconds(AL51)) -> 0 | AM61: =IF(ISBLANK(AM35),0,seconds(AM23)-seconds(AM51)) -> 0 | AN61: =IF(ISBLANK(AN35),0,seconds(AN23)-seconds(AN51)) -> 0 | AO61: =IF(ISBLANK(AO35),0,seconds(AO23)-seconds(AO51)) -> 0 | AP61: =IF(ISBLANK(AP35),0,seconds(AP23)-seconds(AP51)) -> 0 | AQ61: =IF(ISBLANK(AQ35),0,seconds(AQ23)-seconds(AQ51)) -> 0 | AR61: =IF(ISBLANK(AR35),0,seconds(AR23)-seconds(AR51)) -> 0 | AS61: =IF(ISBLANK(AS35),0,seconds(AS23)-seconds(AS51)) -> 0 | AT61: =IF(ISBLANK(AT35),0,seconds(AT23)-seconds(AT51)) -> 0 | AU61: =IF(ISBLANK(AU35),0,seconds(AU23)-seconds(AU51)) -> 0 | AV61: =IF(ISBLANK(AV35),0,seconds(AV23)-seconds(AV51)) -> 0 | AW61: =IF(ISBLANK(AW35),0,seconds(AW23)-seconds(AW51)) -> 0 | AX61: =IF(ISBLANK(AX35),0,seconds(AX23)-seconds(AX51)) -> 0 | AY61: =IF(ISBLANK(AY35),0,seconds(AY23)-seconds(AY51)) -> 0 | AZ61: =IF(ISBLANK(AZ35),0,seconds(AZ23)-seconds(AZ51)) -> 0 | BA61: =IF(ISBLANK(BA35),0,seconds(BA23)-seconds(BA51)) -> 0 | BB61: =IF(ISBLANK(BB35),0,seconds(BB23)-seconds(BB51)) -> 0 | BC61: =IF(ISBLANK(BC35),0,seconds(BC23)-seconds(BC51)) -> 0 | BD61: =IF(ISBLANK(BD35),0,seconds(BD23)-seconds(BD51)) -> 0 | BE61: =IF(ISBLANK(BE35),0,seconds(BE23)-seconds(BE51)) -> 0 | BF61: =IF(ISBLANK(BF35),0,seconds(BF23)-seconds(BF51)) -> 0 | BG61: =IF(ISBLANK(BG35),0,seconds(BG23)-seconds(BG51)) -> 0 | BH61: =IF(ISBLANK(BH35),0,seconds(BH23)-seconds(BH51)) -> 0 | BI61: =IF(ISBLANK(BI35),0,seconds(BI23)-seconds(BI51)) -> 0 | BJ61: =IF(ISBLANK(BJ35),0,seconds(BJ23)-seconds(BJ51)) -> 0
B62: CP2 | C62: =IF(ISBLANK(C36),0,seconds(C24)-seconds(C52)) -> -17 | D62: =IF(ISBLANK(D36),0,seconds(D24)-seconds(D52)) -> 0 | E62: =IF(ISBLANK(E36),0,seconds(E24)-seconds(E52)) -> 59 | F62: =IF(ISBLANK(F36),0,seconds(F24)-seconds(F52)) -> -3 | G62: =IF(ISBLANK(G36),0,seconds(G24)-seconds(G52)) -> -11 | H62: =IF(ISBLANK(H36),0,seconds(H24)-seconds(H52)) -> -122 | I62: =IF(ISBLANK(I36),0,seconds(I24)-seconds(I52)) -> -1 | J62: =IF(ISBLANK(J36),0,seconds(J24)-seconds(J52)) -> -1 | K62: =IF(ISBLANK(K36),0,seconds(K24)-seconds(K52)) -> 29 | L62: =IF(ISBLANK(L36),0,seconds(L24)-seconds(L52)) -> -61 | M62: =IF(ISBLANK(M36),0,seconds(M24)-seconds(M52)) -> 0 | N62: =IF(ISBLANK(N36),0,seconds(N24)-seconds(N52)) -> 0 | O62: =IF(ISBLANK(O36),0,seconds(O24)-seconds(O52)) -> 0 | P62: =IF(ISBLANK(P36),0,seconds(P24)-seconds(P52)) -> 0 | Q62: =IF(ISBLANK(Q36),0,seconds(Q24)-seconds(Q52)) -> 0 | R62: =IF(ISBLANK(R36),0,seconds(R24)-seconds(R52)) -> 0 | S62: =IF(ISBLANK(S36),0,seconds(S24)-seconds(S52)) -> 0 | T62: =IF(ISBLANK(T36),0,seconds(T24)-seconds(T52)) -> 0 | U62: =IF(ISBLANK(U36),0,seconds(U24)-seconds(U52)) -> 0 | V62: =IF(ISBLANK(V36),0,seconds(V24)-seconds(V52)) -> 0 | W62: =IF(ISBLANK(W36),0,seconds(W24)-seconds(W52)) -> 0 | X62: =IF(ISBLANK(X36),0,seconds(X24)-seconds(X52)) -> 0 | Y62: =IF(ISBLANK(Y36),0,seconds(Y24)-seconds(Y52)) -> 0 | Z62: =IF(ISBLANK(Z36),0,seconds(Z24)-seconds(Z52)) -> 0 | AA62: =IF(ISBLANK(AA36),0,seconds(AA24)-seconds(AA52)) -> 0 | AB62: =IF(ISBLANK(AB36),0,seconds(AB24)-seconds(AB52)) -> 0 | AC62: =IF(ISBLANK(AC36),0,seconds(AC24)-seconds(AC52)) -> 0 | AD62: =IF(ISBLANK(AD36),0,seconds(AD24)-seconds(AD52)) -> 0 | AE62: =IF(ISBLANK(AE36),0,seconds(AE24)-seconds(AE52)) -> 0 | AF62: =IF(ISBLANK(AF36),0,seconds(AF24)-seconds(AF52)) -> 0 | AG62: =IF(ISBLANK(AG36),0,seconds(AG24)-seconds(AG52)) -> 0 | AH62: =IF(ISBLANK(AH36),0,seconds(AH24)-seconds(AH52)) -> 0 | AI62: =IF(ISBLANK(AI36),0,seconds(AI24)-seconds(AI52)) -> 0 | AJ62: =IF(ISBLANK(AJ36),0,seconds(AJ24)-seconds(AJ52)) -> 0 | AK62: =IF(ISBLANK(AK36),0,seconds(AK24)-seconds(AK52)) -> 0 | AL62: =IF(ISBLANK(AL36),0,seconds(AL24)-seconds(AL52)) -> 0 | AM62: =IF(ISBLANK(AM36),0,seconds(AM24)-seconds(AM52)) -> 0 | AN62: =IF(ISBLANK(AN36),0,seconds(AN24)-seconds(AN52)) -> 0 | AO62: =IF(ISBLANK(AO36),0,seconds(AO24)-seconds(AO52)) -> 0 | AP62: =IF(ISBLANK(AP36),0,seconds(AP24)-seconds(AP52)) -> 0 | AQ62: =IF(ISBLANK(AQ36),0,seconds(AQ24)-seconds(AQ52)) -> 0 | AR62: =IF(ISBLANK(AR36),0,seconds(AR24)-seconds(AR52)) -> 0 | AS62: =IF(ISBLANK(AS36),0,seconds(AS24)-seconds(AS52)) -> 0 | AT62: =IF(ISBLANK(AT36),0,seconds(AT24)-seconds(AT52)) -> 0 | AU62: =IF(ISBLANK(AU36),0,seconds(AU24)-seconds(AU52)) -> 0 | AV62: =IF(ISBLANK(AV36),0,seconds(AV24)-seconds(AV52)) -> 0 | AW62: =IF(ISBLANK(AW36),0,seconds(AW24)-seconds(AW52)) -> 0 | AX62: =IF(ISBLANK(AX36),0,seconds(AX24)-seconds(AX52)) -> 0 | AY62: =IF(ISBLANK(AY36),0,seconds(AY24)-seconds(AY52)) -> 0 | AZ62: =IF(ISBLANK(AZ36),0,seconds(AZ24)-seconds(AZ52)) -> 0 | BA62: =IF(ISBLANK(BA36),0,seconds(BA24)-seconds(BA52)) -> 0 | BB62: =IF(ISBLANK(BB36),0,seconds(BB24)-seconds(BB52)) -> 0 | BC62: =IF(ISBLANK(BC36),0,seconds(BC24)-seconds(BC52)) -> 0 | BD62: =IF(ISBLANK(BD36),0,seconds(BD24)-seconds(BD52)) -> 0 | BE62: =IF(ISBLANK(BE36),0,seconds(BE24)-seconds(BE52)) -> 0 | BF62: =IF(ISBLANK(BF36),0,seconds(BF24)-seconds(BF52)) -> 0 | BG62: =IF(ISBLANK(BG36),0,seconds(BG24)-seconds(BG52)) -> 0 | BH62: =IF(ISBLANK(BH36),0,seconds(BH24)-seconds(BH52)) -> 0 | BI62: =IF(ISBLANK(BI36),0,seconds(BI24)-seconds(BI52)) -> 0 | BJ62: =IF(ISBLANK(BJ36),0,seconds(BJ24)-seconds(BJ52)) -> 0
B63: CP3 | C63: =IF(ISBLANK(C37),0,seconds(C25)-seconds(C53)) -> -11 | D63: =IF(ISBLANK(D37),0,seconds(D25)-seconds(D53)) -> 0 | E63: =IF(ISBLANK(E37),0,seconds(E25)-seconds(E53)) -> 30 | F63: =IF(ISBLANK(F37),0,seconds(F25)-seconds(F53)) -> -5 | G63: =IF(ISBLANK(G37),0,seconds(G25)-seconds(G53)) -> -20 | H63: =IF(ISBLANK(H37),0,seconds(H25)-seconds(H53)) -> 38 | I63: =IF(ISBLANK(I37),0,seconds(I25)-seconds(I53)) -> 17 | J63: =IF(ISBLANK(J37),0,seconds(J25)-seconds(J53)) -> 43 | K63: =IF(ISBLANK(K37),0,seconds(K25)-seconds(K53)) -> -6 | L63: =IF(ISBLANK(L37),0,seconds(L25)-seconds(L53)) -> 5 | M63: =IF(ISBLANK(M37),0,seconds(M25)-seconds(M53)) -> 0 | N63: =IF(ISBLANK(N37),0,seconds(N25)-seconds(N53)) -> 0 | O63: =IF(ISBLANK(O37),0,seconds(O25)-seconds(O53)) -> 0 | P63: =IF(ISBLANK(P37),0,seconds(P25)-seconds(P53)) -> 0 | Q63: =IF(ISBLANK(Q37),0,seconds(Q25)-seconds(Q53)) -> 0 | R63: =IF(ISBLANK(R37),0,seconds(R25)-seconds(R53)) -> 0 | S63: =IF(ISBLANK(S37),0,seconds(S25)-seconds(S53)) -> 0 | T63: =IF(ISBLANK(T37),0,seconds(T25)-seconds(T53)) -> 0 | U63: =IF(ISBLANK(U37),0,seconds(U25)-seconds(U53)) -> 0 | V63: =IF(ISBLANK(V37),0,seconds(V25)-seconds(V53)) -> 0 | W63: =IF(ISBLANK(W37),0,seconds(W25)-seconds(W53)) -> 0 | X63: =IF(ISBLANK(X37),0,seconds(X25)-seconds(X53)) -> 0 | Y63: =IF(ISBLANK(Y37),0,seconds(Y25)-seconds(Y53)) -> 0 | Z63: =IF(ISBLANK(Z37),0,seconds(Z25)-seconds(Z53)) -> 0 | AA63: =IF(ISBLANK(AA37),0,seconds(AA25)-seconds(AA53)) -> 0 | AB63: =IF(ISBLANK(AB37),0,seconds(AB25)-seconds(AB53)) -> 0 | AC63: =IF(ISBLANK(AC37),0,seconds(AC25)-seconds(AC53)) -> 0 | AD63: =IF(ISBLANK(AD37),0,seconds(AD25)-seconds(AD53)) -> 0 | AE63: =IF(ISBLANK(AE37),0,seconds(AE25)-seconds(AE53)) -> 0 | AF63: =IF(ISBLANK(AF37),0,seconds(AF25)-seconds(AF53)) -> 0 | AG63: =IF(ISBLANK(AG37),0,seconds(AG25)-seconds(AG53)) -> 0 | AH63: =IF(ISBLANK(AH37),0,seconds(AH25)-seconds(AH53)) -> 0 | AI63: =IF(ISBLANK(AI37),0,seconds(AI25)-seconds(AI53)) -> 0 | AJ63: =IF(ISBLANK(AJ37),0,seconds(AJ25)-seconds(AJ53)) -> 0 | AK63: =IF(ISBLANK(AK37),0,seconds(AK25)-seconds(AK53)) -> 0 | AL63: =IF(ISBLANK(AL37),0,seconds(AL25)-seconds(AL53)) -> 0 | AM63: =IF(ISBLANK(AM37),0,seconds(AM25)-seconds(AM53)) -> 0 | AN63: =IF(ISBLANK(AN37),0,seconds(AN25)-seconds(AN53)) -> 0 | AO63: =IF(ISBLANK(AO37),0,seconds(AO25)-seconds(AO53)) -> 0 | AP63: =IF(ISBLANK(AP37),0,seconds(AP25)-seconds(AP53)) -> 0 | AQ63: =IF(ISBLANK(AQ37),0,seconds(AQ25)-seconds(AQ53)) -> 0 | AR63: =IF(ISBLANK(AR37),0,seconds(AR25)-seconds(AR53)) -> 0 | AS63: =IF(ISBLANK(AS37),0,seconds(AS25)-seconds(AS53)) -> 0 | AT63: =IF(ISBLANK(AT37),0,seconds(AT25)-seconds(AT53)) -> 0 | AU63: =IF(ISBLANK(AU37),0,seconds(AU25)-seconds(AU53)) -> 0 | AV63: =IF(ISBLANK(AV37),0,seconds(AV25)-seconds(AV53)) -> 0 | AW63: =IF(ISBLANK(AW37),0,seconds(AW25)-seconds(AW53)) -> 0 | AX63: =IF(ISBLANK(AX37),0,seconds(AX25)-seconds(AX53)) -> 0 | AY63: =IF(ISBLANK(AY37),0,seconds(AY25)-seconds(AY53)) -> 0 | AZ63: =IF(ISBLANK(AZ37),0,seconds(AZ25)-seconds(AZ53)) -> 0 | BA63: =IF(ISBLANK(BA37),0,seconds(BA25)-seconds(BA53)) -> 0 | BB63: =IF(ISBLANK(BB37),0,seconds(BB25)-seconds(BB53)) -> 0 | BC63: =IF(ISBLANK(BC37),0,seconds(BC25)-seconds(BC53)) -> 0 | BD63: =IF(ISBLANK(BD37),0,seconds(BD25)-seconds(BD53)) -> 0 | BE63: =IF(ISBLANK(BE37),0,seconds(BE25)-seconds(BE53)) -> 0 | BF63: =IF(ISBLANK(BF37),0,seconds(BF25)-seconds(BF53)) -> 0 | BG63: =IF(ISBLANK(BG37),0,seconds(BG25)-seconds(BG53)) -> 0 | BH63: =IF(ISBLANK(BH37),0,seconds(BH25)-seconds(BH53)) -> 0 | BI63: =IF(ISBLANK(BI37),0,seconds(BI25)-seconds(BI53)) -> 0 | BJ63: =IF(ISBLANK(BJ37),0,seconds(BJ25)-seconds(BJ53)) -> 0
B64: CP4 | C64: =IF(ISBLANK(C38),0,seconds(C26)-seconds(C54)) -> 17 | D64: =IF(ISBLANK(D38),0,seconds(D26)-seconds(D54)) -> 0 | E64: =IF(ISBLANK(E38),0,seconds(E26)-seconds(E54)) -> -11 | F64: =IF(ISBLANK(F38),0,seconds(F26)-seconds(F54)) -> -8 | G64: =IF(ISBLANK(G38),0,seconds(G26)-seconds(G54)) -> 10 | H64: =IF(ISBLANK(H38),0,seconds(H26)-seconds(H54)) -> -12 | I64: =IF(ISBLANK(I38),0,seconds(I26)-seconds(I54)) -> -3 | J64: =IF(ISBLANK(J38),0,seconds(J26)-seconds(J54)) -> 3 | K64: =IF(ISBLANK(K38),0,seconds(K26)-seconds(K54)) -> 2 | L64: =IF(ISBLANK(L38),0,seconds(L26)-seconds(L54)) -> -36 | M64: =IF(ISBLANK(M38),0,seconds(M26)-seconds(M54)) -> 0 | N64: =IF(ISBLANK(N38),0,seconds(N26)-seconds(N54)) -> 0 | O64: =IF(ISBLANK(O38),0,seconds(O26)-seconds(O54)) -> 0 | P64: =IF(ISBLANK(P38),0,seconds(P26)-seconds(P54)) -> 0 | Q64: =IF(ISBLANK(Q38),0,seconds(Q26)-seconds(Q54)) -> 0 | R64: =IF(ISBLANK(R38),0,seconds(R26)-seconds(R54)) -> 0 | S64: =IF(ISBLANK(S38),0,seconds(S26)-seconds(S54)) -> 0 | T64: =IF(ISBLANK(T38),0,seconds(T26)-seconds(T54)) -> 0 | U64: =IF(ISBLANK(U38),0,seconds(U26)-seconds(U54)) -> 0 | V64: =IF(ISBLANK(V38),0,seconds(V26)-seconds(V54)) -> 0 | W64: =IF(ISBLANK(W38),0,seconds(W26)-seconds(W54)) -> 0 | X64: =IF(ISBLANK(X38),0,seconds(X26)-seconds(X54)) -> 0 | Y64: =IF(ISBLANK(Y38),0,seconds(Y26)-seconds(Y54)) -> 0 | Z64: =IF(ISBLANK(Z38),0,seconds(Z26)-seconds(Z54)) -> 0 | AA64: =IF(ISBLANK(AA38),0,seconds(AA26)-seconds(AA54)) -> 0 | AB64: =IF(ISBLANK(AB38),0,seconds(AB26)-seconds(AB54)) -> 0 | AC64: =IF(ISBLANK(AC38),0,seconds(AC26)-seconds(AC54)) -> 0 | AD64: =IF(ISBLANK(AD38),0,seconds(AD26)-seconds(AD54)) -> 0 | AE64: =IF(ISBLANK(AE38),0,seconds(AE26)-seconds(AE54)) -> 0 | AF64: =IF(ISBLANK(AF38),0,seconds(AF26)-seconds(AF54)) -> 0 | AG64: =IF(ISBLANK(AG38),0,seconds(AG26)-seconds(AG54)) -> 0 | AH64: =IF(ISBLANK(AH38),0,seconds(AH26)-seconds(AH54)) -> 0 | AI64: =IF(ISBLANK(AI38),0,seconds(AI26)-seconds(AI54)) -> 0 | AJ64: =IF(ISBLANK(AJ38),0,seconds(AJ26)-seconds(AJ54)) -> 0 | AK64: =IF(ISBLANK(AK38),0,seconds(AK26)-seconds(AK54)) -> 0 | AL64: =IF(ISBLANK(AL38),0,seconds(AL26)-seconds(AL54)) -> 0 | AM64: =IF(ISBLANK(AM38),0,seconds(AM26)-seconds(AM54)) -> 0 | AN64: =IF(ISBLANK(AN38),0,seconds(AN26)-seconds(AN54)) -> 0 | AO64: =IF(ISBLANK(AO38),0,seconds(AO26)-seconds(AO54)) -> 0 | AP64: =IF(ISBLANK(AP38),0,seconds(AP26)-seconds(AP54)) -> 0 | AQ64: =IF(ISBLANK(AQ38),0,seconds(AQ26)-seconds(AQ54)) -> 0 | AR64: =IF(ISBLANK(AR38),0,seconds(AR26)-seconds(AR54)) -> 0 | AS64: =IF(ISBLANK(AS38),0,seconds(AS26)-seconds(AS54)) -> 0 | AT64: =IF(ISBLANK(AT38),0,seconds(AT26)-seconds(AT54)) -> 0 | AU64: =IF(ISBLANK(AU38),0,seconds(AU26)-seconds(AU54)) -> 0 | AV64: =IF(ISBLANK(AV38),0,seconds(AV26)-seconds(AV54)) -> 0 | AW64: =IF(ISBLANK(AW38),0,seconds(AW26)-seconds(AW54)) -> 0 | AX64: =IF(ISBLANK(AX38),0,seconds(AX26)-seconds(AX54)) -> 0 | AY64: =IF(ISBLANK(AY38),0,seconds(AY26)-seconds(AY54)) -> 0 | AZ64: =IF(ISBLANK(AZ38),0,seconds(AZ26)-seconds(AZ54)) -> 0 | BA64: =IF(ISBLANK(BA38),0,seconds(BA26)-seconds(BA54)) -> 0 | BB64: =IF(ISBLANK(BB38),0,seconds(BB26)-seconds(BB54)) -> 0 | BC64: =IF(ISBLANK(BC38),0,seconds(BC26)-seconds(BC54)) -> 0 | BD64: =IF(ISBLANK(BD38),0,seconds(BD26)-seconds(BD54)) -> 0 | BE64: =IF(ISBLANK(BE38),0,seconds(BE26)-seconds(BE54)) -> 0 | BF64: =IF(ISBLANK(BF38),0,seconds(BF26)-seconds(BF54)) -> 0 | BG64: =IF(ISBLANK(BG38),0,seconds(BG26)-seconds(BG54)) -> 0 | BH64: =IF(ISBLANK(BH38),0,seconds(BH26)-seconds(BH54)) -> 0 | BI64: =IF(ISBLANK(BI38),0,seconds(BI26)-seconds(BI54)) -> 0 | BJ64: =IF(ISBLANK(BJ38),0,seconds(BJ26)-seconds(BJ54)) -> 0
B65: CP5 | C65: =IF(ISBLANK(C39),0,seconds(C27)-seconds(C55)) -> 0 | D65: =IF(ISBLANK(D39),0,seconds(D27)-seconds(D55)) -> 0 | E65: =IF(ISBLANK(E39),0,seconds(E27)-seconds(E55)) -> 0 | F65: =IF(ISBLANK(F39),0,seconds(F27)-seconds(F55)) -> 0 | G65: =IF(ISBLANK(G39),0,seconds(G27)-seconds(G55)) -> 0 | H65: =IF(ISBLANK(H39),0,seconds(H27)-seconds(H55)) -> 0 | I65: =IF(ISBLANK(I39),0,seconds(I27)-seconds(I55)) -> 0 | J65: =IF(ISBLANK(J39),0,seconds(J27)-seconds(J55)) -> 0 | K65: =IF(ISBLANK(K39),0,seconds(K27)-seconds(K55)) -> 0 | L65: =IF(ISBLANK(L39),0,seconds(L27)-seconds(L55)) -> 0 | M65: =IF(ISBLANK(M39),0,seconds(M27)-seconds(M55)) -> 0 | N65: =IF(ISBLANK(N39),0,seconds(N27)-seconds(N55)) -> 0 | O65: =IF(ISBLANK(O39),0,seconds(O27)-seconds(O55)) -> 0 | P65: =IF(ISBLANK(P39),0,seconds(P27)-seconds(P55)) -> 0 | Q65: =IF(ISBLANK(Q39),0,seconds(Q27)-seconds(Q55)) -> 0 | R65: =IF(ISBLANK(R39),0,seconds(R27)-seconds(R55)) -> 0 | S65: =IF(ISBLANK(S39),0,seconds(S27)-seconds(S55)) -> 0 | T65: =IF(ISBLANK(T39),0,seconds(T27)-seconds(T55)) -> 0 | U65: =IF(ISBLANK(U39),0,seconds(U27)-seconds(U55)) -> 0 | V65: =IF(ISBLANK(V39),0,seconds(V27)-seconds(V55)) -> 0 | W65: =IF(ISBLANK(W39),0,seconds(W27)-seconds(W55)) -> 0 | X65: =IF(ISBLANK(X39),0,seconds(X27)-seconds(X55)) -> 0 | Y65: =IF(ISBLANK(Y39),0,seconds(Y27)-seconds(Y55)) -> 0 | Z65: =IF(ISBLANK(Z39),0,seconds(Z27)-seconds(Z55)) -> 0 | AA65: =IF(ISBLANK(AA39),0,seconds(AA27)-seconds(AA55)) -> 0 | AB65: =IF(ISBLANK(AB39),0,seconds(AB27)-seconds(AB55)) -> 0 | AC65: =IF(ISBLANK(AC39),0,seconds(AC27)-seconds(AC55)) -> 0 | AD65: =IF(ISBLANK(AD39),0,seconds(AD27)-seconds(AD55)) -> 0 | AE65: =IF(ISBLANK(AE39),0,seconds(AE27)-seconds(AE55)) -> 0 | AF65: =IF(ISBLANK(AF39),0,seconds(AF27)-seconds(AF55)) -> 0 | AG65: =IF(ISBLANK(AG39),0,seconds(AG27)-seconds(AG55)) -> 0 | AH65: =IF(ISBLANK(AH39),0,seconds(AH27)-seconds(AH55)) -> 0 | AI65: =IF(ISBLANK(AI39),0,seconds(AI27)-seconds(AI55)) -> 0 | AJ65: =IF(ISBLANK(AJ39),0,seconds(AJ27)-seconds(AJ55)) -> 0 | AK65: =IF(ISBLANK(AK39),0,seconds(AK27)-seconds(AK55)) -> 0 | AL65: =IF(ISBLANK(AL39),0,seconds(AL27)-seconds(AL55)) -> 0 | AM65: =IF(ISBLANK(AM39),0,seconds(AM27)-seconds(AM55)) -> 0 | AN65: =IF(ISBLANK(AN39),0,seconds(AN27)-seconds(AN55)) -> 0 | AO65: =IF(ISBLANK(AO39),0,seconds(AO27)-seconds(AO55)) -> 0 | AP65: =IF(ISBLANK(AP39),0,seconds(AP27)-seconds(AP55)) -> 0 | AQ65: =IF(ISBLANK(AQ39),0,seconds(AQ27)-seconds(AQ55)) -> 0 | AR65: =IF(ISBLANK(AR39),0,seconds(AR27)-seconds(AR55)) -> 0 | AS65: =IF(ISBLANK(AS39),0,seconds(AS27)-seconds(AS55)) -> 0 | AT65: =IF(ISBLANK(AT39),0,seconds(AT27)-seconds(AT55)) -> 0 | AU65: =IF(ISBLANK(AU39),0,seconds(AU27)-seconds(AU55)) -> 0 | AV65: =IF(ISBLANK(AV39),0,seconds(AV27)-seconds(AV55)) -> 0 | AW65: =IF(ISBLANK(AW39),0,seconds(AW27)-seconds(AW55)) -> 0 | AX65: =IF(ISBLANK(AX39),0,seconds(AX27)-seconds(AX55)) -> 0 | AY65: =IF(ISBLANK(AY39),0,seconds(AY27)-seconds(AY55)) -> 0 | AZ65: =IF(ISBLANK(AZ39),0,seconds(AZ27)-seconds(AZ55)) -> 0 | BA65: =IF(ISBLANK(BA39),0,seconds(BA27)-seconds(BA55)) -> 0 | BB65: =IF(ISBLANK(BB39),0,seconds(BB27)-seconds(BB55)) -> 0 | BC65: =IF(ISBLANK(BC39),0,seconds(BC27)-seconds(BC55)) -> 0 | BD65: =IF(ISBLANK(BD39),0,seconds(BD27)-seconds(BD55)) -> 0 | BE65: =IF(ISBLANK(BE39),0,seconds(BE27)-seconds(BE55)) -> 0 | BF65: =IF(ISBLANK(BF39),0,seconds(BF27)-seconds(BF55)) -> 0 | BG65: =IF(ISBLANK(BG39),0,seconds(BG27)-seconds(BG55)) -> 0 | BH65: =IF(ISBLANK(BH39),0,seconds(BH27)-seconds(BH55)) -> 0 | BI65: =IF(ISBLANK(BI39),0,seconds(BI27)-seconds(BI55)) -> 0 | BJ65: =IF(ISBLANK(BJ39),0,seconds(BJ27)-seconds(BJ55)) -> 0
B66: CP6 | C66: =IF(ISBLANK(C40),0,seconds(C28)-seconds(C56)) -> 0 | D66: =IF(ISBLANK(D40),0,seconds(D28)-seconds(D56)) -> 0 | E66: =IF(ISBLANK(E40),0,seconds(E28)-seconds(E56)) -> 0 | F66: =IF(ISBLANK(F40),0,seconds(F28)-seconds(F56)) -> 0 | G66: =IF(ISBLANK(G40),0,seconds(G28)-seconds(G56)) -> 0 | H66: =IF(ISBLANK(H40),0,seconds(H28)-seconds(H56)) -> 0 | I66: =IF(ISBLANK(I40),0,seconds(I28)-seconds(I56)) -> 0 | J66: =IF(ISBLANK(J40),0,seconds(J28)-seconds(J56)) -> 0 | K66: =IF(ISBLANK(K40),0,seconds(K28)-seconds(K56)) -> 0 | L66: =IF(ISBLANK(L40),0,seconds(L28)-seconds(L56)) -> 0 | M66: =IF(ISBLANK(M40),0,seconds(M28)-seconds(M56)) -> 0 | N66: =IF(ISBLANK(N40),0,seconds(N28)-seconds(N56)) -> 0 | O66: =IF(ISBLANK(O40),0,seconds(O28)-seconds(O56)) -> 0 | P66: =IF(ISBLANK(P40),0,seconds(P28)-seconds(P56)) -> 0 | Q66: =IF(ISBLANK(Q40),0,seconds(Q28)-seconds(Q56)) -> 0 | R66: =IF(ISBLANK(R40),0,seconds(R28)-seconds(R56)) -> 0 | S66: =IF(ISBLANK(S40),0,seconds(S28)-seconds(S56)) -> 0 | T66: =IF(ISBLANK(T40),0,seconds(T28)-seconds(T56)) -> 0 | U66: =IF(ISBLANK(U40),0,seconds(U28)-seconds(U56)) -> 0 | V66: =IF(ISBLANK(V40),0,seconds(V28)-seconds(V56)) -> 0 | W66: =IF(ISBLANK(W40),0,seconds(W28)-seconds(W56)) -> 0 | X66: =IF(ISBLANK(X40),0,seconds(X28)-seconds(X56)) -> 0 | Y66: =IF(ISBLANK(Y40),0,seconds(Y28)-seconds(Y56)) -> 0 | Z66: =IF(ISBLANK(Z40),0,seconds(Z28)-seconds(Z56)) -> 0 | AA66: =IF(ISBLANK(AA40),0,seconds(AA28)-seconds(AA56)) -> 0 | AB66: =IF(ISBLANK(AB40),0,seconds(AB28)-seconds(AB56)) -> 0 | AC66: =IF(ISBLANK(AC40),0,seconds(AC28)-seconds(AC56)) -> 0 | AD66: =IF(ISBLANK(AD40),0,seconds(AD28)-seconds(AD56)) -> 0 | AE66: =IF(ISBLANK(AE40),0,seconds(AE28)-seconds(AE56)) -> 0 | AF66: =IF(ISBLANK(AF40),0,seconds(AF28)-seconds(AF56)) -> 0 | AG66: =IF(ISBLANK(AG40),0,seconds(AG28)-seconds(AG56)) -> 0 | AH66: =IF(ISBLANK(AH40),0,seconds(AH28)-seconds(AH56)) -> 0 | AI66: =IF(ISBLANK(AI40),0,seconds(AI28)-seconds(AI56)) -> 0 | AJ66: =IF(ISBLANK(AJ40),0,seconds(AJ28)-seconds(AJ56)) -> 0 | AK66: =IF(ISBLANK(AK40),0,seconds(AK28)-seconds(AK56)) -> 0 | AL66: =IF(ISBLANK(AL40),0,seconds(AL28)-seconds(AL56)) -> 0 | AM66: =IF(ISBLANK(AM40),0,seconds(AM28)-seconds(AM56)) -> 0 | AN66: =IF(ISBLANK(AN40),0,seconds(AN28)-seconds(AN56)) -> 0 | AO66: =IF(ISBLANK(AO40),0,seconds(AO28)-seconds(AO56)) -> 0 | AP66: =IF(ISBLANK(AP40),0,seconds(AP28)-seconds(AP56)) -> 0 | AQ66: =IF(ISBLANK(AQ40),0,seconds(AQ28)-seconds(AQ56)) -> 0 | AR66: =IF(ISBLANK(AR40),0,seconds(AR28)-seconds(AR56)) -> 0 | AS66: =IF(ISBLANK(AS40),0,seconds(AS28)-seconds(AS56)) -> 0 | AT66: =IF(ISBLANK(AT40),0,seconds(AT28)-seconds(AT56)) -> 0 | AU66: =IF(ISBLANK(AU40),0,seconds(AU28)-seconds(AU56)) -> 0 | AV66: =IF(ISBLANK(AV40),0,seconds(AV28)-seconds(AV56)) -> 0 | AW66: =IF(ISBLANK(AW40),0,seconds(AW28)-seconds(AW56)) -> 0 | AX66: =IF(ISBLANK(AX40),0,seconds(AX28)-seconds(AX56)) -> 0 | AY66: =IF(ISBLANK(AY40),0,seconds(AY28)-seconds(AY56)) -> 0 | AZ66: =IF(ISBLANK(AZ40),0,seconds(AZ28)-seconds(AZ56)) -> 0 | BA66: =IF(ISBLANK(BA40),0,seconds(BA28)-seconds(BA56)) -> 0 | BB66: =IF(ISBLANK(BB40),0,seconds(BB28)-seconds(BB56)) -> 0 | BC66: =IF(ISBLANK(BC40),0,seconds(BC28)-seconds(BC56)) -> 0 | BD66: =IF(ISBLANK(BD40),0,seconds(BD28)-seconds(BD56)) -> 0 | BE66: =IF(ISBLANK(BE40),0,seconds(BE28)-seconds(BE56)) -> 0 | BF66: =IF(ISBLANK(BF40),0,seconds(BF28)-seconds(BF56)) -> 0 | BG66: =IF(ISBLANK(BG40),0,seconds(BG28)-seconds(BG56)) -> 0 | BH66: =IF(ISBLANK(BH40),0,seconds(BH28)-seconds(BH56)) -> 0 | BI66: =IF(ISBLANK(BI40),0,seconds(BI28)-seconds(BI56)) -> 0 | BJ66: =IF(ISBLANK(BJ40),0,seconds(BJ28)-seconds(BJ56)) -> 0
B67: CP7 | C67: =IF(ISBLANK(C41),0,seconds(C29)-seconds(C57)) -> 0 | D67: =IF(ISBLANK(D41),0,seconds(D29)-seconds(D57)) -> 0 | E67: =IF(ISBLANK(E41),0,seconds(E29)-seconds(E57)) -> 0 | F67: =IF(ISBLANK(F41),0,seconds(F29)-seconds(F57)) -> 0 | G67: =IF(ISBLANK(G41),0,seconds(G29)-seconds(G57)) -> 0 | H67: =IF(ISBLANK(H41),0,seconds(H29)-seconds(H57)) -> 0 | I67: =IF(ISBLANK(I41),0,seconds(I29)-seconds(I57)) -> 0 | J67: =IF(ISBLANK(J41),0,seconds(J29)-seconds(J57)) -> 0 | K67: =IF(ISBLANK(K41),0,seconds(K29)-seconds(K57)) -> 0 | L67: =IF(ISBLANK(L41),0,seconds(L29)-seconds(L57)) -> 0 | M67: =IF(ISBLANK(M41),0,seconds(M29)-seconds(M57)) -> 0 | N67: =IF(ISBLANK(N41),0,seconds(N29)-seconds(N57)) -> 0 | O67: =IF(ISBLANK(O41),0,seconds(O29)-seconds(O57)) -> 0 | P67: =IF(ISBLANK(P41),0,seconds(P29)-seconds(P57)) -> 0 | Q67: =IF(ISBLANK(Q41),0,seconds(Q29)-seconds(Q57)) -> 0 | R67: =IF(ISBLANK(R41),0,seconds(R29)-seconds(R57)) -> 0 | S67: =IF(ISBLANK(S41),0,seconds(S29)-seconds(S57)) -> 0 | T67: =IF(ISBLANK(T41),0,seconds(T29)-seconds(T57)) -> 0 | U67: =IF(ISBLANK(U41),0,seconds(U29)-seconds(U57)) -> 0 | V67: =IF(ISBLANK(V41),0,seconds(V29)-seconds(V57)) -> 0 | W67: =IF(ISBLANK(W41),0,seconds(W29)-seconds(W57)) -> 0 | X67: =IF(ISBLANK(X41),0,seconds(X29)-seconds(X57)) -> 0 | Y67: =IF(ISBLANK(Y41),0,seconds(Y29)-seconds(Y57)) -> 0 | Z67: =IF(ISBLANK(Z41),0,seconds(Z29)-seconds(Z57)) -> 0 | AA67: =IF(ISBLANK(AA41),0,seconds(AA29)-seconds(AA57)) -> 0 | AB67: =IF(ISBLANK(AB41),0,seconds(AB29)-seconds(AB57)) -> 0 | AC67: =IF(ISBLANK(AC41),0,seconds(AC29)-seconds(AC57)) -> 0 | AD67: =IF(ISBLANK(AD41),0,seconds(AD29)-seconds(AD57)) -> 0 | AE67: =IF(ISBLANK(AE41),0,seconds(AE29)-seconds(AE57)) -> 0 | AF67: =IF(ISBLANK(AF41),0,seconds(AF29)-seconds(AF57)) -> 0 | AG67: =IF(ISBLANK(AG41),0,seconds(AG29)-seconds(AG57)) -> 0 | AH67: =IF(ISBLANK(AH41),0,seconds(AH29)-seconds(AH57)) -> 0 | AI67: =IF(ISBLANK(AI41),0,seconds(AI29)-seconds(AI57)) -> 0 | AJ67: =IF(ISBLANK(AJ41),0,seconds(AJ29)-seconds(AJ57)) -> 0 | AK67: =IF(ISBLANK(AK41),0,seconds(AK29)-seconds(AK57)) -> 0 | AL67: =IF(ISBLANK(AL41),0,seconds(AL29)-seconds(AL57)) -> 0 | AM67: =IF(ISBLANK(AM41),0,seconds(AM29)-seconds(AM57)) -> 0 | AN67: =IF(ISBLANK(AN41),0,seconds(AN29)-seconds(AN57)) -> 0 | AO67: =IF(ISBLANK(AO41),0,seconds(AO29)-seconds(AO57)) -> 0 | AP67: =IF(ISBLANK(AP41),0,seconds(AP29)-seconds(AP57)) -> 0 | AQ67: =IF(ISBLANK(AQ41),0,seconds(AQ29)-seconds(AQ57)) -> 0 | AR67: =IF(ISBLANK(AR41),0,seconds(AR29)-seconds(AR57)) -> 0 | AS67: =IF(ISBLANK(AS41),0,seconds(AS29)-seconds(AS57)) -> 0 | AT67: =IF(ISBLANK(AT41),0,seconds(AT29)-seconds(AT57)) -> 0 | AU67: =IF(ISBLANK(AU41),0,seconds(AU29)-seconds(AU57)) -> 0 | AV67: =IF(ISBLANK(AV41),0,seconds(AV29)-seconds(AV57)) -> 0 | AW67: =IF(ISBLANK(AW41),0,seconds(AW29)-seconds(AW57)) -> 0 | AX67: =IF(ISBLANK(AX41),0,seconds(AX29)-seconds(AX57)) -> 0 | AY67: =IF(ISBLANK(AY41),0,seconds(AY29)-seconds(AY57)) -> 0 | AZ67: =IF(ISBLANK(AZ41),0,seconds(AZ29)-seconds(AZ57)) -> 0 | BA67: =IF(ISBLANK(BA41),0,seconds(BA29)-seconds(BA57)) -> 0 | BB67: =IF(ISBLANK(BB41),0,seconds(BB29)-seconds(BB57)) -> 0 | BC67: =IF(ISBLANK(BC41),0,seconds(BC29)-seconds(BC57)) -> 0 | BD67: =IF(ISBLANK(BD41),0,seconds(BD29)-seconds(BD57)) -> 0 | BE67: =IF(ISBLANK(BE41),0,seconds(BE29)-seconds(BE57)) -> 0 | BF67: =IF(ISBLANK(BF41),0,seconds(BF29)-seconds(BF57)) -> 0 | BG67: =IF(ISBLANK(BG41),0,seconds(BG29)-seconds(BG57)) -> 0 | BH67: =IF(ISBLANK(BH41),0,seconds(BH29)-seconds(BH57)) -> 0 | BI67: =IF(ISBLANK(BI41),0,seconds(BI29)-seconds(BI57)) -> 0 | BJ67: =IF(ISBLANK(BJ41),0,seconds(BJ29)-seconds(BJ57)) -> 0
B68: CP8 | C68: =IF(ISBLANK(C42),0,seconds(C30)-seconds(C58)) -> 0 | D68: =IF(ISBLANK(D42),0,seconds(D30)-seconds(D58)) -> 0 | E68: =IF(ISBLANK(E42),0,seconds(E30)-seconds(E58)) -> 0 | F68: =IF(ISBLANK(F42),0,seconds(F30)-seconds(F58)) -> 0 | G68: =IF(ISBLANK(G42),0,seconds(G30)-seconds(G58)) -> 0 | H68: =IF(ISBLANK(H42),0,seconds(H30)-seconds(H58)) -> 0 | I68: =IF(ISBLANK(I42),0,seconds(I30)-seconds(I58)) -> 0 | J68: =IF(ISBLANK(J42),0,seconds(J30)-seconds(J58)) -> 0 | K68: =IF(ISBLANK(K42),0,seconds(K30)-seconds(K58)) -> 0 | L68: =IF(ISBLANK(L42),0,seconds(L30)-seconds(L58)) -> 0 | M68: =IF(ISBLANK(M42),0,seconds(M30)-seconds(M58)) -> 0 | N68: =IF(ISBLANK(N42),0,seconds(N30)-seconds(N58)) -> 0 | O68: =IF(ISBLANK(O42),0,seconds(O30)-seconds(O58)) -> 0 | P68: =IF(ISBLANK(P42),0,seconds(P30)-seconds(P58)) -> 0 | Q68: =IF(ISBLANK(Q42),0,seconds(Q30)-seconds(Q58)) -> 0 | R68: =IF(ISBLANK(R42),0,seconds(R30)-seconds(R58)) -> 0 | S68: =IF(ISBLANK(S42),0,seconds(S30)-seconds(S58)) -> 0 | T68: =IF(ISBLANK(T42),0,seconds(T30)-seconds(T58)) -> 0 | U68: =IF(ISBLANK(U42),0,seconds(U30)-seconds(U58)) -> 0 | V68: =IF(ISBLANK(V42),0,seconds(V30)-seconds(V58)) -> 0 | W68: =IF(ISBLANK(W42),0,seconds(W30)-seconds(W58)) -> 0 | X68: =IF(ISBLANK(X42),0,seconds(X30)-seconds(X58)) -> 0 | Y68: =IF(ISBLANK(Y42),0,seconds(Y30)-seconds(Y58)) -> 0 | Z68: =IF(ISBLANK(Z42),0,seconds(Z30)-seconds(Z58)) -> 0 | AA68: =IF(ISBLANK(AA42),0,seconds(AA30)-seconds(AA58)) -> 0 | AB68: =IF(ISBLANK(AB42),0,seconds(AB30)-seconds(AB58)) -> 0 | AC68: =IF(ISBLANK(AC42),0,seconds(AC30)-seconds(AC58)) -> 0 | AD68: =IF(ISBLANK(AD42),0,seconds(AD30)-seconds(AD58)) -> 0 | AE68: =IF(ISBLANK(AE42),0,seconds(AE30)-seconds(AE58)) -> 0 | AF68: =IF(ISBLANK(AF42),0,seconds(AF30)-seconds(AF58)) -> 0 | AG68: =IF(ISBLANK(AG42),0,seconds(AG30)-seconds(AG58)) -> 0 | AH68: =IF(ISBLANK(AH42),0,seconds(AH30)-seconds(AH58)) -> 0 | AI68: =IF(ISBLANK(AI42),0,seconds(AI30)-seconds(AI58)) -> 0 | AJ68: =IF(ISBLANK(AJ42),0,seconds(AJ30)-seconds(AJ58)) -> 0 | AK68: =IF(ISBLANK(AK42),0,seconds(AK30)-seconds(AK58)) -> 0 | AL68: =IF(ISBLANK(AL42),0,seconds(AL30)-seconds(AL58)) -> 0 | AM68: =IF(ISBLANK(AM42),0,seconds(AM30)-seconds(AM58)) -> 0 | AN68: =IF(ISBLANK(AN42),0,seconds(AN30)-seconds(AN58)) -> 0 | AO68: =IF(ISBLANK(AO42),0,seconds(AO30)-seconds(AO58)) -> 0 | AP68: =IF(ISBLANK(AP42),0,seconds(AP30)-seconds(AP58)) -> 0 | AQ68: =IF(ISBLANK(AQ42),0,seconds(AQ30)-seconds(AQ58)) -> 0 | AR68: =IF(ISBLANK(AR42),0,seconds(AR30)-seconds(AR58)) -> 0 | AS68: =IF(ISBLANK(AS42),0,seconds(AS30)-seconds(AS58)) -> 0 | AT68: =IF(ISBLANK(AT42),0,seconds(AT30)-seconds(AT58)) -> 0 | AU68: =IF(ISBLANK(AU42),0,seconds(AU30)-seconds(AU58)) -> 0 | AV68: =IF(ISBLANK(AV42),0,seconds(AV30)-seconds(AV58)) -> 0 | AW68: =IF(ISBLANK(AW42),0,seconds(AW30)-seconds(AW58)) -> 0 | AX68: =IF(ISBLANK(AX42),0,seconds(AX30)-seconds(AX58)) -> 0 | AY68: =IF(ISBLANK(AY42),0,seconds(AY30)-seconds(AY58)) -> 0 | AZ68: =IF(ISBLANK(AZ42),0,seconds(AZ30)-seconds(AZ58)) -> 0 | BA68: =IF(ISBLANK(BA42),0,seconds(BA30)-seconds(BA58)) -> 0 | BB68: =IF(ISBLANK(BB42),0,seconds(BB30)-seconds(BB58)) -> 0 | BC68: =IF(ISBLANK(BC42),0,seconds(BC30)-seconds(BC58)) -> 0 | BD68: =IF(ISBLANK(BD42),0,seconds(BD30)-seconds(BD58)) -> 0 | BE68: =IF(ISBLANK(BE42),0,seconds(BE30)-seconds(BE58)) -> 0 | BF68: =IF(ISBLANK(BF42),0,seconds(BF30)-seconds(BF58)) -> 0 | BG68: =IF(ISBLANK(BG42),0,seconds(BG30)-seconds(BG58)) -> 0 | BH68: =IF(ISBLANK(BH42),0,seconds(BH30)-seconds(BH58)) -> 0 | BI68: =IF(ISBLANK(BI42),0,seconds(BI30)-seconds(BI58)) -> 0 | BJ68: =IF(ISBLANK(BJ42),0,seconds(BJ30)-seconds(BJ58)) -> 0
A69: Total Seconds of Error | C69: =ABS(C61)+ABS(C62)+ABS(C63)+ABS(C64)+ABS(C65)+ABS(C66)+ABS(C67)+ABS(C68) -> 95 | D69: =ABS(D61)+ABS(D62)+ABS(D63)+ABS(D64)+ABS(D65)+ABS(D66)+ABS(D67)+ABS(D68) -> 0 | E69: 121 | F69: 16 | G69: 41 | H69: 210 | I69: 44 | J69: 62 | K69: 80 | L69: =ABS(L61)+ABS(L62)+ABS(L63)+ABS(L64)+ABS(L65)+ABS(L66)+ABS(L67)+ABS(L68) -> 119 | M69: 0 | N69: =ABS(N61)+ABS(N62)+ABS(N63)+ABS(N64)+ABS(N65)+ABS(N66)+ABS(N67)+ABS(N68) -> 0 | O69: 0 | P69: 0 | Q69: 0 | R69: 0 | S69: 0 | T69: 0 | U69: 0 | V69: 0 | W69: 0 | X69: 0 | Y69: 0 | Z69: 0 | AA69: 0 | AB69: 0 | AC69: 0 | AD69: 0 | AE69: 0 | AF69: 0 | AG69: 0 | AH69: 0 | AI69: 0 | AJ69: 0 | AK69: 0 | AL69: 0 | AM69: 0 | AN69: 0 | AO69: 0 | AP69: 0 | AQ69: 0 | AR69: 0 | AS69: 0 | AT69: 0 | AU69: 0 | AV69: 0 | AW69: 0 | AX69: 0 | AY69: 0 | AZ69: 0 | BA69: 0 | BB69: 0 | BC69: 0 | BD69: 0 | BE69: 0 | BF69: 0 | BG69: =ABS(BG61)+ABS(BG62)+ABS(BG63)+ABS(BG64)+ABS(BG65)+ABS(BG66)+ABS(BG67)+ABS(BG68) -> 0 | BH69: 0 | BI69: 0 | BJ69: 0
A70: Start Difference Time | C70: =IF(ISBLANK(C34),0,HoursMinutesAndSeconds(ABS(seconds(C34)-seconds(C22)))) -> 257 | D70: =IF(ISBLANK(D34),0,HoursMinutesAndSeconds(ABS(seconds(D34)-seconds(D22)))) -> 0 | E70: =IF(ISBLANK(E34),0,HoursMinutesAndSeconds(ABS(seconds(E34)-seconds(E22)))) -> 327 | F70: =IF(ISBLANK(F34),0,HoursMinutesAndSeconds(ABS(seconds(F34)-seconds(F22)))) -> 232 | G70: =IF(ISBLANK(G34),0,HoursMinutesAndSeconds(ABS(seconds(G34)-seconds(G22)))) -> 133 | H70: =IF(ISBLANK(H34),0,HoursMinutesAndSeconds(ABS(seconds(H34)-seconds(H22)))) -> 55 | I70: =IF(ISBLANK(I34),0,HoursMinutesAndSeconds(ABS(seconds(I34)-seconds(I22)))) -> 337 | J70: =IF(ISBLANK(J34),0,HoursMinutesAndSeconds(ABS(seconds(J34)-seconds(J22)))) -> 225 | K70: =IF(ISBLANK(K34),0,HoursMinutesAndSeconds(ABS(seconds(K34)-seconds(K22)))) -> 335 | L70: =IF(ISBLANK(L34),0,HoursMinutesAndSeconds(ABS(seconds(L34)-seconds(L22)))) -> 30 | M70: =IF(ISBLANK(M34),0,HoursMinutesAndSeconds(ABS(seconds(M34)-seconds(M22)))) -> 0 | N70: =IF(ISBLANK(N34),0,HoursMinutesAndSeconds(ABS(seconds(N34)-seconds(N22)))) -> 0 | O70: =IF(ISBLANK(O34),0,HoursMinutesAndSeconds(ABS(seconds(O34)-seconds(O22)))) -> 0 | P70: =IF(ISBLANK(P34),0,HoursMinutesAndSeconds(ABS(seconds(P34)-seconds(P22)))) -> 0 | Q70: =IF(ISBLANK(Q34),0,HoursMinutesAndSeconds(ABS(seconds(Q34)-seconds(Q22)))) -> 0 | R70: =IF(ISBLANK(R34),0,HoursMinutesAndSeconds(ABS(seconds(R34)-seconds(R22)))) -> 0 | S70: =IF(ISBLANK(S34),0,HoursMinutesAndSeconds(ABS(seconds(S34)-seconds(S22)))) -> 0 | T70: =IF(ISBLANK(T34),0,HoursMinutesAndSeconds(ABS(seconds(T34)-seconds(T22)))) -> 0 | U70: =IF(ISBLANK(U34),0,HoursMinutesAndSeconds(ABS(seconds(U34)-seconds(U22)))) -> 0 | V70: =IF(ISBLANK(V34),0,HoursMinutesAndSeconds(ABS(seconds(V34)-seconds(V22)))) -> 0 | W70: =IF(ISBLANK(W34),0,HoursMinutesAndSeconds(ABS(seconds(W34)-seconds(W22)))) -> 0 | X70: =IF(ISBLANK(X34),0,HoursMinutesAndSeconds(ABS(seconds(X34)-seconds(X22)))) -> 0 | Y70: =IF(ISBLANK(Y34),0,HoursMinutesAndSeconds(ABS(seconds(Y34)-seconds(Y22)))) -> 0 | Z70: =IF(ISBLANK(Z34),0,HoursMinutesAndSeconds(ABS(seconds(Z34)-seconds(Z22)))) -> 0 | AA70: =IF(ISBLANK(AA34),0,HoursMinutesAndSeconds(ABS(seconds(AA34)-seconds(AA22)))) -> 0 | AB70: =IF(ISBLANK(AB34),0,HoursMinutesAndSeconds(ABS(seconds(AB34)-seconds(AB22)))) -> 0 | AC70: =IF(ISBLANK(AC34),0,HoursMinutesAndSeconds(ABS(seconds(AC34)-seconds(AC22)))) -> 0 | AD70: =IF(ISBLANK(AD34),0,HoursMinutesAndSeconds(ABS(seconds(AD34)-seconds(AD22)))) -> 0 | AE70: =IF(ISBLANK(AE34),0,HoursMinutesAndSeconds(ABS(seconds(AE34)-seconds(AE22)))) -> 0 | AF70: =IF(ISBLANK(AF34),0,HoursMinutesAndSeconds(ABS(seconds(AF34)-seconds(AF22)))) -> 0 | AG70: =IF(ISBLANK(AG34),0,HoursMinutesAndSeconds(ABS(seconds(AG34)-seconds(AG22)))) -> 0 | AH70: =IF(ISBLANK(AH34),0,HoursMinutesAndSeconds(ABS(seconds(AH34)-seconds(AH22)))) -> 0 | AI70: =IF(ISBLANK(AI34),0,HoursMinutesAndSeconds(ABS(seconds(AI34)-seconds(AI22)))) -> 0 | AJ70: =IF(ISBLANK(AJ34),0,HoursMinutesAndSeconds(ABS(seconds(AJ34)-seconds(AJ22)))) -> 0 | AK70: =IF(ISBLANK(AK34),0,HoursMinutesAndSeconds(ABS(seconds(AK34)-seconds(AK22)))) -> 0 | AL70: =IF(ISBLANK(AL34),0,HoursMinutesAndSeconds(ABS(seconds(AL34)-seconds(AL22)))) -> 0 | AM70: =IF(ISBLANK(AM34),0,HoursMinutesAndSeconds(ABS(seconds(AM34)-seconds(AM22)))) -> 0 | AN70: =IF(ISBLANK(AN34),0,HoursMinutesAndSeconds(ABS(seconds(AN34)-seconds(AN22)))) -> 0 | AO70: =IF(ISBLANK(AO34),0,HoursMinutesAndSeconds(ABS(seconds(AO34)-seconds(AO22)))) -> 0 | AP70: =IF(ISBLANK(AP34),0,HoursMinutesAndSeconds(ABS(seconds(AP34)-seconds(AP22)))) -> 0 | AQ70: =IF(ISBLANK(AQ34),0,HoursMinutesAndSeconds(ABS(seconds(AQ34)-seconds(AQ22)))) -> 0 | AR70: =IF(ISBLANK(AR34),0,HoursMinutesAndSeconds(ABS(seconds(AR34)-seconds(AR22)))) -> 0 | AS70: =IF(ISBLANK(AS34),0,HoursMinutesAndSeconds(ABS(seconds(AS34)-seconds(AS22)))) -> 0 | AT70: =IF(ISBLANK(AT34),0,HoursMinutesAndSeconds(ABS(seconds(AT34)-seconds(AT22)))) -> 0 | AU70: =IF(ISBLANK(AU34),0,HoursMinutesAndSeconds(ABS(seconds(AU34)-seconds(AU22)))) -> 0 | AV70: =IF(ISBLANK(AV34),0,HoursMinutesAndSeconds(ABS(seconds(AV34)-seconds(AV22)))) -> 0 | AW70: =IF(ISBLANK(AW34),0,HoursMinutesAndSeconds(ABS(seconds(AW34)-seconds(AW22)))) -> 0 | AX70: =IF(ISBLANK(AX34),0,HoursMinutesAndSeconds(ABS(seconds(AX34)-seconds(AX22)))) -> 0 | AY70: =IF(ISBLANK(AY34),0,HoursMinutesAndSeconds(ABS(seconds(AY34)-seconds(AY22)))) -> 0 | AZ70: =IF(ISBLANK(AZ34),0,HoursMinutesAndSeconds(ABS(seconds(AZ34)-seconds(AZ22)))) -> 0 | BA70: =IF(ISBLANK(BA34),0,HoursMinutesAndSeconds(ABS(seconds(BA34)-seconds(BA22)))) -> 0 | BB70: =IF(ISBLANK(BB34),0,HoursMinutesAndSeconds(ABS(seconds(BB34)-seconds(BB22)))) -> 0 | BC70: =IF(ISBLANK(BC34),0,HoursMinutesAndSeconds(ABS(seconds(BC34)-seconds(BC22)))) -> 0 | BD70: =IF(ISBLANK(BD34),0,HoursMinutesAndSeconds(ABS(seconds(BD34)-seconds(BD22)))) -> 0 | BE70: =IF(ISBLANK(BE34),0,HoursMinutesAndSeconds(ABS(seconds(BE34)-seconds(BE22)))) -> 0 | BF70: =IF(ISBLANK(BF34),0,HoursMinutesAndSeconds(ABS(seconds(BF34)-seconds(BF22)))) -> 0 | BG70: =IF(ISBLANK(BG34),0,HoursMinutesAndSeconds(ABS(seconds(BG34)-seconds(BG22)))) -> 0 | BH70: =IF(ISBLANK(BH34),0,HoursMinutesAndSeconds(ABS(seconds(BH34)-seconds(BH22)))) -> 0 | BI70: =IF(ISBLANK(BI34),0,HoursMinutesAndSeconds(ABS(seconds(BI34)-seconds(BI22)))) -> 0 | BJ70: =IF(ISBLANK(BJ34),0,HoursMinutesAndSeconds(ABS(seconds(BJ34)-seconds(BJ22)))) -> 0
A71: Gross Error | C71: =IF(C33=0,0,C69/C33) -> 0.01717281273 | D71: 0 | E71: 0.01718261857 | F71: 0.002531245056 | G71: 0.005478353821 | H71: 0.03818181818 | I71: 0.006746396811 | J71: 0.009977470229 | K71: 0.01453488372 | L71: 0.01845533499 | M71: 0 | N71: 0 | O71: 0 | P71: 0 | Q71: 0 | R71: 0 | S71: 0 | T71: 0 | U71: 0 | V71: 0 | W71: 0 | X71: 0 | Y71: 0 | Z71: 0 | AA71: 0 | AB71: 0 | AC71: 0 | AD71: 0 | AE71: 0 | AF71: 0 | AG71: 0 | AH71: 0 | AI71: =IF(AI33=0,0,AI69/AI33) -> 0 | AJ71: 0 | AK71: 0 | AL71: 0 | AM71: 0 | AN71: 0 | AO71: 0 | AP71: 0 | AQ71: 0 | AR71: 0 | AS71: 0 | AT71: 0 | AU71: 0 | AV71: 0 | AW71: 0 | AX71: 0 | AY71: 0 | AZ71: 0 | BA71: 0 | BB71: 0 | BC71: 0 | BD71: 0 | BE71: 0 | BF71: 0 | BG71: =IF(BG33=0,0,BG69/BG33) -> 0 | BH71: 0 | BI71: 0 | BJ71: 0
A72: Predicted Speed | C72: =IF(C33=0,"",ROUND(('Contest Entry'!$B$4*3600)/C33,1)) -> 9.1 | D72: =IF(D33=0,"",ROUND(('Contest Entry'!$B$4*3600)/D33,1)) ->  | E72: =IF(E33=0,"",ROUND(('Contest Entry'!$B$4*3600)/E33,1)) -> 7.2 | F72: =IF(F33=0,"",ROUND(('Contest Entry'!$B$4*3600)/F33,1)) -> 8 | G72: =IF(G33=0,"",ROUND(('Contest Entry'!$B$4*3600)/G33,1)) -> 6.7 | H72: =IF(H33=0,"",ROUND(('Contest Entry'!$B$4*3600)/H33,1)) -> 9.2 | I72: =IF(I33=0,"",ROUND(('Contest Entry'!$B$4*3600)/I33,1)) -> 7.7 | J72: =IF(J33=0,"",ROUND(('Contest Entry'!$B$4*3600)/J33,1)) -> 8.1 | K72: =IF(K33=0,"",ROUND(('Contest Entry'!$B$4*3600)/K33,1)) -> 9.2 | L72: =IF(L33=0,"",ROUND(('Contest Entry'!$B$4*3600)/L33,1)) -> 7.8 | M72: =IF(M33=0,"",ROUND(('Contest Entry'!$B$4*3600)/M33,1)) ->  | N72: =IF(N33=0,"",ROUND(('Contest Entry'!$B$4*3600)/N33,1)) ->  | O72: =IF(O33=0,"",ROUND(('Contest Entry'!$B$4*3600)/O33,1)) ->  | P72: =IF(P33=0,"",ROUND(('Contest Entry'!$B$4*3600)/P33,1)) ->  | Q72: =IF(Q33=0,"",ROUND(('Contest Entry'!$B$4*3600)/Q33,1)) ->  | R72: =IF(R33=0,"",ROUND(('Contest Entry'!$B$4*3600)/R33,1)) ->  | S72: =IF(S33=0,"",ROUND(('Contest Entry'!$B$4*3600)/S33,1)) ->  | T72: =IF(T33=0,"",ROUND(('Contest Entry'!$B$4*3600)/T33,1)) ->  | U72: =IF(U33=0,"",ROUND(('Contest Entry'!$B$4*3600)/U33,1)) ->  | V72: =IF(V33=0,"",ROUND(('Contest Entry'!$B$4*3600)/V33,1)) ->  | W72: =IF(W33=0,"",ROUND(('Contest Entry'!$B$4*3600)/W33,1)) ->  | X72: =IF(X33=0,"",ROUND(('Contest Entry'!$B$4*3600)/X33,1)) ->  | Y72: =IF(Y33=0,"",ROUND(('Contest Entry'!$B$4*3600)/Y33,1)) ->  | Z72: =IF(Z33=0,"",ROUND(('Contest Entry'!$B$4*3600)/Z33,1)) ->  | AA72: =IF(AA33=0,"",ROUND(('Contest Entry'!$B$4*3600)/AA33,1)) ->  | AB72: =IF(AB33=0,"",ROUND(('Contest Entry'!$B$4*3600)/AB33,1)) ->  | AC72: =IF(AC33=0,"",ROUND(('Contest Entry'!$B$4*3600)/AC33,1)) ->  | AD72: =IF(AD33=0,"",ROUND(('Contest Entry'!$B$4*3600)/AD33,1)) ->  | AE72: =IF(AE33=0,"",ROUND(('Contest Entry'!$B$4*3600)/AE33,1)) ->  | AF72: =IF(AF33=0,"",ROUND(('Contest Entry'!$B$4*3600)/AF33,1)) ->  | AG72: =IF(AG33=0,"",ROUND(('Contest Entry'!$B$4*3600)/AG33,1)) ->  | AH72: =IF(AH33=0,"",ROUND(('Contest Entry'!$B$4*3600)/AH33,1)) ->  | AI72: =IF(AI33=0,"",ROUND(('Contest Entry'!$B$4*3600)/AI33,1)) ->  | AJ72: =IF(AJ33=0,"",ROUND(('Contest Entry'!$B$4*3600)/AJ33,1)) ->  | AK72: =IF(AK33=0,"",ROUND(('Contest Entry'!$B$4*3600)/AK33,1)) ->  | AL72: =IF(AL33=0,"",ROUND(('Contest Entry'!$B$4*3600)/AL33,1)) ->  | AM72: =IF(AM33=0,"",ROUND(('Contest Entry'!$B$4*3600)/AM33,1)) ->  | AN72: =IF(AN33=0,"",ROUND(('Contest Entry'!$B$4*3600)/AN33,1)) ->  | AO72: =IF(AO33=0,"",ROUND(('Contest Entry'!$B$4*3600)/AO33,1)) ->  | AP72: =IF(AP33=0,"",ROUND(('Contest Entry'!$B$4*3600)/AP33,1)) ->  | AQ72: =IF(AQ33=0,"",ROUND(('Contest Entry'!$B$4*3600)/AQ33,1)) ->  | AR72: =IF(AR33=0,"",ROUND(('Contest Entry'!$B$4*3600)/AR33,1)) ->  | AS72: =IF(AS33=0,"",ROUND(('Contest Entry'!$B$4*3600)/AS33,1)) ->  | AT72: =IF(AT33=0,"",ROUND(('Contest Entry'!$B$4*3600)/AT33,1)) ->  | AU72: =IF(AU33=0,"",ROUND(('Contest Entry'!$B$4*3600)/AU33,1)) ->  | AV72: =IF(AV33=0,"",ROUND(('Contest Entry'!$B$4*3600)/AV33,1)) ->  | AW72: =IF(AW33=0,"",ROUND(('Contest Entry'!$B$4*3600)/AW33,1)) ->  | AX72: =IF(AX33=0,"",ROUND(('Contest Entry'!$B$4*3600)/AX33,1)) ->  | AY72: =IF(AY33=0,"",ROUND(('Contest Entry'!$B$4*3600)/AY33,1)) ->  | AZ72: =IF(AZ33=0,"",ROUND(('Contest Entry'!$B$4*3600)/AZ33,1)) ->  | BA72: =IF(BA33=0,"",ROUND(('Contest Entry'!$B$4*3600)/BA33,1)) ->  | BB72: =IF(BB33=0,"",ROUND(('Contest Entry'!$B$4*3600)/BB33,1)) ->  | BC72: =IF(BC33=0,"",ROUND(('Contest Entry'!$B$4*3600)/BC33,1)) ->  | BD72: =IF(BD33=0,"",ROUND(('Contest Entry'!$B$4*3600)/BD33,1)) ->  | BE72: =IF(BE33=0,"",ROUND(('Contest Entry'!$B$4*3600)/BE33,1)) ->  | BF72: =IF(BF33=0,"",ROUND(('Contest Entry'!$B$4*3600)/BF33,1)) ->  | BG72: =IF(BG33=0,"",ROUND(('Contest Entry'!$B$4*3600)/BG33,1)) ->  | BH72: =IF(BH33=0,"",ROUND(('Contest Entry'!$B$4*3600)/BH33,1)) ->  | BI72: =IF(BI33=0,"",ROUND(('Contest Entry'!$B$4*3600)/BI33,1)) ->  | BJ72: =IF(BJ33=0,"",ROUND(('Contest Entry'!$B$4*3600)/BJ33,1)) -> 
A73: Handicap | C73: =IF('Contest Entry'!$B$13="Yes",IF(C72="",0,MAX(0.5796,MIN(0.5*LOG(C72, 2.7182818)-0.0079*C72-0.3381,1.0479))),1) -> 0.6941472183 | D73: =IF('Contest Entry'!$B$13="Yes",IF(D72="",0,MAX(0.5796,MIN(0.5*LOG(D72, 2.7182818)-0.0079*D72-0.3381,1.0479))),1) -> 0 | E73: =IF('Contest Entry'!$B$13="Yes",IF(E72="",0,MAX(0.5796,MIN(0.5*LOG(E72, 2.7182818)-0.0079*E72-0.3381,1.0479))),1) -> 0.5920605233 | F73: =IF('Contest Entry'!$B$13="Yes",IF(F72="",0,MAX(0.5796,MIN(0.5*LOG(F72, 2.7182818)-0.0079*F72-0.3381,1.0479))),1) -> 0.6384207817 | G73: =IF('Contest Entry'!$B$13="Yes",IF(G72="",0,MAX(0.5796,MIN(0.5*LOG(G72, 2.7182818)-0.0079*G72-0.3381,1.0479))),1) -> 0.5796 | H73: =IF('Contest Entry'!$B$13="Yes",IF(H72="",0,MAX(0.5796,MIN(0.5*LOG(H72, 2.7182818)-0.0079*H72-0.3381,1.0479))),1) -> 0.6988217536 | I73: =IF('Contest Entry'!$B$13="Yes",IF(I72="",0,MAX(0.5796,MIN(0.5*LOG(I72, 2.7182818)-0.0079*I72-0.3381,1.0479))),1) -> 0.6216801751 | J73: =IF('Contest Entry'!$B$13="Yes",IF(J72="",0,MAX(0.5796,MIN(0.5*LOG(J72, 2.7182818)-0.0079*J72-0.3381,1.0479))),1) -> 0.6438420418 | K73: =IF('Contest Entry'!$B$13="Yes",IF(K72="",0,MAX(0.5796,MIN(0.5*LOG(K72, 2.7182818)-0.0079*K72-0.3381,1.0479))),1) -> 0.6988217536 | L73: =IF('Contest Entry'!$B$13="Yes",IF(L72="",0,MAX(0.5796,MIN(0.5*LOG(L72, 2.7182818)-0.0079*L72-0.3381,1.0479))),1) -> 0.6273418776 | M73: =IF('Contest Entry'!$B$13="Yes",IF(M72="",0,MAX(0.5796,MIN(0.5*LOG(M72, 2.7182818)-0.0079*M72-0.3381,1.0479))),1) -> 0 | N73: =IF('Contest Entry'!$B$13="Yes",IF(N72="",0,MAX(0.5796,MIN(0.5*LOG(N72, 2.7182818)-0.0079*N72-0.3381,1.0479))),1) -> 0 | O73: =IF('Contest Entry'!$B$13="Yes",IF(O72="",0,MAX(0.5796,MIN(0.5*LOG(O72, 2.7182818)-0.0079*O72-0.3381,1.0479))),1) -> 0 | P73: =IF('Contest Entry'!$B$13="Yes",IF(P72="",0,MAX(0.5796,MIN(0.5*LOG(P72, 2.7182818)-0.0079*P72-0.3381,1.0479))),1) -> 0 | Q73: =IF('Contest Entry'!$B$13="Yes",IF(Q72="",0,MAX(0.5796,MIN(0.5*LOG(Q72, 2.7182818)-0.0079*Q72-0.3381,1.0479))),1) -> 0 | R73: =IF('Contest Entry'!$B$13="Yes",IF(R72="",0,MAX(0.5796,MIN(0.5*LOG(R72, 2.7182818)-0.0079*R72-0.3381,1.0479))),1) -> 0 | S73: =IF('Contest Entry'!$B$13="Yes",IF(S72="",0,MAX(0.5796,MIN(0.5*LOG(S72, 2.7182818)-0.0079*S72-0.3381,1.0479))),1) -> 0 | T73: =IF('Contest Entry'!$B$13="Yes",IF(T72="",0,MAX(0.5796,MIN(0.5*LOG(T72, 2.7182818)-0.0079*T72-0.3381,1.0479))),1) -> 0 | U73: =IF('Contest Entry'!$B$13="Yes",IF(U72="",0,MAX(0.5796,MIN(0.5*LOG(U72, 2.7182818)-0.0079*U72-0.3381,1.0479))),1) -> 0 | V73: =IF('Contest Entry'!$B$13="Yes",IF(V72="",0,MAX(0.5796,MIN(0.5*LOG(V72, 2.7182818)-0.0079*V72-0.3381,1.0479))),1) -> 0 | W73: =IF('Contest Entry'!$B$13="Yes",IF(W72="",0,MAX(0.5796,MIN(0.5*LOG(W72, 2.7182818)-0.0079*W72-0.3381,1.0479))),1) -> 0 | X73: =IF('Contest Entry'!$B$13="Yes",IF(X72="",0,MAX(0.5796,MIN(0.5*LOG(X72, 2.7182818)-0.0079*X72-0.3381,1.0479))),1) -> 0 | Y73: =IF('Contest Entry'!$B$13="Yes",IF(Y72="",0,MAX(0.5796,MIN(0.5*LOG(Y72, 2.7182818)-0.0079*Y72-0.3381,1.0479))),1) -> 0 | Z73: =IF('Contest Entry'!$B$13="Yes",IF(Z72="",0,MAX(0.5796,MIN(0.5*LOG(Z72, 2.7182818)-0.0079*Z72-0.3381,1.0479))),1) -> 0 | AA73: =IF('Contest Entry'!$B$13="Yes",IF(AA72="",0,MAX(0.5796,MIN(0.5*LOG(AA72, 2.7182818)-0.0079*AA72-0.3381,1.0479))),1) -> 0 | AB73: =IF('Contest Entry'!$B$13="Yes",IF(AB72="",0,MAX(0.5796,MIN(0.5*LOG(AB72, 2.7182818)-0.0079*AB72-0.3381,1.0479))),1) -> 0 | AC73: =IF('Contest Entry'!$B$13="Yes",IF(AC72="",0,MAX(0.5796,MIN(0.5*LOG(AC72, 2.7182818)-0.0079*AC72-0.3381,1.0479))),1) -> 0 | AD73: =IF('Contest Entry'!$B$13="Yes",IF(AD72="",0,MAX(0.5796,MIN(0.5*LOG(AD72, 2.7182818)-0.0079*AD72-0.3381,1.0479))),1) -> 0 | AE73: =IF('Contest Entry'!$B$13="Yes",IF(AE72="",0,MAX(0.5796,MIN(0.5*LOG(AE72, 2.7182818)-0.0079*AE72-0.3381,1.0479))),1) -> 0 | AF73: =IF('Contest Entry'!$B$13="Yes",IF(AF72="",0,MAX(0.5796,MIN(0.5*LOG(AF72, 2.7182818)-0.0079*AF72-0.3381,1.0479))),1) -> 0 | AG73: =IF('Contest Entry'!$B$13="Yes",IF(AG72="",0,MAX(0.5796,MIN(0.5*LOG(AG72, 2.7182818)-0.0079*AG72-0.3381,1.0479))),1) -> 0 | AH73: =IF('Contest Entry'!$B$13="Yes",IF(AH72="",0,MAX(0.5796,MIN(0.5*LOG(AH72, 2.7182818)-0.0079*AH72-0.3381,1.0479))),1) -> 0 | AI73: =IF('Contest Entry'!$B$13="Yes",IF(AI72="",0,MAX(0.5796,MIN(0.5*LOG(AI72, 2.7182818)-0.0079*AI72-0.3381,1.0479))),1) -> 0 | AJ73: =IF('Contest Entry'!$B$13="Yes",IF(AJ72="",0,MAX(0.5796,MIN(0.5*LOG(AJ72, 2.7182818)-0.0079*AJ72-0.3381,1.0479))),1) -> 0 | AK73: =IF('Contest Entry'!$B$13="Yes",IF(AK72="",0,MAX(0.5796,MIN(0.5*LOG(AK72, 2.7182818)-0.0079*AK72-0.3381,1.0479))),1) -> 0 | AL73: =IF('Contest Entry'!$B$13="Yes",IF(AL72="",0,MAX(0.5796,MIN(0.5*LOG(AL72, 2.7182818)-0.0079*AL72-0.3381,1.0479))),1) -> 0 | AM73: =IF('Contest Entry'!$B$13="Yes",IF(AM72="",0,MAX(0.5796,MIN(0.5*LOG(AM72, 2.7182818)-0.0079*AM72-0.3381,1.0479))),1) -> 0 | AN73: =IF('Contest Entry'!$B$13="Yes",IF(AN72="",0,MAX(0.5796,MIN(0.5*LOG(AN72, 2.7182818)-0.0079*AN72-0.3381,1.0479))),1) -> 0 | AO73: =IF('Contest Entry'!$B$13="Yes",IF(AO72="",0,MAX(0.5796,MIN(0.5*LOG(AO72, 2.7182818)-0.0079*AO72-0.3381,1.0479))),1) -> 0 | AP73: =IF('Contest Entry'!$B$13="Yes",IF(AP72="",0,MAX(0.5796,MIN(0.5*LOG(AP72, 2.7182818)-0.0079*AP72-0.3381,1.0479))),1) -> 0 | AQ73: =IF('Contest Entry'!$B$13="Yes",IF(AQ72="",0,MAX(0.5796,MIN(0.5*LOG(AQ72, 2.7182818)-0.0079*AQ72-0.3381,1.0479))),1) -> 0 | AR73: =IF('Contest Entry'!$B$13="Yes",IF(AR72="",0,MAX(0.5796,MIN(0.5*LOG(AR72, 2.7182818)-0.0079*AR72-0.3381,1.0479))),1) -> 0 | AS73: =IF('Contest Entry'!$B$13="Yes",IF(AS72="",0,MAX(0.5796,MIN(0.5*LOG(AS72, 2.7182818)-0.0079*AS72-0.3381,1.0479))),1) -> 0 | AT73: =IF('Contest Entry'!$B$13="Yes",IF(AT72="",0,MAX(0.5796,MIN(0.5*LOG(AT72, 2.7182818)-0.0079*AT72-0.3381,1.0479))),1) -> 0 | AU73: =IF('Contest Entry'!$B$13="Yes",IF(AU72="",0,MAX(0.5796,MIN(0.5*LOG(AU72, 2.7182818)-0.0079*AU72-0.3381,1.0479))),1) -> 0 | AV73: =IF('Contest Entry'!$B$13="Yes",IF(AV72="",0,MAX(0.5796,MIN(0.5*LOG(AV72, 2.7182818)-0.0079*AV72-0.3381,1.0479))),1) -> 0 | AW73: =IF('Contest Entry'!$B$13="Yes",IF(AW72="",0,MAX(0.5796,MIN(0.5*LOG(AW72, 2.7182818)-0.0079*AW72-0.3381,1.0479))),1) -> 0 | AX73: =IF('Contest Entry'!$B$13="Yes",IF(AX72="",0,MAX(0.5796,MIN(0.5*LOG(AX72, 2.7182818)-0.0079*AX72-0.3381,1.0479))),1) -> 0 | AY73: =IF('Contest Entry'!$B$13="Yes",IF(AY72="",0,MAX(0.5796,MIN(0.5*LOG(AY72, 2.7182818)-0.0079*AY72-0.3381,1.0479))),1) -> 0 | AZ73: =IF('Contest Entry'!$B$13="Yes",IF(AZ72="",0,MAX(0.5796,MIN(0.5*LOG(AZ72, 2.7182818)-0.0079*AZ72-0.3381,1.0479))),1) -> 0 | BA73: =IF('Contest Entry'!$B$13="Yes",IF(BA72="",0,MAX(0.5796,MIN(0.5*LOG(BA72, 2.7182818)-0.0079*BA72-0.3381,1.0479))),1) -> 0 | BB73: =IF('Contest Entry'!$B$13="Yes",IF(BB72="",0,MAX(0.5796,MIN(0.5*LOG(BB72, 2.7182818)-0.0079*BB72-0.3381,1.0479))),1) -> 0 | BC73: =IF('Contest Entry'!$B$13="Yes",IF(BC72="",0,MAX(0.5796,MIN(0.5*LOG(BC72, 2.7182818)-0.0079*BC72-0.3381,1.0479))),1) -> 0 | BD73: =IF('Contest Entry'!$B$13="Yes",IF(BD72="",0,MAX(0.5796,MIN(0.5*LOG(BD72, 2.7182818)-0.0079*BD72-0.3381,1.0479))),1) -> 0 | BE73: =IF('Contest Entry'!$B$13="Yes",IF(BE72="",0,MAX(0.5796,MIN(0.5*LOG(BE72, 2.7182818)-0.0079*BE72-0.3381,1.0479))),1) -> 0 | BF73: =IF('Contest Entry'!$B$13="Yes",IF(BF72="",0,MAX(0.5796,MIN(0.5*LOG(BF72, 2.7182818)-0.0079*BF72-0.3381,1.0479))),1) -> 0 | BG73: =IF('Contest Entry'!$B$13="Yes",IF(BG72="",0,MAX(0.5796,MIN(0.5*LOG(BG72, 2.7182818)-0.0079*BG72-0.3381,1.0479))),1) -> 0 | BH73: =IF('Contest Entry'!$B$13="Yes",IF(BH72="",0,MAX(0.5796,MIN(0.5*LOG(BH72, 2.7182818)-0.0079*BH72-0.3381,1.0479))),1) -> 0 | BI73: =IF('Contest Entry'!$B$13="Yes",IF(BI72="",0,MAX(0.5796,MIN(0.5*LOG(BI72, 2.7182818)-0.0079*BI72-0.3381,1.0479))),1) -> 0 | BJ73: =IF('Contest Entry'!$B$13="Yes",IF(BJ72="",0,MAX(0.5796,MIN(0.5*LOG(BJ72, 2.7182818)-0.0079*BJ72-0.3381,1.0479))),1) -> 0
A74: Penalty
A75: Net Error | C75: =C71*C73+C74 -> 0.01192046018 | D75: =D71*D73+D74 -> 0 | E75: 0.01017315015 | F75: 0.001615999447 | G75: 0.003175253875 | H75: 0.02668228514 | I75: 0.004194101151 | J75: 0.006423914804 | K75: 0.01015729293 | L75: =L71*L73+L74 -> 0.0115778045 | M75: 0 | N75: =N71*N73+N74 -> 0 | O75: 0 | P75: 0 | Q75: 0 | R75: 0 | S75: 0 | T75: 0 | U75: 0 | V75: 0 | W75: 0 | X75: 0 | Y75: 0 | Z75: 0 | AA75: 0 | AB75: 0 | AC75: 0 | AD75: 0 | AE75: 0 | AF75: 0 | AG75: 0 | AH75: 0 | AI75: 0 | AJ75: 0 | AK75: 0 | AL75: 0 | AM75: 0 | AN75: 0 | AO75: 0 | AP75: 0 | AQ75: 0 | AR75: 0 | AS75: 0 | AT75: 0 | AU75: 0 | AV75: 0 | AW75: 0 | AX75: 0 | AY75: 0 | AZ75: 0 | BA75: 0 | BB75: 0 | BC75: 0 | BD75: 0 | BE75: 0 | BF75: 0 | BG75: =BG71*BG73+BG74 -> 0 | BH75: 0 | BI75: 0 | BJ75: 0
A76: Overall Rank | C76: =RANK(C75,$C$75:$BJ$75,1)-COUNTIF($C$69:$BJ$69,"=0")+COUNTIF($C$75:C75,C75)-1 -> 8 | D76: =RANK(D75,$C$75:$BJ$75,1)-COUNTIF($C$69:$BJ$69,"=0")+COUNTIF($C$75:D75,D75)-1 -> -50 | E76: =RANK(E75,$C$75:$BJ$75,1)-COUNTIF($C$69:$BJ$69,"=0")+COUNTIF($C$75:E75,E75)-1 -> 6 | F76: =RANK(F75,$C$75:$BJ$75,1)-COUNTIF($C$69:$BJ$69,"=0")+COUNTIF($C$75:F75,F75)-1 -> 1 | G76: =RANK(G75,$C$75:$BJ$75,1)-COUNTIF($C$69:$BJ$69,"=0")+COUNTIF($C$75:G75,G75)-1 -> 2 | H76: =RANK(H75,$C$75:$BJ$75,1)-COUNTIF($C$69:$BJ$69,"=0")+COUNTIF($C$75:H75,H75)-1 -> 9 | I76: =RANK(I75,$C$75:$BJ$75,1)-COUNTIF($C$69:$BJ$69,"=0")+COUNTIF($C$75:I75,I75)-1 -> 3 | J76: =RANK(J75,$C$75:$BJ$75,1)-COUNTIF($C$69:$BJ$69,"=0")+COUNTIF($C$75:J75,J75)-1 -> 4 | K76: =RANK(K75,$C$75:$BJ$75,1)-COUNTIF($C$69:$BJ$69,"=0")+COUNTIF($C$75:K75,K75)-1 -> 5 | L76: =RANK(L75,$C$75:$BJ$75,1)-COUNTIF($C$69:$BJ$69,"=0")+COUNTIF($C$75:L75,L75)-1 -> 7 | M76: =RANK(M75,$C$75:$BJ$75,1)-COUNTIF($C$69:$BJ$69,"=0")+COUNTIF($C$75:M75,M75)-1 -> -49 | N76: =RANK(N75,$C$75:$BJ$75,1)-COUNTIF($C$69:$BJ$69,"=0")+COUNTIF($C$75:N75,N75)-1 -> -48 | O76: =RANK(O75,$C$75:$BJ$75,1)-COUNTIF($C$69:$BJ$69,"=0")+COUNTIF($C$75:O75,O75)-1 -> -47 | P76: =RANK(P75,$C$75:$BJ$75,1)-COUNTIF($C$69:$BJ$69,"=0")+COUNTIF($C$75:P75,P75)-1 -> -46 | Q76: =RANK(Q75,$C$75:$BJ$75,1)-COUNTIF($C$69:$BJ$69,"=0")+COUNTIF($C$75:Q75,Q75)-1 -> -45 | R76: =RANK(R75,$C$75:$BJ$75,1)-COUNTIF($C$69:$BJ$69,"=0")+COUNTIF($C$75:R75,R75)-1 -> -44 | S76: =RANK(S75,$C$75:$BJ$75,1)-COUNTIF($C$69:$BJ$69,"=0")+COUNTIF($C$75:S75,S75)-1 -> -43 | T76: =RANK(T75,$C$75:$BJ$75,1)-COUNTIF($C$69:$BJ$69,"=0")+COUNTIF($C$75:T75,T75)-1 -> -42 | U76: =RANK(U75,$C$75:$BJ$75,1)-COUNTIF($C$69:$BJ$69,"=0")+COUNTIF($C$75:U75,U75)-1 -> -41 | V76: =RANK(V75,$C$75:$BJ$75,1)-COUNTIF($C$69:$BJ$69,"=0")+COUNTIF($C$75:V75,V75)-1 -> -40 | W76: =RANK(W75,$C$75:$BJ$75,1)-COUNTIF($C$69:$BJ$69,"=0")+COUNTIF($C$75:W75,W75)-1 -> -39 | X76: =RANK(X75,$C$75:$BJ$75,1)-COUNTIF($C$69:$BJ$69,"=0")+COUNTIF($C$75:X75,X75)-1 -> -38 | Y76: =RANK(Y75,$C$75:$BJ$75,1)-COUNTIF($C$69:$BJ$69,"=0")+COUNTIF($C$75:Y75,Y75)-1 -> -37 | Z76: =RANK(Z75,$C$75:$BJ$75,1)-COUNTIF($C$69:$BJ$69,"=0")+COUNTIF($C$75:Z75,Z75)-1 -> -36 | AA76: =RANK(AA75,$C$75:$BJ$75,1)-COUNTIF($C$69:$BJ$69,"=0")+COUNTIF($C$75:AA75,AA75)-1 -> -35 | AB76: =RANK(AB75,$C$75:$BJ$75,1)-COUNTIF($C$69:$BJ$69,"=0")+COUNTIF($C$75:AB75,AB75)-1 -> -34 | AC76: =RANK(AC75,$C$75:$BJ$75,1)-COUNTIF($C$69:$BJ$69,"=0")+COUNTIF($C$75:AC75,AC75)-1 -> -33 | AD76: =RANK(AD75,$C$75:$BJ$75,1)-COUNTIF($C$69:$BJ$69,"=0")+COUNTIF($C$75:AD75,AD75)-1 -> -32 | AE76: =RANK(AE75,$C$75:$BJ$75,1)-COUNTIF($C$69:$BJ$69,"=0")+COUNTIF($C$75:AE75,AE75)-1 -> -31 | AF76: =RANK(AF75,$C$75:$BJ$75,1)-COUNTIF($C$69:$BJ$69,"=0")+COUNTIF($C$75:AF75,AF75)-1 -> -30 | AG76: =RANK(AG75,$C$75:$BJ$75,1)-COUNTIF($C$69:$BJ$69,"=0")+COUNTIF($C$75:AG75,AG75)-1 -> -29 | AH76: =RANK(AH75,$C$75:$BJ$75,1)-COUNTIF($C$69:$BJ$69,"=0")+COUNTIF($C$75:AH75,AH75)-1 -> -28 | AI76: =RANK(AI75,$C$75:$BJ$75,1)-COUNTIF($C$69:$BJ$69,"=0")+COUNTIF($C$75:AI75,AI75)-1 -> -27 | AJ76: =RANK(AJ75,$C$75:$BJ$75,1)-COUNTIF($C$69:$BJ$69,"=0")+COUNTIF($C$75:AJ75,AJ75)-1 -> -26 | AK76: =RANK(AK75,$C$75:$BJ$75,1)-COUNTIF($C$69:$BJ$69,"=0")+COUNTIF($C$75:AK75,AK75)-1 -> -25 | AL76: =RANK(AL75,$C$75:$BJ$75,1)-COUNTIF($C$69:$BJ$69,"=0")+COUNTIF($C$75:AL75,AL75)-1 -> -24 | AM76: =RANK(AM75,$C$75:$BJ$75,1)-COUNTIF($C$69:$BJ$69,"=0")+COUNTIF($C$75:AM75,AM75)-1 -> -23 | AN76: =RANK(AN75,$C$75:$BJ$75,1)-COUNTIF($C$69:$BJ$69,"=0")+COUNTIF($C$75:AN75,AN75)-1 -> -22 | AO76: =RANK(AO75,$C$75:$BJ$75,1)-COUNTIF($C$69:$BJ$69,"=0")+COUNTIF($C$75:AO75,AO75)-1 -> -21 | AP76: =RANK(AP75,$C$75:$BJ$75,1)-COUNTIF($C$69:$BJ$69,"=0")+COUNTIF($C$75:AP75,AP75)-1 -> -20 | AQ76: =RANK(AQ75,$C$75:$BJ$75,1)-COUNTIF($C$69:$BJ$69,"=0")+COUNTIF($C$75:AQ75,AQ75)-1 -> -19 | AR76: =RANK(AR75,$C$75:$BJ$75,1)-COUNTIF($C$69:$BJ$69,"=0")+COUNTIF($C$75:AR75,AR75)-1 -> -18 | AS76: =RANK(AS75,$C$75:$BJ$75,1)-COUNTIF($C$69:$BJ$69,"=0")+COUNTIF($C$75:AS75,AS75)-1 -> -17 | AT76: =RANK(AT75,$C$75:$BJ$75,1)-COUNTIF($C$69:$BJ$69,"=0")+COUNTIF($C$75:AT75,AT75)-1 -> -16 | AU76: =RANK(AU75,$C$75:$BJ$75,1)-COUNTIF($C$69:$BJ$69,"=0")+COUNTIF($C$75:AU75,AU75)-1 -> -15 | AV76: =RANK(AV75,$C$75:$BJ$75,1)-COUNTIF($C$69:$BJ$69,"=0")+COUNTIF($C$75:AV75,AV75)-1 -> -14 | AW76: =RANK(AW75,$C$75:$BJ$75,1)-COUNTIF($C$69:$BJ$69,"=0")+COUNTIF($C$75:AW75,AW75)-1 -> -13 | AX76: =RANK(AX75,$C$75:$BJ$75,1)-COUNTIF($C$69:$BJ$69,"=0")+COUNTIF($C$75:AX75,AX75)-1 -> -12 | AY76: =RANK(AY75,$C$75:$BJ$75,1)-COUNTIF($C$69:$BJ$69,"=0") -> -50 | AZ76: -50 | BA76: -50 | BB76: -50 | BC76: -50 | BD76: -50 | BE76: -50 | BF76: -50 | BG76: =RANK(BG75,$C$75:$BJ$75,1)-COUNTIF($C$69:$BJ$69,"=0") -> -50 | BH76: -50 | BI76: -50 | BJ76: -50
A77: Rank By Predicted Seconds | C77: =IF(C76<=3,"",1+SUMPRODUCT(($C$76:$BJ$76>3)*(C33<$C$33:$BJ$33))+COUNTIF($C$33:C33,C33)-1) -> 4 | D77: =IF(D76<=3,"",1+SUMPRODUCT(($C$76:$BJ$76>3)*(D33<$C$33:$BJ$33))+COUNTIF($C$33:D33,D33)-1) ->  | E77: =IF(E76<=3,"",1+SUMPRODUCT(($C$76:$BJ$76>3)*(E33<$C$33:$BJ$33))+COUNTIF($C$33:E33,E33)-1) -> 1 | F77: =IF(F76<=3,"",1+SUMPRODUCT(($C$76:$BJ$76>3)*(F33<$C$33:$BJ$33))+COUNTIF($C$33:F33,F33)-1) ->  | G77: =IF(G76<=3,"",1+SUMPRODUCT(($C$76:$BJ$76>3)*(G33<$C$33:$BJ$33))+COUNTIF($C$33:G33,G33)-1) ->  | H77: =IF(H76<=3,"",1+SUMPRODUCT(($C$76:$BJ$76>3)*(H33<$C$33:$BJ$33))+COUNTIF($C$33:H33,H33)-1) -> 6 | I77: =IF(I76<=3,"",1+SUMPRODUCT(($C$76:$BJ$76>3)*(I33<$C$33:$BJ$33))+COUNTIF($C$33:I33,I33)-1) ->  | J77: =IF(J76<=3,"",1+SUMPRODUCT(($C$76:$BJ$76>3)*(J33<$C$33:$BJ$33))+COUNTIF($C$33:J33,J33)-1) -> 3 | K77: =IF(K76<=3,"",1+SUMPRODUCT(($C$76:$BJ$76>3)*(K33<$C$33:$BJ$33))+COUNTIF($C$33:K33,K33)-1) -> 5 | L77: =IF(L76<=3,"",1+SUMPRODUCT(($C$76:$BJ$76>3)*(L33<$C$33:$BJ$33))+COUNTIF($C$33:L33,L33)-1) -> 2 | M77: =IF(M76<=3,"",1+SUMPRODUCT(($C$76:$BJ$76>3)*(M33<$C$33:$BJ$33))+COUNTIF($C$33:M33,M33)-1) ->  | N77: =IF(N76<=3,"",1+SUMPRODUCT(($C$76:$BJ$76>3)*(N33<$C$33:$BJ$33))+COUNTIF($C$33:N33,N33)-1) ->  | O77: =IF(O76<=3,"",1+SUMPRODUCT(($C$76:$BJ$76>3)*(O33<$C$33:$BJ$33))+COUNTIF($C$33:O33,O33)-1) ->  | P77: =IF(P76<=3,"",1+SUMPRODUCT(($C$76:$BJ$76>3)*(P33<$C$33:$BJ$33))+COUNTIF($C$33:P33,P33)-1) ->  | Q77: =IF(Q76<=3,"",1+SUMPRODUCT(($C$76:$BJ$76>3)*(Q33<$C$33:$BJ$33))+COUNTIF($C$33:Q33,Q33)-1) ->  | R77: =IF(R76<=3,"",1+SUMPRODUCT(($C$76:$BJ$76>3)*(R33<$C$33:$BJ$33))+COUNTIF($C$33:R33,R33)-1) ->  | S77: =IF(S76<=3,"",1+SUMPRODUCT(($C$76:$BJ$76>3)*(S33<$C$33:$BJ$33))+COUNTIF($C$33:S33,S33)-1) ->  | T77: =IF(T76<=3,"",1+SUMPRODUCT(($C$76:$BJ$76>3)*(T33<$C$33:$BJ$33))+COUNTIF($C$33:T33,T33)-1) ->  | U77: =IF(U76<=3,"",1+SUMPRODUCT(($C$76:$BJ$76>3)*(U33<$C$33:$BJ$33))+COUNTIF($C$33:U33,U33)-1) ->  | V77: =IF(V76<=3,"",1+SUMPRODUCT(($C$76:$BJ$76>3)*(V33<$C$33:$BJ$33))+COUNTIF($C$33:V33,V33)-1) ->  | W77: =IF(W76<=3,"",1+SUMPRODUCT(($C$76:$BJ$76>3)*(W33<$C$33:$BJ$33))+COUNTIF($C$33:W33,W33)-1) ->  | X77: =IF(X76<=3,"",1+SUMPRODUCT(($C$76:$BJ$76>3)*(X33<$C$33:$BJ$33))+COUNTIF($C$33:X33,X33)-1) ->  | Y77: =IF(Y76<=3,"",1+SUMPRODUCT(($C$76:$BJ$76>3)*(Y33<$C$33:$BJ$33))+COUNTIF($C$33:Y33,Y33)-1) ->  | Z77: =IF(Z76<=3,"",1+SUMPRODUCT(($C$76:$BJ$76>3)*(Z33<$C$33:$BJ$33))+COUNTIF($C$33:Z33,Z33)-1) ->  | AA77: =IF(AA76<=3,"",1+SUMPRODUCT(($C$76:$BJ$76>3)*(AA33<$C$33:$BJ$33))+COUNTIF($C$33:AA33,AA33)-1) ->  | AB77: =IF(AB76<=3,"",1+SUMPRODUCT(($C$76:$BJ$76>3)*(AB33<$C$33:$BJ$33))+COUNTIF($C$33:AB33,AB33)-1) ->  | AC77: =IF(AC76<=3,"",1+SUMPRODUCT(($C$76:$BJ$76>3)*(AC33<$C$33:$BJ$33))+COUNTIF($C$33:AC33,AC33)-1) ->  | AD77: =IF(AD76<=3,"",1+SUMPRODUCT(($C$76:$BJ$76>3)*(AD33<$C$33:$BJ$33))+COUNTIF($C$33:AD33,AD33)-1) ->  | AE77: =IF(AE76<=3,"",1+SUMPRODUCT(($C$76:$BJ$76>3)*(AE33<$C$33:$BJ$33))+COUNTIF($C$33:AE33,AE33)-1) ->  | AF77: =IF(AF76<=3,"",1+SUMPRODUCT(($C$76:$BJ$76>3)*(AF33<$C$33:$BJ$33))+COUNTIF($C$33:AF33,AF33)-1) ->  | AG77: =IF(AG76<=3,"",1+SUMPRODUCT(($C$76:$BJ$76>3)*(AG33<$C$33:$BJ$33))+COUNTIF($C$33:AG33,AG33)-1) ->  | AH77: =IF(AH76<=3,"",1+SUMPRODUCT(($C$76:$BJ$76>3)*(AH33<$C$33:$BJ$33))+COUNTIF($C$33:AH33,AH33)-1) ->  | AI77: =IF(AI76<=3,"",1+SUMPRODUCT(($C$76:$BJ$76>3)*(AI33<$C$33:$BJ$33))+COUNTIF($C$33:AI33,AI33)-1) ->  | AJ77: =IF(AJ76<=3,"",1+SUMPRODUCT(($C$76:$BJ$76>3)*(AJ33<$C$33:$BJ$33))+COUNTIF($C$33:AJ33,AJ33)-1) ->  | AK77: =IF(AK76<=3,"",1+SUMPRODUCT(($C$76:$BJ$76>3)*(AK33<$C$33:$BJ$33))+COUNTIF($C$33:AK33,AK33)-1) ->  | AL77: =IF(AL76<=3,"",1+SUMPRODUCT(($C$76:$BJ$76>3)*(AL33<$C$33:$BJ$33))+COUNTIF($C$33:AL33,AL33)-1) ->  | AM77: =IF(AM76<=3,"",1+SUMPRODUCT(($C$76:$BJ$76>3)*(AM33<$C$33:$BJ$33))+COUNTIF($C$33:AM33,AM33)-1) ->  | AN77: =IF(AN76<=3,"",1+SUMPRODUCT(($C$76:$BJ$76>3)*(AN33<$C$33:$BJ$33))+COUNTIF($C$33:AN33,AN33)-1) ->  | AO77: =IF(AO76<=3,"",1+SUMPRODUCT(($C$76:$BJ$76>3)*(AO33<$C$33:$BJ$33))+COUNTIF($C$33:AO33,AO33)-1) ->  | AP77: =IF(AP76<=3,"",1+SUMPRODUCT(($C$76:$BJ$76>3)*(AP33<$C$33:$BJ$33))+COUNTIF($C$33:AP33,AP33)-1) ->  | AQ77: =IF(AQ76<=3,"",1+SUMPRODUCT(($C$76:$BJ$76>3)*(AQ33<$C$33:$BJ$33))+COUNTIF($C$33:AQ33,AQ33)-1) ->  | AR77: =IF(AR76<=3,"",1+SUMPRODUCT(($C$76:$BJ$76>3)*(AR33<$C$33:$BJ$33))+COUNTIF($C$33:AR33,AR33)-1) ->  | AS77: =IF(AS76<=3,"",1+SUMPRODUCT(($C$76:$BJ$76>3)*(AS33<$C$33:$BJ$33))+COUNTIF($C$33:AS33,AS33)-1) ->  | AT77: =IF(AT76<=3,"",1+SUMPRODUCT(($C$76:$BJ$76>3)*(AT33<$C$33:$BJ$33))+COUNTIF($C$33:AT33,AT33)-1) ->  | AU77: =IF(AU76<=3,"",1+SUMPRODUCT(($C$76:$BJ$76>3)*(AU33<$C$33:$BJ$33))+COUNTIF($C$33:AU33,AU33)-1) ->  | AV77: =IF(AV76<=3,"",1+SUMPRODUCT(($C$76:$BJ$76>3)*(AV33<$C$33:$BJ$33))+COUNTIF($C$33:AV33,AV33)-1) ->  | AW77: =IF(AW76<=3,"",1+SUMPRODUCT(($C$76:$BJ$76>3)*(AW33<$C$33:$BJ$33))+COUNTIF($C$33:AW33,AW33)-1) ->  | AX77: =IF(AX76<=3,"",1+SUMPRODUCT(($C$76:$BJ$76>3)*(AX33<$C$33:$BJ$33))+COUNTIF($C$33:AX33,AX33)-1) ->  | AY77: =IF(AY76<=3,"",1+SUMPRODUCT(($C$76:$BJ$76>3)*(AY33<$C$33:$BJ$33))) ->  | BG77: =IF(BG76<=3,"",1+SUMPRODUCT(($C$76:$BJ$76>3)*(BG33<$C$33:$BJ$33))) ->  | BH77: =IF(BH76<=3,"",1+SUMPRODUCT(($C$76:$BJ$76>3)*(BH33<$C$33:$BJ$33))) -> 
A78: Class | C78: =IF(C77="","",ClassFromRank(C77,Number_of_Classes,Number_of_Contestants)) -> 4 | D78: =IF(D77="","",ClassFromRank(D77,Number_of_Classes,Number_of_Contestants)) ->  | E78: =IF(E77="","",ClassFromRank(E77,Number_of_Classes,Number_of_Contestants)) -> 1 | F78: =IF(F77="","",ClassFromRank(F77,Number_of_Classes,Number_of_Contestants)) ->  | G78: =IF(G77="","",ClassFromRank(G77,Number_of_Classes,Number_of_Contestants)) ->  | H78: =IF(H77="","",ClassFromRank(H77,Number_of_Classes,Number_of_Contestants)) -> 5 | I78: =IF(I77="","",ClassFromRank(I77,Number_of_Classes,Number_of_Contestants)) ->  | J78: =IF(J77="","",ClassFromRank(J77,Number_of_Classes,Number_of_Contestants)) -> 3 | K78: =IF(K77="","",ClassFromRank(K77,Number_of_Classes,Number_of_Contestants)) -> 5 | L78: =IF(L77="","",ClassFromRank(L77,Number_of_Classes,Number_of_Contestants)) -> 2 | M78: =IF(M77="","",ClassFromRank(M77,Number_of_Classes,Number_of_Contestants)) ->  | N78: =IF(N77="","",ClassFromRank(N77,Number_of_Classes,Number_of_Contestants)) ->  | O78: =IF(O77="","",ClassFromRank(O77,Number_of_Classes,Number_of_Contestants)) ->  | P78: =IF(P77="","",ClassFromRank(P77,Number_of_Classes,Number_of_Contestants)) ->  | Q78: =IF(Q77="","",ClassFromRank(Q77,Number_of_Classes,Number_of_Contestants)) ->  | R78: =IF(R77="","",ClassFromRank(R77,Number_of_Classes,Number_of_Contestants)) ->  | S78: =IF(S77="","",ClassFromRank(S77,Number_of_Classes,Number_of_Contestants)) ->  | T78: =IF(T77="","",ClassFromRank(T77,Number_of_Classes,Number_of_Contestants)) ->  | U78: =IF(U77="","",ClassFromRank(U77,Number_of_Classes,Number_of_Contestants)) ->  | V78: =IF(V77="","",ClassFromRank(V77,Number_of_Classes,Number_of_Contestants)) ->  | W78: =IF(W77="","",ClassFromRank(W77,Number_of_Classes,Number_of_Contestants)) ->  | X78: =IF(X77="","",ClassFromRank(X77,Number_of_Classes,Number_of_Contestants)) ->  | Y78: =IF(Y77="","",ClassFromRank(Y77,Number_of_Classes,Number_of_Contestants)) ->  | Z78: =IF(Z77="","",ClassFromRank(Z77,Number_of_Classes,Number_of_Contestants)) ->  | AA78: =IF(AA77="","",ClassFromRank(AA77,Number_of_Classes,Number_of_Contestants)) ->  | AB78: =IF(AB77="","",ClassFromRank(AB77,Number_of_Classes,Number_of_Contestants)) ->  | AC78: =IF(AC77="","",ClassFromRank(AC77,Number_of_Classes,Number_of_Contestants)) ->  | AD78: =IF(AD77="","",ClassFromRank(AD77,Number_of_Classes,Number_of_Contestants)) ->  | AE78: =IF(AE77="","",ClassFromRank(AE77,Number_of_Classes,Number_of_Contestants)) ->  | AF78: =IF(AF77="","",ClassFromRank(AF77,Number_of_Classes,Number_of_Contestants)) ->  | AG78: =IF(AG77="","",ClassFromRank(AG77,Number_of_Classes,Number_of_Contestants)) ->  | AH78: =IF(AH77="","",ClassFromRank(AH77,Number_of_Classes,Number_of_Contestants)) ->  | AI78: =IF(AI77="","",ClassFromRank(AI77,Number_of_Classes,Number_of_Contestants)) ->  | AJ78: =IF(AJ77="","",ClassFromRank(AJ77,Number_of_Classes,Number_of_Contestants)) ->  | AK78: =IF(AK77="","",ClassFromRank(AK77,Number_of_Classes,Number_of_Contestants)) ->  | AL78: =IF(AL77="","",ClassFromRank(AL77,Number_of_Classes,Number_of_Contestants)) ->  | AM78: =IF(AM77="","",ClassFromRank(AM77,Number_of_Classes,Number_of_Contestants)) ->  | AN78: =IF(AN77="","",ClassFromRank(AN77,Number_of_Classes,Number_of_Contestants)) ->  | AO78: =IF(AO77="","",ClassFromRank(AO77,Number_of_Classes,Number_of_Contestants)) ->  | AP78: =IF(AP77="","",ClassFromRank(AP77,Number_of_Classes,Number_of_Contestants)) ->  | AQ78: =IF(AQ77="","",ClassFromRank(AQ77,Number_of_Classes,Number_of_Contestants)) ->  | AR78: =IF(AR77="","",ClassFromRank(AR77,Number_of_Classes,Number_of_Contestants)) ->  | AS78: =IF(AS77="","",ClassFromRank(AS77,Number_of_Classes,Number_of_Contestants)) ->  | AT78: =IF(AT77="","",ClassFromRank(AT77,Number_of_Classes,Number_of_Contestants)) ->  | AU78: =IF(AU77="","",ClassFromRank(AU77,Number_of_Classes,Number_of_Contestants)) ->  | AV78: =IF(AV77="","",ClassFromRank(AV77,Number_of_Classes,Number_of_Contestants)) ->  | AW78: =IF(AW77="","",ClassFromRank(AW77,Number_of_Classes,Number_of_Contestants)) ->  | AX78: =IF(AX77="","",ClassFromRank(AX77,Number_of_Classes,Number_of_Contestants)) ->  | AY78: =IF(AY77="","",ROUNDUP(AY77/Class_Divisor,0)) ->  | BG78: =IF(BG77="","",ROUNDUP(BG77/Class_Divisor,0)) -> 
A79: Rank within Class | C79: =IF(C78="","",1+SUMPRODUCT(($C$78:$BJ$78=C78)*($C$75:$BJ$75<C75))+COUNTIF($C$75:C75,C75)-1) -> 1 | D79: =IF(D78="","",1+SUMPRODUCT(($C$78:$BJ$78=D78)*($C$75:$BJ$75<D75))+COUNTIF($C$75:D75,D75)-1) ->  | E79: =IF(E78="","",1+SUMPRODUCT(($C$78:$BJ$78=E78)*($C$75:$BJ$75<E75))+COUNTIF($C$75:E75,E75)-1) -> 1 | F79: =IF(F78="","",1+SUMPRODUCT(($C$78:$BJ$78=F78)*($C$75:$BJ$75<F75))+COUNTIF($C$75:F75,F75)-1) ->  | G79: =IF(G78="","",1+SUMPRODUCT(($C$78:$BJ$78=G78)*($C$75:$BJ$75<G75))+COUNTIF($C$75:G75,G75)-1) ->  | H79: =IF(H78="","",1+SUMPRODUCT(($C$78:$BJ$78=H78)*($C$75:$BJ$75<H75))+COUNTIF($C$75:H75,H75)-1) -> 2 | I79: =IF(I78="","",1+SUMPRODUCT(($C$78:$BJ$78=I78)*($C$75:$BJ$75<I75))+COUNTIF($C$75:I75,I75)-1) ->  | J79: =IF(J78="","",1+SUMPRODUCT(($C$78:$BJ$78=J78)*($C$75:$BJ$75<J75))+COUNTIF($C$75:J75,J75)-1) -> 1 | K79: =IF(K78="","",1+SUMPRODUCT(($C$78:$BJ$78=K78)*($C$75:$BJ$75<K75))+COUNTIF($C$75:K75,K75)-1) -> 1 | L79: =IF(L78="","",1+SUMPRODUCT(($C$78:$BJ$78=L78)*($C$75:$BJ$75<L75))+COUNTIF($C$75:L75,L75)-1) -> 1 | M79: =IF(M78="","",1+SUMPRODUCT(($C$78:$BJ$78=M78)*($C$75:$BJ$75<M75))+COUNTIF($C$75:M75,M75)-1) ->  | N79: =IF(N78="","",1+SUMPRODUCT(($C$78:$BJ$78=N78)*($C$75:$BJ$75<N75))+COUNTIF($C$75:N75,N75)-1) ->  | O79: =IF(O78="","",1+SUMPRODUCT(($C$78:$BJ$78=O78)*($C$75:$BJ$75<O75))+COUNTIF($C$75:O75,O75)-1) ->  | P79: =IF(P78="","",1+SUMPRODUCT(($C$78:$BJ$78=P78)*($C$75:$BJ$75<P75))+COUNTIF($C$75:P75,P75)-1) ->  | Q79: =IF(Q78="","",1+SUMPRODUCT(($C$78:$BJ$78=Q78)*($C$75:$BJ$75<Q75))+COUNTIF($C$75:Q75,Q75)-1) ->  | R79: =IF(R78="","",1+SUMPRODUCT(($C$78:$BJ$78=R78)*($C$75:$BJ$75<R75))+COUNTIF($C$75:R75,R75)-1) ->  | S79: =IF(S78="","",1+SUMPRODUCT(($C$78:$BJ$78=S78)*($C$75:$BJ$75<S75))+COUNTIF($C$75:S75,S75)-1) ->  | T79: =IF(T78="","",1+SUMPRODUCT(($C$78:$BJ$78=T78)*($C$75:$BJ$75<T75))+COUNTIF($C$75:T75,T75)-1) ->  | U79: =IF(U78="","",1+SUMPRODUCT(($C$78:$BJ$78=U78)*($C$75:$BJ$75<U75))+COUNTIF($C$75:U75,U75)-1) ->  | V79: =IF(V78="","",1+SUMPRODUCT(($C$78:$BJ$78=V78)*($C$75:$BJ$75<V75))+COUNTIF($C$75:V75,V75)-1) ->  | W79: =IF(W78="","",1+SUMPRODUCT(($C$78:$BJ$78=W78)*($C$75:$BJ$75<W75))+COUNTIF($C$75:W75,W75)-1) ->  | X79: =IF(X78="","",1+SUMPRODUCT(($C$78:$BJ$78=X78)*($C$75:$BJ$75<X75))+COUNTIF($C$75:X75,X75)-1) ->  | Y79: =IF(Y78="","",1+SUMPRODUCT(($C$78:$BJ$78=Y78)*($C$75:$BJ$75<Y75))+COUNTIF($C$75:Y75,Y75)-1) ->  | Z79: =IF(Z78="","",1+SUMPRODUCT(($C$78:$BJ$78=Z78)*($C$75:$BJ$75<Z75))+COUNTIF($C$75:Z75,Z75)-1) ->  | AA79: =IF(AA78="","",1+SUMPRODUCT(($C$78:$BJ$78=AA78)*($C$75:$BJ$75<AA75))+COUNTIF($C$75:AA75,AA75)-1) ->  | AB79: =IF(AB78="","",1+SUMPRODUCT(($C$78:$BJ$78=AB78)*($C$75:$BJ$75<AB75))+COUNTIF($C$75:AB75,AB75)-1) ->  | AC79: =IF(AC78="","",1+SUMPRODUCT(($C$78:$BJ$78=AC78)*($C$75:$BJ$75<AC75))+COUNTIF($C$75:AC75,AC75)-1) ->  | AD79: =IF(AD78="","",1+SUMPRODUCT(($C$78:$BJ$78=AD78)*($C$75:$BJ$75<AD75))+COUNTIF($C$75:AD75,AD75)-1) ->  | AE79: =IF(AE78="","",1+SUMPRODUCT(($C$78:$BJ$78=AE78)*($C$75:$BJ$75<AE75))+COUNTIF($C$75:AE75,AE75)-1) ->  | AF79: =IF(AF78="","",1+SUMPRODUCT(($C$78:$BJ$78=AF78)*($C$75:$BJ$75<AF75))+COUNTIF($C$75:AF75,AF75)-1) ->  | AG79: =IF(AG78="","",1+SUMPRODUCT(($C$78:$BJ$78=AG78)*($C$75:$BJ$75<AG75))+COUNTIF($C$75:AG75,AG75)-1) ->  | AH79: =IF(AH78="","",1+SUMPRODUCT(($C$78:$BJ$78=AH78)*($C$75:$BJ$75<AH75))+COUNTIF($C$75:AH75,AH75)-1) ->  | AI79: =IF(AI78="","",1+SUMPRODUCT(($C$78:$BJ$78=AI78)*($C$75:$BJ$75<AI75))+COUNTIF($C$75:AI75,AI75)-1) ->  | AJ79: =IF(AJ78="","",1+SUMPRODUCT(($C$78:$BJ$78=AJ78)*($C$75:$BJ$75<AJ75))+COUNTIF($C$75:AJ75,AJ75)-1) ->  | AK79: =IF(AK78="","",1+SUMPRODUCT(($C$78:$BJ$78=AK78)*($C$75:$BJ$75<AK75))+COUNTIF($C$75:AK75,AK75)-1) ->  | AL79: =IF(AL78="","",1+SUMPRODUCT(($C$78:$BJ$78=AL78)*($C$75:$BJ$75<AL75))+COUNTIF($C$75:AL75,AL75)-1) ->  | AM79: =IF(AM78="","",1+SUMPRODUCT(($C$78:$BJ$78=AM78)*($C$75:$BJ$75<AM75))+COUNTIF($C$75:AM75,AM75)-1) ->  | AN79: =IF(AN78="","",1+SUMPRODUCT(($C$78:$BJ$78=AN78)*($C$75:$BJ$75<AN75))+COUNTIF($C$75:AN75,AN75)-1) ->  | AO79: =IF(AO78="","",1+SUMPRODUCT(($C$78:$BJ$78=AO78)*($C$75:$BJ$75<AO75))+COUNTIF($C$75:AO75,AO75)-1) ->  | AP79: =IF(AP78="","",1+SUMPRODUCT(($C$78:$BJ$78=AP78)*($C$75:$BJ$75<AP75))+COUNTIF($C$75:AP75,AP75)-1) ->  | AQ79: =IF(AQ78="","",1+SUMPRODUCT(($C$78:$BJ$78=AQ78)*($C$75:$BJ$75<AQ75))+COUNTIF($C$75:AQ75,AQ75)-1) ->  | AR79: =IF(AR78="","",1+SUMPRODUCT(($C$78:$BJ$78=AR78)*($C$75:$BJ$75<AR75))+COUNTIF($C$75:AR75,AR75)-1) ->  | AS79: =IF(AS78="","",1+SUMPRODUCT(($C$78:$BJ$78=AS78)*($C$75:$BJ$75<AS75))+COUNTIF($C$75:AS75,AS75)-1) ->  | AT79: =IF(AT78="","",1+SUMPRODUCT(($C$78:$BJ$78=AT78)*($C$75:$BJ$75<AT75))+COUNTIF($C$75:AT75,AT75)-1) ->  | AU79: =IF(AU78="","",1+SUMPRODUCT(($C$78:$BJ$78=AU78)*($C$75:$BJ$75<AU75))+COUNTIF($C$75:AU75,AU75)-1) ->  | AV79: =IF(AV78="","",1+SUMPRODUCT(($C$78:$BJ$78=AV78)*($C$75:$BJ$75<AV75))+COUNTIF($C$75:AV75,AV75)-1) ->  | AW79: =IF(AW78="","",1+SUMPRODUCT(($C$78:$BJ$78=AW78)*($C$75:$BJ$75<AW75))+COUNTIF($C$75:AW75,AW75)-1) ->  | AX79: =IF(AX78="","",1+SUMPRODUCT(($C$78:$BJ$78=AX78)*($C$75:$BJ$75<AX75))+COUNTIF($C$75:AX75,AX75)-1) -> 
A80: Combined Class & Rank | C80: =IF(C77="","",C78+C79/10) -> 4.1 | D80: =IF(D77="","",D78+D79/10) ->  | E80: 1.1 | H80: 5.2 | J80: 3.1 | K80: 5.1 | L80: 2.1 | M80: =IF(M77="","",M78+M79/10) ->  | N80: =IF(N77="","",N78+N79/10) ->  | O80: =IF(O77="","",O78+O79/10) ->  | P80: =IF(P77="","",P78+P79/10) ->  | Q80: =IF(Q77="","",Q78+Q79/10) ->  | R80: =IF(R77="","",R78+R79/10) ->  | S80: =IF(S77="","",S78+S79/10) ->  | T80: =IF(T77="","",T78+T79/10) ->  | V80: =IF(V77="","",V78+V79/10) ->  | W80: =IF(W77="","",W78+W79/10) ->  | X80: =IF(X77="","",X78+X79/10) ->  | Y80: =IF(Y77="","",Y78+Y79/10) ->  | Z80: =IF(Z77="","",Z78+Z79/10) ->  | AA80: =IF(AA77="","",AA78+AA79/10) ->  | AB80: =IF(AB77="","",AB78+AB79/10) ->  | AC80: =IF(AC77="","",AC78+AC79/10) ->  | AE80: =IF(AE77="","",AE78+AE79/10) ->  | AF80: =IF(AF77="","",AF78+AF79/10) ->  | AG80: =IF(AG77="","",AG78+AG79/10) ->  | AH80: =IF(AH77="","",AH78+AH79/10) ->  | AI80: =IF(AI77="","",AI78+AI79/10) ->  | AJ80: =IF(AJ77="","",AJ78+AJ79/10) ->  | AK80: =IF(AK77="","",AK78+AK79/10) ->  | AL80: =IF(AL77="","",AL78+AL79/10) ->  | AN80: =IF(AN77="","",AN78+AN79/10) ->  | AO80: =IF(AO77="","",AO78+AO79/10) ->  | AP80: =IF(AP77="","",AP78+AP79/10) ->  | AQ80: =IF(AQ77="","",AQ78+AQ79/10) ->  | AR80: =IF(AR77="","",AR78+AR79/10) ->  | AS80: =IF(AS77="","",AS78+AS79/10) ->  | AT80: =IF(AT77="","",AT78+AT79/10) ->  | AU80: =IF(AU77="","",AU78+AU79/10) ->  | AW80: =IF(AW77="","",AW78+AW79/10) ->  | AX80: =IF(AX77="","",AX78+AX79/10) ->  | AY80: =IF(AY77="","",AY78+AY79/10) ->  | AZ80: =IF(AZ77="","",AZ78+AZ79/10) ->  | BA80: =IF(BA77="","",BA78+BA79/10) ->  | BB80: =IF(BB77="","",BB78+BB79/10) ->  | BC80: =IF(BC77="","",BC78+BC79/10) ->  | BD80: =IF(BD77="","",BD78+BD79/10) ->  | BF80: =IF(BF77="","",BF78+BF79/10) ->  | BI80: =IF(BI77="","",BI78+BI79/10) ->  | BJ80: =IF(BJ77="","",BJ78+BJ79/10) -> 
A81: Novice Rank | C81: =IF(C11="Yes",1+SUMPRODUCT(($C$11:$BJ$11="Yes")*(C75>$C$75:$BJ$75)),"") ->  | L81: 1 | AI81: =IF(AI11="Yes",1+SUMPRODUCT(($C$11:$BJ$11="Yes")*(AI75>$C$75:$BJ$75)),"") ->  | BG81: =IF(BG11="Yes",1+SUMPRODUCT(($C$11:$BJ$11="Yes")*(BG75>$C$75:$BJ$75)),"") -> 
A82: Rank by Predicted Start Time | C82: =IFERROR(RANK(C22,$C$22:$BJ$22,1)+COUNTIF($C$22:C22,C22)-1,"") -> 7 | D82: =IFERROR(RANK(D22,$C$22:$BJ$22,1)+COUNTIF($C$22:D22,D22)-1,"") ->  | E82: =IFERROR(RANK(E22,$C$22:$BJ$22,1)+COUNTIF($C$22:E22,E22)-1,"") -> 1 | F82: =IFERROR(RANK(F22,$C$22:$BJ$22,1)+COUNTIF($C$22:F22,F22)-1,"") -> 5 | G82: =IFERROR(RANK(G22,$C$22:$BJ$22,1)+COUNTIF($C$22:G22,G22)-1,"") -> 2 | H82: =IFERROR(RANK(H22,$C$22:$BJ$22,1)+COUNTIF($C$22:H22,H22)-1,"") -> 9 | I82: =IFERROR(RANK(I22,$C$22:$BJ$22,1)+COUNTIF($C$22:I22,I22)-1,"") -> 4 | J82: =IFERROR(RANK(J22,$C$22:$BJ$22,1)+COUNTIF($C$22:J22,J22)-1,"") -> 6 | K82: =IFERROR(RANK(K22,$C$22:$BJ$22,1)+COUNTIF($C$22:K22,K22)-1,"") -> 8 | L82: =IFERROR(RANK(L22,$C$22:$BJ$22,1)+COUNTIF($C$22:L22,L22)-1,"") -> 3 | M82: =IFERROR(RANK(M22,$C$22:$BJ$22,1)+COUNTIF($C$22:M22,M22)-1,"") ->  | N82: =IFERROR(RANK(N22,$C$22:$BJ$22,1)+COUNTIF($C$22:N22,N22)-1,"") ->  | O82: =IFERROR(RANK(O22,$C$22:$BJ$22,1)+COUNTIF($C$22:O22,O22)-1,"") ->  | P82: =IFERROR(RANK(P22,$C$22:$BJ$22,1)+COUNTIF($C$22:P22,P22)-1,"") ->  | Q82: =IFERROR(RANK(Q22,$C$22:$BJ$22,1)+COUNTIF($C$22:Q22,Q22)-1,"") ->  | R82: =IFERROR(RANK(R22,$C$22:$BJ$22,1)+COUNTIF($C$22:R22,R22)-1,"") ->  | S82: =IFERROR(RANK(S22,$C$22:$BJ$22,1)+COUNTIF($C$22:S22,S22)-1,"") ->  | T82: =IFERROR(RANK(T22,$C$22:$BJ$22,1)+COUNTIF($C$22:T22,T22)-1,"") ->  | U82: =IFERROR(RANK(U22,$C$22:$BJ$22,1)+COUNTIF($C$22:U22,U22)-1,"") ->  | V82: =IFERROR(RANK(V22,$C$22:$BJ$22,1)+COUNTIF($C$22:V22,V22)-1,"") ->  | W82: =IFERROR(RANK(W22,$C$22:$BJ$22,1)+COUNTIF($C$22:W22,W22)-1,"") ->  | X82: =IFERROR(RANK(X22,$C$22:$BJ$22,1)+COUNTIF($C$22:X22,X22)-1,"") ->  | Y82: =IFERROR(RANK(Y22,$C$22:$BJ$22,1)+COUNTIF($C$22:Y22,Y22)-1,"") ->  | Z82: =IFERROR(RANK(Z22,$C$22:$BJ$22,1)+COUNTIF($C$22:Z22,Z22)-1,"") ->  | AA82: =IFERROR(RANK(AA22,$C$22:$BJ$22,1)+COUNTIF($C$22:AA22,AA22)-1,"") ->  | AB82: =IFERROR(RANK(AB22,$C$22:$BJ$22,1)+COUNTIF($C$22:AB22,AB22)-1,"") ->  | AC82: =IFERROR(RANK(AC22,$C$22:$BJ$22,1)+COUNTIF($C$22:AC22,AC22)-1,"") ->  | AD82: =IFERROR(RANK(AD22,$C$22:$BJ$22,1)+COUNTIF($C$22:AD22,AD22)-1,"") ->  | AE82: =IFERROR(RANK(AE22,$C$22:$BJ$22,1)+COUNTIF($C$22:AE22,AE22)-1,"") ->  | AF82: =IFERROR(RANK(AF22,$C$22:$BJ$22,1)+COUNTIF($C$22:AF22,AF22)-1,"") ->  | AG82: =IFERROR(RANK(AG22,$C$22:$BJ$22,1)+COUNTIF($C$22:AG22,AG22)-1,"") ->  | AH82: =IFERROR(RANK(AH22,$C$22:$BJ$22,1)+COUNTIF($C$22:AH22,AH22)-1,"") ->  | AI82: =IFERROR(RANK(AI22,$C$22:$BJ$22,1)+COUNTIF($C$22:AI22,AI22)-1,"") ->  | AJ82: =IFERROR(RANK(AJ22,$C$22:$BJ$22,1)+COUNTIF($C$22:AJ22,AJ22)-1,"") ->  | AK82: =IFERROR(RANK(AK22,$C$22:$BJ$22,1)+COUNTIF($C$22:AK22,AK22)-1,"") ->  | AL82: =IFERROR(RANK(AL22,$C$22:$BJ$22,1)+COUNTIF($C$22:AL22,AL22)-1,"") ->  | AM82: =IFERROR(RANK(AM22,$C$22:$BJ$22,1)+COUNTIF($C$22:AM22,AM22)-1,"") ->  | AN82: =IFERROR(RANK(AN22,$C$22:$BJ$22,1)+COUNTIF($C$22:AN22,AN22)-1,"") ->  | AO82: =IFERROR(RANK(AO22,$C$22:$BJ$22,1)+COUNTIF($C$22:AO22,AO22)-1,"") ->  | AP82: =IFERROR(RANK(AP22,$C$22:$BJ$22,1)+COUNTIF($C$22:AP22,AP22)-1,"") ->  | AQ82: =IFERROR(RANK(AQ22,$C$22:$BJ$22,1)+COUNTIF($C$22:AQ22,AQ22)-1,"") ->  | AR82: =IFERROR(RANK(AR22,$C$22:$BJ$22,1)+COUNTIF($C$22:AR22,AR22)-1,"") ->  | AS82: =IFERROR(RANK(AS22,$C$22:$BJ$22,1)+COUNTIF($C$22:AS22,AS22)-1,"") ->  | AT82: =IFERROR(RANK(AT22,$C$22:$BJ$22,1)+COUNTIF($C$22:AT22,AT22)-1,"") ->  | AU82: =IFERROR(RANK(AU22,$C$22:$BJ$22,1)+COUNTIF($C$22:AU22,AU22)-1,"") ->  | AV82: =IFERROR(RANK(AV22,$C$22:$BJ$22,1)+COUNTIF($C$22:AV22,AV22)-1,"") ->  | AW82: =IFERROR(RANK(AW22,$C$22:$BJ$22,1)+COUNTIF($C$22:AW22,AW22)-1,"") ->  | AX82: =IFERROR(RANK(AX22,$C$22:$BJ$22,1)+COUNTIF($C$22:AX22,AX22)-1,"") ->  | AY82: =IFERROR(RANK(AY22,$C$22:$BJ$22,1),"") ->  | BG82: =IFERROR(RANK(BG22,$C$22:$BJ$22,1),"") -> 
A83: Rank by Alpha Boat Name | C83: =COUNTIF($C$4:$AX$4,"<" & C4)+COUNTIF($C$4:C4,C4) -> 4 | D83: =COUNTIF($C$4:$AX$4,"<" & D4)+COUNTIF($C$4:D4,D4) -> 0 | E83: =COUNTIF($C$4:$AX$4,"<" & E4)+COUNTIF($C$4:E4,E4) -> 9 | F83: =COUNTIF($C$4:$AX$4,"<" & F4)+COUNTIF($C$4:F4,F4) -> 1 | G83: =COUNTIF($C$4:$AX$4,"<" & G4)+COUNTIF($C$4:G4,G4) -> 8 | H83: =COUNTIF($C$4:$AX$4,"<" & H4)+COUNTIF($C$4:H4,H4) -> 6 | I83: =COUNTIF($C$4:$AX$4,"<" & I4)+COUNTIF($C$4:I4,I4) -> 5 | J83: =COUNTIF($C$4:$AX$4,"<" & J4)+COUNTIF($C$4:J4,J4) -> 3 | K83: =COUNTIF($C$4:$AX$4,"<" & K4)+COUNTIF($C$4:K4,K4) -> 2 | L83: =COUNTIF($C$4:$AX$4,"<" & L4)+COUNTIF($C$4:L4,L4) -> 7 | M83: =COUNTIF($C$4:$AX$4,"<" & M4)+COUNTIF($C$4:M4,M4) -> 0 | N83: =COUNTIF($C$4:$AX$4,"<" & N4)+COUNTIF($C$4:N4,N4) -> 0 | O83: =COUNTIF($C$4:$AX$4,"<" & O4)+COUNTIF($C$4:O4,O4) -> 0 | P83: =COUNTIF($C$4:$AX$4,"<" & P4)+COUNTIF($C$4:P4,P4) -> 0 | Q83: =COUNTIF($C$4:$AX$4,"<" & Q4)+COUNTIF($C$4:Q4,Q4) -> 0 | R83: =COUNTIF($C$4:$AX$4,"<" & R4)+COUNTIF($C$4:R4,R4) -> 0 | S83: =COUNTIF($C$4:$AX$4,"<" & S4)+COUNTIF($C$4:S4,S4) -> 0 | T83: =COUNTIF($C$4:$AX$4,"<" & T4)+COUNTIF($C$4:T4,T4) -> 0 | U83: =COUNTIF($C$4:$AX$4,"<" & U4)+COUNTIF($C$4:U4,U4) -> 0 | V83: =COUNTIF($C$4:$AX$4,"<" & V4)+COUNTIF($C$4:V4,V4) -> 0 | W83: =COUNTIF($C$4:$AX$4,"<" & W4)+COUNTIF($C$4:W4,W4) -> 0 | X83: =COUNTIF($C$4:$AX$4,"<" & X4)+COUNTIF($C$4:X4,X4) -> 0 | Y83: =COUNTIF($C$4:$AX$4,"<" & Y4)+COUNTIF($C$4:Y4,Y4) -> 0 | Z83: =COUNTIF($C$4:$AX$4,"<" & Z4)+COUNTIF($C$4:Z4,Z4) -> 0 | AA83: =COUNTIF($C$4:$AX$4,"<" & AA4)+COUNTIF($C$4:AA4,AA4) -> 0 | AB83: =COUNTIF($C$4:$AX$4,"<" & AB4)+COUNTIF($C$4:AB4,AB4) -> 0 | AC83: =COUNTIF($C$4:$AX$4,"<" & AC4)+COUNTIF($C$4:AC4,AC4) -> 0 | AD83: =COUNTIF($C$4:$AX$4,"<" & AD4)+COUNTIF($C$4:AD4,AD4) -> 0 | AE83: =COUNTIF($C$4:$AX$4,"<" & AE4)+COUNTIF($C$4:AE4,AE4) -> 0 | AF83: =COUNTIF($C$4:$AX$4,"<" & AF4)+COUNTIF($C$4:AF4,AF4) -> 0 | AG83: =COUNTIF($C$4:$AX$4,"<" & AG4)+COUNTIF($C$4:AG4,AG4) -> 0 | AH83: =COUNTIF($C$4:$AX$4,"<" & AH4)+COUNTIF($C$4:AH4,AH4) -> 0 | AI83: =COUNTIF($C$4:$AX$4,"<" & AI4)+COUNTIF($C$4:AI4,AI4) -> 0 | AJ83: =COUNTIF($C$4:$AX$4,"<" & AJ4)+COUNTIF($C$4:AJ4,AJ4) -> 0 | AK83: =COUNTIF($C$4:$AX$4,"<" & AK4)+COUNTIF($C$4:AK4,AK4) -> 0 | AL83: =COUNTIF($C$4:$AX$4,"<" & AL4)+COUNTIF($C$4:AL4,AL4) -> 0 | AM83: =COUNTIF($C$4:$AX$4,"<" & AM4)+COUNTIF($C$4:AM4,AM4) -> 0 | AN83: =COUNTIF($C$4:$AX$4,"<" & AN4)+COUNTIF($C$4:AN4,AN4) -> 0 | AO83: =COUNTIF($C$4:$AX$4,"<" & AO4)+COUNTIF($C$4:AO4,AO4) -> 0 | AP83: =COUNTIF($C$4:$AX$4,"<" & AP4)+COUNTIF($C$4:AP4,AP4) -> 0 | AQ83: =COUNTIF($C$4:$AX$4,"<" & AQ4)+COUNTIF($C$4:AQ4,AQ4) -> 0 | AR83: =COUNTIF($C$4:$AX$4,"<" & AR4)+COUNTIF($C$4:AR4,AR4) -> 0 | AS83: =COUNTIF($C$4:$AX$4,"<" & AS4)+COUNTIF($C$4:AS4,AS4) -> 0 | AT83: =COUNTIF($C$4:$AX$4,"<" & AT4)+COUNTIF($C$4:AT4,AT4) -> 0 | AU83: =COUNTIF($C$4:$AX$4,"<" & AU4)+COUNTIF($C$4:AU4,AU4) -> 0 | AV83: =COUNTIF($C$4:$AX$4,"<" & AV4)+COUNTIF($C$4:AV4,AV4) -> 0 | AW83: =COUNTIF($C$4:$AX$4,"<" & AW4)+COUNTIF($C$4:AW4,AW4) -> 0 | AX83: =COUNTIF($C$4:$AX$4,"<" & AX4)+COUNTIF($C$4:AX4,AX4) -> 0 | AY83: =COUNTIF($C$4:$BJ$4,"<" & AY4)-COUNTBLANK($C$1:$BJ$1)+1 -> -50 | AZ83: -50 | BA83: -50 | BB83: -50 | BC83: -50 | BD83: -50 | BE83: -50 | BF83: -50 | BG83: -50 | BH83: -50 | BI83: -50 | BJ83: -50
A84: Combined Club & Boat | C84: =C5&" "&C4 -> SYC PANACHE | E84: MBYC SOJOURN | F84: PYC FREEDOM | G84: BYC SARAH B | H84: SYC RAZZLE | I84: BYC PEACHY KEEN | J84: SYC MISS MIRANDA | K84: QCYC KLETTITAT | L84: BYC SAGA | AI84: =AI5&" "&AI4 -> 
A85: Rank by Club & Boat | C85: =COUNTIF($C$84:$BJ$84,"<" & C84)-COUNTBLANK($C$1:$BJ$1)+1+COUNTIF($C$84:C84,C84)-1 -> 8 | D85: =COUNTIF($C$84:$BJ$84,"<" & D84)-COUNTBLANK($C$1:$BJ$1)+1+COUNTIF($C$84:D84,D84)-1 -> -50 | E85: =COUNTIF($C$84:$BJ$84,"<" & E84)-COUNTBLANK($C$1:$BJ$1)+1+COUNTIF($C$84:E84,E84)-1 -> 4 | F85: =COUNTIF($C$84:$BJ$84,"<" & F84)-COUNTBLANK($C$1:$BJ$1)+1+COUNTIF($C$84:F84,F84)-1 -> 5 | G85: =COUNTIF($C$84:$BJ$84,"<" & G84)-COUNTBLANK($C$1:$BJ$1)+1+COUNTIF($C$84:G84,G84)-1 -> 3 | H85: =COUNTIF($C$84:$BJ$84,"<" & H84)-COUNTBLANK($C$1:$BJ$1)+1+COUNTIF($C$84:H84,H84)-1 -> 9 | I85: =COUNTIF($C$84:$BJ$84,"<" & I84)-COUNTBLANK($C$1:$BJ$1)+1+COUNTIF($C$84:I84,I84)-1 -> 1 | J85: =COUNTIF($C$84:$BJ$84,"<" & J84)-COUNTBLANK($C$1:$BJ$1)+1+COUNTIF($C$84:J84,J84)-1 -> 7 | K85: =COUNTIF($C$84:$BJ$84,"<" & K84)-COUNTBLANK($C$1:$BJ$1)+1+COUNTIF($C$84:K84,K84)-1 -> 6 | L85: =COUNTIF($C$84:$BJ$84,"<" & L84)-COUNTBLANK($C$1:$BJ$1)+1+COUNTIF($C$84:L84,L84)-1 -> 2 | M85: =COUNTIF($C$84:$BJ$84,"<" & M84)-COUNTBLANK($C$1:$BJ$1)+1+COUNTIF($C$84:M84,M84)-1 -> -49 | N85: =COUNTIF($C$84:$BJ$84,"<" & N84)-COUNTBLANK($C$1:$BJ$1)+1+COUNTIF($C$84:N84,N84)-1 -> -48 | O85: =COUNTIF($C$84:$BJ$84,"<" & O84)-COUNTBLANK($C$1:$BJ$1)+1+COUNTIF($C$84:O84,O84)-1 -> -47 | P85: =COUNTIF($C$84:$BJ$84,"<" & P84)-COUNTBLANK($C$1:$BJ$1)+1+COUNTIF($C$84:P84,P84)-1 -> -46 | Q85: =COUNTIF($C$84:$BJ$84,"<" & Q84)-COUNTBLANK($C$1:$BJ$1)+1+COUNTIF($C$84:Q84,Q84)-1 -> -45 | R85: =COUNTIF($C$84:$BJ$84,"<" & R84)-COUNTBLANK($C$1:$BJ$1)+1+COUNTIF($C$84:R84,R84)-1 -> -44 | S85: =COUNTIF($C$84:$BJ$84,"<" & S84)-COUNTBLANK($C$1:$BJ$1)+1+COUNTIF($C$84:S84,S84)-1 -> -43 | T85: =COUNTIF($C$84:$BJ$84,"<" & T84)-COUNTBLANK($C$1:$BJ$1)+1+COUNTIF($C$84:T84,T84)-1 -> -42 | U85: =COUNTIF($C$84:$BJ$84,"<" & U84)-COUNTBLANK($C$1:$BJ$1)+1+COUNTIF($C$84:U84,U84)-1 -> -41 | V85: =COUNTIF($C$84:$BJ$84,"<" & V84)-COUNTBLANK($C$1:$BJ$1)+1+COUNTIF($C$84:V84,V84)-1 -> -40 | W85: =COUNTIF($C$84:$BJ$84,"<" & W84)-COUNTBLANK($C$1:$BJ$1)+1+COUNTIF($C$84:W84,W84)-1 -> -39 | X85: =COUNTIF($C$84:$BJ$84,"<" & X84)-COUNTBLANK($C$1:$BJ$1)+1+COUNTIF($C$84:X84,X84)-1 -> -38 | Y85: =COUNTIF($C$84:$BJ$84,"<" & Y84)-COUNTBLANK($C$1:$BJ$1)+1+COUNTIF($C$84:Y84,Y84)-1 -> -37 | Z85: =COUNTIF($C$84:$BJ$84,"<" & Z84)-COUNTBLANK($C$1:$BJ$1)+1+COUNTIF($C$84:Z84,Z84)-1 -> -36 | AA85: =COUNTIF($C$84:$BJ$84,"<" & AA84)-COUNTBLANK($C$1:$BJ$1)+1+COUNTIF($C$84:AA84,AA84)-1 -> -35 | AB85: =COUNTIF($C$84:$BJ$84,"<" & AB84)-COUNTBLANK($C$1:$BJ$1)+1+COUNTIF($C$84:AB84,AB84)-1 -> -34 | AC85: =COUNTIF($C$84:$BJ$84,"<" & AC84)-COUNTBLANK($C$1:$BJ$1)+1+COUNTIF($C$84:AC84,AC84)-1 -> -33 | AD85: =COUNTIF($C$84:$BJ$84,"<" & AD84)-COUNTBLANK($C$1:$BJ$1)+1+COUNTIF($C$84:AD84,AD84)-1 -> -32 | AE85: =COUNTIF($C$84:$BJ$84,"<" & AE84)-COUNTBLANK($C$1:$BJ$1)+1+COUNTIF($C$84:AE84,AE84)-1 -> -31 | AF85: =COUNTIF($C$84:$BJ$84,"<" & AF84)-COUNTBLANK($C$1:$BJ$1)+1+COUNTIF($C$84:AF84,AF84)-1 -> -30 | AG85: =COUNTIF($C$84:$BJ$84,"<" & AG84)-COUNTBLANK($C$1:$BJ$1)+1+COUNTIF($C$84:AG84,AG84)-1 -> -29 | AH85: =COUNTIF($C$84:$BJ$84,"<" & AH84)-COUNTBLANK($C$1:$BJ$1)+1+COUNTIF($C$84:AH84,AH84)-1 -> -28 | AI85: =COUNTIF($C$84:$BJ$84,"<" & AI84)-COUNTBLANK($C$1:$BJ$1)+1+COUNTIF($C$84:AI84,AI84)-1 -> -27 | AJ85: =COUNTIF($C$84:$BJ$84,"<" & AJ84)-COUNTBLANK($C$1:$BJ$1)+1+COUNTIF($C$84:AJ84,AJ84)-1 -> -26 | AK85: =COUNTIF($C$84:$BJ$84,"<" & AK84)-COUNTBLANK($C$1:$BJ$1)+1+COUNTIF($C$84:AK84,AK84)-1 -> -25 | AL85: =COUNTIF($C$84:$BJ$84,"<" & AL84)-COUNTBLANK($C$1:$BJ$1)+1+COUNTIF($C$84:AL84,AL84)-1 -> -24 | AM85: =COUNTIF($C$84:$BJ$84,"<" & AM84)-COUNTBLANK($C$1:$BJ$1)+1+COUNTIF($C$84:AM84,AM84)-1 -> -23 | AN85: =COUNTIF($C$84:$BJ$84,"<" & AN84)-COUNTBLANK($C$1:$BJ$1)+1+COUNTIF($C$84:AN84,AN84)-1 -> -22 | AO85: =COUNTIF($C$84:$BJ$84,"<" & AO84)-COUNTBLANK($C$1:$BJ$1)+1+COUNTIF($C$84:AO84,AO84)-1 -> -21 | AP85: =COUNTIF($C$84:$BJ$84,"<" & AP84)-COUNTBLANK($C$1:$BJ$1)+1+COUNTIF($C$84:AP84,AP84)-1 -> -20 | AQ85: =COUNTIF($C$84:$BJ$84,"<" & AQ84)-COUNTBLANK($C$1:$BJ$1)+1+COUNTIF($C$84:AQ84,AQ84)-1 -> -19 | AR85: =COUNTIF($C$84:$BJ$84,"<" & AR84)-COUNTBLANK($C$1:$BJ$1)+1+COUNTIF($C$84:AR84,AR84)-1 -> -18 | AS85: =COUNTIF($C$84:$BJ$84,"<" & AS84)-COUNTBLANK($C$1:$BJ$1)+1+COUNTIF($C$84:AS84,AS84)-1 -> -17 | AT85: =COUNTIF($C$84:$BJ$84,"<" & AT84)-COUNTBLANK($C$1:$BJ$1)+1+COUNTIF($C$84:AT84,AT84)-1 -> -16 | AU85: =COUNTIF($C$84:$BJ$84,"<" & AU84)-COUNTBLANK($C$1:$BJ$1)+1+COUNTIF($C$84:AU84,AU84)-1 -> -15 | AV85: =COUNTIF($C$84:$BJ$84,"<" & AV84)-COUNTBLANK($C$1:$BJ$1)+1+COUNTIF($C$84:AV84,AV84)-1 -> -14 | AW85: =COUNTIF($C$84:$BJ$84,"<" & AW84)-COUNTBLANK($C$1:$BJ$1)+1+COUNTIF($C$84:AW84,AW84)-1 -> -13 | AX85: =COUNTIF($C$84:$BJ$84,"<" & AX84)-COUNTBLANK($C$1:$BJ$1)+1+COUNTIF($C$84:AX84,AX84)-1 -> -12 | AY85: =COUNTIF($C$84:$BJ$84,"<" & AY84)-COUNTBLANK($C$1:$BJ$1)+1 -> -50 | AZ85: -50 | BA85: -50 | BB85: -50 | BC85: -50 | BD85: -50 | BE85: -50 | BF85: -50 | BG85: -50 | BH85: -50 | BI85: -50 | BJ85: -50
A86: Combined Club & Error | C86: =C5&" "&TEXT(C75,"0.0000%") -> SYC 1.1920% | D86: 0.0000% | E86: MBYC 1.0173% | F86: PYC 0.1616% | G86: BYC 0.3175% | H86: SYC 2.6682% | I86: BYC 0.4194% | J86: SYC 0.6424% | K86: QCYC 1.0157% | L86: BYC 1.1578% | M86: 0.0000% | N86: 0.0000% | O86: 0.0000% | P86: 0.0000% | Q86: 0.0000% | R86: 0.0000% | S86: 0.0000% | T86: 0.0000% | U86: 0.0000% | V86: 0.0000% | W86: 0.0000% | X86: 0.0000% | Y86: 0.0000% | Z86: 0.0000% | AA86: 0.0000% | AB86: 0.0000% | AC86: 0.0000% | AD86: 0.0000% | AE86: 0.0000% | AF86: 0.0000% | AG86: 0.0000% | AH86: 0.0000% | AI86: =AI5&" "&TEXT(AI75,"0.0000%") -> 0.0000% | AJ86: 0.0000% | AK86: 0.0000% | AL86: 0.0000% | AM86: 0.0000% | AN86: 0.0000% | AO86: 0.0000% | AP86: 0.0000% | AQ86: 0.0000% | AR86: 0.0000% | AS86: 0.0000% | AT86: 0.0000% | AU86: 0.0000% | AV86: 0.0000% | AW86: 0.0000% | AX86: 0.0000% | AY86: 0.0000% | AZ86: 0.0000% | BA86: 0.0000% | BB86: 0.0000% | BC86: 0.0000% | BD86: 0.0000% | BE86: 0.0000% | BF86: 0.0000% | BG86: 0.0000% | BH86: 0.0000% | BI86: 0.0000% | BJ86: 0.0000%
A87: Rank by Club & Error | C87: =COUNTIF($C$86:$BJ$86,"<" & C86)-COUNTBLANK($C$1:$BJ$1)+1+COUNTIF($C$86:C86,C86)-1 -> 8 | D87: =COUNTIF($C$86:$BJ$86,"<" & D86)-COUNTBLANK($C$1:$BJ$1)+1+COUNTIF($C$86:D86,D86)-1 -> -50 | E87: =COUNTIF($C$86:$BJ$86,"<" & E86)-COUNTBLANK($C$1:$BJ$1)+1+COUNTIF($C$86:E86,E86)-1 -> 4 | F87: =COUNTIF($C$86:$BJ$86,"<" & F86)-COUNTBLANK($C$1:$BJ$1)+1+COUNTIF($C$86:F86,F86)-1 -> 5 | G87: =COUNTIF($C$86:$BJ$86,"<" & G86)-COUNTBLANK($C$1:$BJ$1)+1+COUNTIF($C$86:G86,G86)-1 -> 1 | H87: =COUNTIF($C$86:$BJ$86,"<" & H86)-COUNTBLANK($C$1:$BJ$1)+1+COUNTIF($C$86:H86,H86)-1 -> 9 | I87: =COUNTIF($C$86:$BJ$86,"<" & I86)-COUNTBLANK($C$1:$BJ$1)+1+COUNTIF($C$86:I86,I86)-1 -> 2 | J87: =COUNTIF($C$86:$BJ$86,"<" & J86)-COUNTBLANK($C$1:$BJ$1)+1+COUNTIF($C$86:J86,J86)-1 -> 7 | K87: =COUNTIF($C$86:$BJ$86,"<" & K86)-COUNTBLANK($C$1:$BJ$1)+1+COUNTIF($C$86:K86,K86)-1 -> 6 | L87: =COUNTIF($C$86:$BJ$86,"<" & L86)-COUNTBLANK($C$1:$BJ$1)+1+COUNTIF($C$86:L86,L86)-1 -> 3 | M87: =COUNTIF($C$86:$BJ$86,"<" & M86)-COUNTBLANK($C$1:$BJ$1)+1+COUNTIF($C$86:M86,M86)-1 -> -49 | N87: =COUNTIF($C$86:$BJ$86,"<" & N86)-COUNTBLANK($C$1:$BJ$1)+1+COUNTIF($C$86:N86,N86)-1 -> -48 | O87: =COUNTIF($C$86:$BJ$86,"<" & O86)-COUNTBLANK($C$1:$BJ$1)+1+COUNTIF($C$86:O86,O86)-1 -> -47 | P87: =COUNTIF($C$86:$BJ$86,"<" & P86)-COUNTBLANK($C$1:$BJ$1)+1+COUNTIF($C$86:P86,P86)-1 -> -46 | Q87: =COUNTIF($C$86:$BJ$86,"<" & Q86)-COUNTBLANK($C$1:$BJ$1)+1+COUNTIF($C$86:Q86,Q86)-1 -> -45 | R87: =COUNTIF($C$86:$BJ$86,"<" & R86)-COUNTBLANK($C$1:$BJ$1)+1+COUNTIF($C$86:R86,R86)-1 -> -44 | S87: =COUNTIF($C$86:$BJ$86,"<" & S86)-COUNTBLANK($C$1:$BJ$1)+1+COUNTIF($C$86:S86,S86)-1 -> -43 | T87: =COUNTIF($C$86:$BJ$86,"<" & T86)-COUNTBLANK($C$1:$BJ$1)+1+COUNTIF($C$86:T86,T86)-1 -> -42 | U87: =COUNTIF($C$86:$BJ$86,"<" & U86)-COUNTBLANK($C$1:$BJ$1)+1+COUNTIF($C$86:U86,U86)-1 -> -41 | V87: =COUNTIF($C$86:$BJ$86,"<" & V86)-COUNTBLANK($C$1:$BJ$1)+1+COUNTIF($C$86:V86,V86)-1 -> -40 | W87: =COUNTIF($C$86:$BJ$86,"<" & W86)-COUNTBLANK($C$1:$BJ$1)+1+COUNTIF($C$86:W86,W86)-1 -> -39 | X87: =COUNTIF($C$86:$BJ$86,"<" & X86)-COUNTBLANK($C$1:$BJ$1)+1+COUNTIF($C$86:X86,X86)-1 -> -38 | Y87: =COUNTIF($C$86:$BJ$86,"<" & Y86)-COUNTBLANK($C$1:$BJ$1)+1+COUNTIF($C$86:Y86,Y86)-1 -> -37 | Z87: =COUNTIF($C$86:$BJ$86,"<" & Z86)-COUNTBLANK($C$1:$BJ$1)+1+COUNTIF($C$86:Z86,Z86)-1 -> -36 | AA87: =COUNTIF($C$86:$BJ$86,"<" & AA86)-COUNTBLANK($C$1:$BJ$1)+1+COUNTIF($C$86:AA86,AA86)-1 -> -35 | AB87: =COUNTIF($C$86:$BJ$86,"<" & AB86)-COUNTBLANK($C$1:$BJ$1)+1+COUNTIF($C$86:AB86,AB86)-1 -> -34 | AC87: =COUNTIF($C$86:$BJ$86,"<" & AC86)-COUNTBLANK($C$1:$BJ$1)+1+COUNTIF($C$86:AC86,AC86)-1 -> -33 | AD87: =COUNTIF($C$86:$BJ$86,"<" & AD86)-COUNTBLANK($C$1:$BJ$1)+1+COUNTIF($C$86:AD86,AD86)-1 -> -32 | AE87: =COUNTIF($C$86:$BJ$86,"<" & AE86)-COUNTBLANK($C$1:$BJ$1)+1+COUNTIF($C$86:AE86,AE86)-1 -> -31 | AF87: =COUNTIF($C$86:$BJ$86,"<" & AF86)-COUNTBLANK($C$1:$BJ$1)+1+COUNTIF($C$86:AF86,AF86)-1 -> -30 | AG87: =COUNTIF($C$86:$BJ$86,"<" & AG86)-COUNTBLANK($C$1:$BJ$1)+1+COUNTIF($C$86:AG86,AG86)-1 -> -29 | AH87: =COUNTIF($C$86:$BJ$86,"<" & AH86)-COUNTBLANK($C$1:$BJ$1)+1+COUNTIF($C$86:AH86,AH86)-1 -> -28 | AI87: =COUNTIF($C$86:$BJ$86,"<" & AI86)-COUNTBLANK($C$1:$BJ$1)+1+COUNTIF($C$86:AI86,AI86)-1 -> -27 | AJ87: =COUNTIF($C$86:$BJ$86,"<" & AJ86)-COUNTBLANK($C$1:$BJ$1)+1+COUNTIF($C$86:AJ86,AJ86)-1 -> -26 | AK87: =COUNTIF($C$86:$BJ$86,"<" & AK86)-COUNTBLANK($C$1:$BJ$1)+1+COUNTIF($C$86:AK86,AK86)-1 -> -25 | AL87: =COUNTIF($C$86:$BJ$86,"<" & AL86)-COUNTBLANK($C$1:$BJ$1)+1+COUNTIF($C$86:AL86,AL86)-1 -> -24 | AM87: =COUNTIF($C$86:$BJ$86,"<" & AM86)-COUNTBLANK($C$1:$BJ$1)+1+COUNTIF($C$86:AM86,AM86)-1 -> -23 | AN87: =COUNTIF($C$86:$BJ$86,"<" & AN86)-COUNTBLANK($C$1:$BJ$1)+1+COUNTIF($C$86:AN86,AN86)-1 -> -22 | AO87: =COUNTIF($C$86:$BJ$86,"<" & AO86)-COUNTBLANK($C$1:$BJ$1)+1+COUNTIF($C$86:AO86,AO86)-1 -> -21 | AP87: =COUNTIF($C$86:$BJ$86,"<" & AP86)-COUNTBLANK($C$1:$BJ$1)+1+COUNTIF($C$86:AP86,AP86)-1 -> -20 | AQ87: =COUNTIF($C$86:$BJ$86,"<" & AQ86)-COUNTBLANK($C$1:$BJ$1)+1+COUNTIF($C$86:AQ86,AQ86)-1 -> -19 | AR87: =COUNTIF($C$86:$BJ$86,"<" & AR86)-COUNTBLANK($C$1:$BJ$1)+1+COUNTIF($C$86:AR86,AR86)-1 -> -18 | AS87: =COUNTIF($C$86:$BJ$86,"<" & AS86)-COUNTBLANK($C$1:$BJ$1)+1+COUNTIF($C$86:AS86,AS86)-1 -> -17 | AT87: =COUNTIF($C$86:$BJ$86,"<" & AT86)-COUNTBLANK($C$1:$BJ$1)+1+COUNTIF($C$86:AT86,AT86)-1 -> -16 | AU87: =COUNTIF($C$86:$BJ$86,"<" & AU86)-COUNTBLANK($C$1:$BJ$1)+1+COUNTIF($C$86:AU86,AU86)-1 -> -15 | AV87: =COUNTIF($C$86:$BJ$86,"<" & AV86)-COUNTBLANK($C$1:$BJ$1)+1+COUNTIF($C$86:AV86,AV86)-1 -> -14 | AW87: =COUNTIF($C$86:$BJ$86,"<" & AW86)-COUNTBLANK($C$1:$BJ$1)+1+COUNTIF($C$86:AW86,AW86)-1 -> -13 | AX87: =COUNTIF($C$86:$BJ$86,"<" & AX86)-COUNTBLANK($C$1:$BJ$1)+1+COUNTIF($C$86:AX86,AX86)-1 -> -12 | AY87: =COUNTIF($C$86:$BJ$86,"<" & AY86)-COUNTBLANK($C$1:$BJ$1)+1 -> -50 | AZ87: -50 | BA87: -50 | BB87: -50 | BC87: -50 | BD87: -50 | BE87: -50 | BF87: -50 | BI87: =COUNTIF($C$86:$BJ$86,"<" & BI86)-COUNTBLANK($C$1:$BJ$1)+1 -> -50 | BJ87: =COUNTIF($C$86:$BJ$86,"<" & BJ86)-COUNTBLANK($C$1:$BJ$1)+1 -> -50

Sheet Start Times
A1: ='Contest Entry'!B1 -> SYC
A2: ='Contest Entry'!B2 -> Stimson
A3: ='Contest Entry'!B3 -> 2018-09-15
A5: START and FINISH TIMES
A7: Boat | B7: Contestant | C7: Yacht Club | D7: Boat Speed | E7: Start Time | F7: Finish Time
A9: =IF(ROW()-8<=Number_of_Contestants,UPPER(INDEX(Boat_Names,,MATCH(ROW()-8,Start_Time_Rank,0))),"") -> SOJOURN | B9: =IF(ROW()-8<=Number_of_Contestants,INDEX(Contestant_Names,,MATCH(ROW()-8,Start_Time_Rank,0)),"") -> Clint Chapin | C9: =IF(ROW()-8<=Number_of_Contestants,INDEX(Club_Names,,MATCH(ROW()-8,Start_Time_Rank,0)),"") -> MBYC | D9: =IF(ROW()-8<=Number_of_Contestants,INDEX(Cruise_Speeds,,MATCH(ROW()-8,Start_Time_Rank,0)),"") -> 7.3 | E9: =IF(ROW()-8<=Number_of_Contestants,INDEX(Predicted_Start_Times,,MATCH(ROW()-8,Start_Time_Rank,0)),"") -> 123238 | F9: =IF(ROW()-8<=Number_of_Contestants,INDEX(Finish_Times,,MATCH(ROW()-8,Start_Time_Rank,0)),"") -> 143000
A10: SARAH B | B10: Jim VanAntwerp | C10: BYC | D10: 7 | E10: 124516 | F10: 145000
A11: SAGA | B11: Dan DeGard | C11: BYC | D11: 8 | E11: 130732 | F11: 145500
A12: PEACHY KEEN | B12: Mike Henry | C12: BYC | D12: 8.175 | E12: 131621 | F12: 150503
A13: FREEDOM | B13: Jim Korzetz | C13: PYC | D13: 8.39 | E13: 131939 | F13: 150500
A14: MISS MIRANDA | B14: Larry O'Keefe | C14: SYC | D14: 8.592 | E14: 134614 | F14: 152948
A15: PANACHE | B15: Brent Reys | C15: SYC | D15: 9.474 | E15: 140748 | F15: 154000
A16: KLETTITAT | B16: Team Klett/Elbon/Cullen | C16: QCYC | D16: 9.61 | E16: 141816 | F16: 155000
A17: RAZZLE | B17: Ken Case | C17: SYC | D17: 9.89 | E17: 142120 | F17: 155300
A41: =IF(ROW()-8<=Number_of_Contestants,UPPER(INDEX(Boat_Names,,MATCH(ROW()-8,Start_Time_Rank,0))),"") ->  | B41: =IF(ROW()-8<=Number_of_Contestants,INDEX(Contestant_Names,,MATCH(ROW()-8,Start_Time_Rank,0)),"") ->  | C41: =IF(ROW()-8<=Number_of_Contestants,INDEX(Club_Names,,MATCH(ROW()-8,Start_Time_Rank,0)),"") ->  | D41: =IF(ROW()-8<=Number_of_Contestants,INDEX(Cruise_Speeds,,MATCH(ROW()-8,Start_Time_Rank,0)),"") ->  | E41: =IF(ROW()-8<=Number_of_Contestants,INDEX(Predicted_Start_Times,,MATCH(ROW()-8,Start_Time_Rank,0)),"") ->  | F41: =IF(ROW()-8<=Number_of_Contestants,INDEX(Finish_Times,,MATCH(ROW()-8,Start_Time_Rank,0)),"") -> 

Sheet Overall Results
A1: ='Contest Entry'!B1 -> SYC
A2: ='Contest Entry'!B2 -> Stimson
A3: ='Contest Entry'!B3 -> 2018-09-15
A5: OVERALL RESULTS
A7: Boat | B7: Contestant | C7: Navigator | D7: Yacht Club | E7: % Error | F7: Place OA | G7: NACA Pts
A9: =IF(F9<=Number_of_Contestants,UPPER(INDEX(Boat_Names,,MATCH(F9,Overall_Rank,0))),"") -> FREEDOM | B9: =IF(F9<=Number_of_Contestants,INDEX(Contestant_Names,,MATCH(F9,Overall_Rank,0)),"") -> Jim Korzetz | C9: =IF(F9<=Number_of_Contestants,INDEX(Navigator_Names,,MATCH(F9,Overall_Rank,0)),"") -> Dick Timmerman | D9: =IF(F9<=Number_of_Contestants,INDEX(Club_Names,,MATCH(F9,Overall_Rank,0)),"") -> PYC | E9: =IF(F9<=Number_of_Contestants,INDEX(Net_Error,,MATCH(F9,Overall_Rank,0)),"") -> 0.001615999447 | F9: =IF(ROW()-8<=Number_of_Contestants,ROW()-8,"") -> 1 | G9: =IF(F9="","",1000-(((700*(F9-0.79))/(Number_of_Contestants-0.79)))) -> 982.0950061
A10: SARAH B | B10: Jim VanAntwerp | C10: OJ Potter | D10: BYC | E10: 0.003175253875 | F10: 2 | G10: =IF(F10="","",1000-(((700*(F10-0.79))/(Number_of_Contestants-0.79)))) -> 896.8331303
A11: PEACHY KEEN | B11: Mike Henry | C11: Billie Henry | D11: BYC | E11: 0.004194101151 | F11: 3 | G11: 811.5712546
A12: MISS MIRANDA | B12: Larry O'Keefe | C12: Ted Burns | D12: SYC | E12: 0.006423914804 | F12: 4 | G12: 726.3093788
A13: KLETTITAT | B13: Team Klett/Elbon/Cullen | C13: Elbon/Klett | D13: QCYC | E13: 0.01015729293 | F13: 5 | G13: 641.047503
A14: SOJOURN | B14: Clint Chapin | C14: Lynn Hvalsoe | D14: MBYC | E14: 0.01017315015 | F14: 6 | G14: 555.7856273
A15: SAGA | B15: Dan DeGard | C15: JJ Johnson | D15: BYC | E15: 0.0115778045 | F15: 7 | G15: 470.5237515
A16: PANACHE | B16: Brent Reys | C16: Alex Lorenz | D16: SYC | E16: 0.01192046018 | F16: 8 | G16: 385.2618758
A17: RAZZLE | B17: Ken Case | C17: Debbie Case | D17: SYC | E17: 0.02668228514 | F17: 9 | G17: 300
A41: =IF(F41<=Number_of_Contestants,UPPER(INDEX(Boat_Names,,MATCH(F41,Overall_Rank,0))),"") ->  | B41: =IF(F41<=Number_of_Contestants,INDEX(Contestant_Names,,MATCH(F41,Overall_Rank,0)),"") ->  | C41: =IF(F41<=Number_of_Contestants,INDEX(Navigator_Names,,MATCH(F41,Overall_Rank,0)),"") ->  | D41: =IF(F41<=Number_of_Contestants,INDEX(Club_Names,,MATCH(F41,Overall_Rank,0)),"") ->  | E41: =IF(F41<=Number_of_Contestants,INDEX(Net_Error,,MATCH(F41,Overall_Rank,0)),"") -> 

Sheet Class Results
A1: ='Contest Entry'!B1 -> SYC
A2: ='Contest Entry'!B2 -> Stimson
A3: ='Contest Entry'!B3 -> 2018-09-15
A5: CLASS RESULTS
A7: Boat | B7: Contestant | C7: Navigator | D7: Yacht Club | E7: Percent Error | F7: Place OA | G7: Class Selector
A9: =IF(F9<=Number_of_Contestants,UPPER(INDEX(Boat_Names,,MATCH(F9,Overall_Rank,0))),"") -> FREEDOM | B9: =IF(F9<=Number_of_Contestants,INDEX(Contestant_Names,,MATCH(F9,Overall_Rank,0)),"") -> Jim Korzetz | C9: =IF(F9<=Number_of_Contestants,INDEX(Navigator_Names,,MATCH(F9,Overall_Rank,0)),"") -> Dick Timmerman | D9: =IF(F9<=Number_of_Contestants,INDEX(Club_Names,,MATCH(F9,Overall_Rank,0)),"") -> PYC | E9: =IF(F9<=Number_of_Contestants,INDEX(Net_Error,,MATCH(F9,Overall_Rank,0)),"") -> 0.001615999447 | F9: =IF(ROW()-8<=Number_of_Contestants,ROW()-8,"") -> 1
A10: =IF(F10<=Number_of_Contestants,UPPER(INDEX(Boat_Names,,MATCH(F10,Overall_Rank,0))),"") -> SARAH B | B10: =IF(F10<=Number_of_Contestants,INDEX(Contestant_Names,,MATCH(F10,Overall_Rank,0)),"") -> Jim VanAntwerp | C10: =IF(F10<=Number_of_Contestants,INDEX(Navigator_Names,,MATCH(F10,Overall_Rank,0)),"") -> OJ Potter | D10: =IF(F10<=Number_of_Contestants,INDEX(Club_Names,,MATCH(F10,Overall_Rank,0)),"") -> BYC | E10: =IF(F10<=Number_of_Contestants,INDEX(Net_Error,,MATCH(F10,Overall_Rank,0)),"") -> 0.003175253875 | F10: =IF(ROW()-8<=Number_of_Contestants,ROW()-8,"") -> 2
A11: =IF(F11<=Number_of_Contestants,UPPER(INDEX(Boat_Names,,MATCH(F11,Overall_Rank,0))),"") -> PEACHY KEEN | B11: =IF(F11<=Number_of_Contestants,INDEX(Contestant_Names,,MATCH(F11,Overall_Rank,0)),"") -> Mike Henry | C11: =IF(F11<=Number_of_Contestants,INDEX(Navigator_Names,,MATCH(F11,Overall_Rank,0)),"") -> Billie Henry | D11: =IF(F11<=Number_of_Contestants,INDEX(Club_Names,,MATCH(F11,Overall_Rank,0)),"") -> BYC | E11: =IF(F11<=Number_of_Contestants,INDEX(Net_Error,,MATCH(F11,Overall_Rank,0)),"") -> 0.004194101151 | F11: =IF(ROW()-8<=Number_of_Contestants,ROW()-8,"") -> 3
A13: CLASS 1
A14: =IF(ISNA(MATCH(G14,Class_Rank,0)),"",UPPER(INDEX(Boat_Names,,MATCH(G14,Class_Rank,0)))) -> SOJOURN | B14: =IF(ISNA(MATCH(G14,Class_Rank,0)),"",INDEX(Contestant_Names,,MATCH(G14,Class_Rank,0))) -> Clint Chapin | C14: =IF(ISNA(MATCH(G14,Class_Rank,0)),"",INDEX(Navigator_Names,,MATCH(G14,Class_Rank,0))) -> Lynn Hvalsoe | D14: =IF(ISNA(MATCH(G14,Class_Rank,0)),"",INDEX(Club_Names,,MATCH(G14,Class_Rank,0))) -> MBYC | E14: =IF(ISNA(MATCH(G14,Class_Rank,0)),"",INDEX(Net_Error,,MATCH(G14,Class_Rank,0))) -> 0.01017315015 | F14: =IF(ISNA(MATCH(G14,Class_Rank,0)),"",INDEX(Overall_Rank,,MATCH(G14,Class_Rank,0))) -> 6 | G14: 1.1
G15: 1.2
G16: 1.3
G17: 1.4
G18: 1.5
A19: =IF(ISNA(MATCH(G19,Class_Rank,0)),"",UPPER(INDEX(Boat_Names,,MATCH(G19,Class_Rank,0)))) ->  | B19: =IF(ISNA(MATCH(G19,Class_Rank,0)),"",INDEX(Contestant_Names,,MATCH(G19,Class_Rank,0))) ->  | C19: =IF(ISNA(MATCH(G19,Class_Rank,0)),"",INDEX(Navigator_Names,,MATCH(G19,Class_Rank,0))) ->  | D19: =IF(ISNA(MATCH(G19,Class_Rank,0)),"",INDEX(Club_Names,,MATCH(G19,Class_Rank,0))) ->  | E19: =IF(ISNA(MATCH(G19,Class_Rank,0)),"",INDEX(Net_Error,,MATCH(G19,Class_Rank,0))) ->  | F19: =IF(ISNA(MATCH(G19,Class_Rank,0)),"",INDEX(Overall_Rank,,MATCH(G19,Class_Rank,0))) ->  | G19: 1.6
G20: 1.7
G21: 1.8
G22: 1.9
A23: CLASS 2
A24: =IF(ISNA(MATCH(G24,Class_Rank,0)),"",UPPER(INDEX(Boat_Names,,MATCH(G24,Class_Rank,0)))) -> SAGA | B24: =IF(ISNA(MATCH(G24,Class_Rank,0)),"",INDEX(Contestant_Names,,MATCH(G24,Class_Rank,0))) -> Dan DeGard | C24: =IF(ISNA(MATCH(G24,Class_Rank,0)),"",INDEX(Navigator_Names,,MATCH(G24,Class_Rank,0))) -> JJ Johnson | D24: =IF(ISNA(MATCH(G24,Class_Rank,0)),"",INDEX(Club_Names,,MATCH(G24,Class_Rank,0))) -> BYC | E24: =IF(ISNA(MATCH(G24,Class_Rank,0)),"",INDEX(Net_Error,,MATCH(G24,Class_Rank,0))) -> 0.0115778045 | F24: =IF(ISNA(MATCH(G24,Class_Rank,0)),"",INDEX(Overall_Rank,,MATCH(G24,Class_Rank,0))) -> 7 | G24: 2.1
G25: 2.2
G26: 2.3
A27: =IF(ISNA(MATCH(G27,Class_Rank,0)),"",UPPER(INDEX(Boat_Names,,MATCH(G27,Class_Rank,0)))) ->  | B27: =IF(ISNA(MATCH(G27,Class_Rank,0)),"",INDEX(Contestant_Names,,MATCH(G27,Class_Rank,0))) ->  | C27: =IF(ISNA(MATCH(G27,Class_Rank,0)),"",INDEX(Navigator_Names,,MATCH(G27,Class_Rank,0))) ->  | D27: =IF(ISNA(MATCH(G27,Class_Rank,0)),"",INDEX(Club_Names,,MATCH(G27,Class_Rank,0))) ->  | E27: =IF(ISNA(MATCH(G27,Class_Rank,0)),"",INDEX(Net_Error,,MATCH(G27,Class_Rank,0))) ->  | F27: =IF(ISNA(MATCH(G27,Class_Rank,0)),"",INDEX(Overall_Rank,,MATCH(G27,Class_Rank,0))) ->  | G27: 2.4
G28: 2.5
G29: 2.6
G30: 2.7
G31: 2.8
G32: 2.9
A33: CLASS 3
A34: =IF(ISNA(MATCH(G34,Class_Rank,0)),"",UPPER(INDEX(Boat_Names,,MATCH(G34,Class_Rank,0)))) -> MISS MIRANDA | B34: =IF(ISNA(MATCH(G34,Class_Rank,0)),"",INDEX(Contestant_Names,,MATCH(G34,Class_Rank,0))) -> Larry O'Keefe | C34: =IF(ISNA(MATCH(G34,Class_Rank,0)),"",INDEX(Navigator_Names,,MATCH(G34,Class_Rank,0))) -> Ted Burns | D34: =IF(ISNA(MATCH(G34,Class_Rank,0)),"",INDEX(Club_Names,,MATCH(G34,Class_Rank,0))) -> SYC | E34: =IF(ISNA(MATCH(G34,Class_Rank,0)),"",INDEX(Net_Error,,MATCH(G34,Class_Rank,0))) -> 0.006423914804 | F34: =IF(ISNA(MATCH(G34,Class_Rank,0)),"",INDEX(Overall_Rank,,MATCH(G34,Class_Rank,0))) -> 4 | G34: 3.1
G35: 3.2
G36: 3.3
G37: 3.4
A38: =IF(ISNA(MATCH(G38,Class_Rank,0)),"",UPPER(INDEX(Boat_Names,,MATCH(G38,Class_Rank,0)))) ->  | B38: =IF(ISNA(MATCH(G38,Class_Rank,0)),"",INDEX(Contestant_Names,,MATCH(G38,Class_Rank,0))) ->  | C38: =IF(ISNA(MATCH(G38,Class_Rank,0)),"",INDEX(Navigator_Names,,MATCH(G38,Class_Rank,0))) ->  | D38: =IF(ISNA(MATCH(G38,Class_Rank,0)),"",INDEX(Club_Names,,MATCH(G38,Class_Rank,0))) ->  | E38: =IF(ISNA(MATCH(G38,Class_Rank,0)),"",INDEX(Net_Error,,MATCH(G38,Class_Rank,0))) ->  | F38: =IF(ISNA(MATCH(G38,Class_Rank,0)),"",INDEX(Overall_Rank,,MATCH(G38,Class_Rank,0))) ->  | G38: 3.5
G39: 3.6
G40: 3.7
G41: 3.8
G42: 3.9
A43: CLASS 4
A44: =IF(ISNA(MATCH(G44,Class_Rank,0)),"",UPPER(INDEX(Boat_Names,,MATCH(G44,Class_Rank,0)))) -> PANACHE | B44: =IF(ISNA(MATCH(G44,Class_Rank,0)),"",INDEX(Contestant_Names,,MATCH(G44,Class_Rank,0))) -> Brent Reys | C44: =IF(ISNA(MATCH(G44,Class_Rank,0)),"",INDEX(Navigator_Names,,MATCH(G44,Class_Rank,0))) -> Alex Lorenz | D44: =IF(ISNA(MATCH(G44,Class_Rank,0)),"",INDEX(Club_Names,,MATCH(G44,Class_Rank,0))) -> SYC | E44: =IF(ISNA(MATCH(G44,Class_Rank,0)),"",INDEX(Net_Error,,MATCH(G44,Class_Rank,0))) -> 0.01192046018 | F44: =IF(ISNA(MATCH(G44,Class_Rank,0)),"",INDEX(Overall_Rank,,MATCH(G44,Class_Rank,0))) -> 8 | G44: 4.1
G45: 4.2
G46: 4.3
G47: 4.4
A48: =IF(ISNA(MATCH(G48,Class_Rank,0)),"",UPPER(INDEX(Boat_Names,,MATCH(G48,Class_Rank,0)))) ->  | B48: =IF(ISNA(MATCH(G48,Class_Rank,0)),"",INDEX(Contestant_Names,,MATCH(G48,Class_Rank,0))) ->  | C48: =IF(ISNA(MATCH(G48,Class_Rank,0)),"",INDEX(Navigator_Names,,MATCH(G48,Class_Rank,0))) ->  | D48: =IF(ISNA(MATCH(G48,Class_Rank,0)),"",INDEX(Club_Names,,MATCH(G48,Class_Rank,0))) ->  | E48: =IF(ISNA(MATCH(G48,Class_Rank,0)),"",INDEX(Net_Error,,MATCH(G48,Class_Rank,0))) ->  | F48: =IF(ISNA(MATCH(G48,Class_Rank,0)),"",INDEX(Overall_Rank,,MATCH(G48,Class_Rank,0))) ->  | G48: 4.5
G49: 4.6
G50: 4.7
G51: 4.8
G52: 4.9
A53: CLASS 5
A54: =IF(ISNA(MATCH(G54,Class_Rank,0)),"",UPPER(INDEX(Boat_Names,,MATCH(G54,Class_Rank,0)))) -> KLETTITAT | B54: =IF(ISNA(MATCH(G54,Class_Rank,0)),"",INDEX(Contestant_Names,,MATCH(G54,Class_Rank,0))) -> Team Klett/Elbon/Cullen | C54: =IF(ISNA(MATCH(G54,Class_Rank,0)),"",INDEX(Navigator_Names,,MATCH(G54,Class_Rank,0))) -> Elbon/Klett | D54: =IF(ISNA(MATCH(G54,Class_Rank,0)),"",INDEX(Club_Names,,MATCH(G54,Class_Rank,0))) -> QCYC | E54: =IF(ISNA(MATCH(G54,Class_Rank,0)),"",INDEX(Net_Error,,MATCH(G54,Class_Rank,0))) -> 0.01015729293 | F54: =IF(ISNA(MATCH(G54,Class_Rank,0)),"",INDEX(Overall_Rank,,MATCH(G54,Class_Rank,0))) -> 5 | G54: 5.1
A55: RAZZLE | B55: Ken Case | C55: Debbie Case | D55: SYC | E55: 0.02668228514 | F55: 9 | G55: 5.2
G56: 5.3
G57: 5.4
A58: =IF(ISNA(MATCH(G58,Class_Rank,0)),"",UPPER(INDEX(Boat_Names,,MATCH(G58,Class_Rank,0)))) ->  | B58: =IF(ISNA(MATCH(G58,Class_Rank,0)),"",INDEX(Contestant_Names,,MATCH(G58,Class_Rank,0))) ->  | C58: =IF(ISNA(MATCH(G58,Class_Rank,0)),"",INDEX(Navigator_Names,,MATCH(G58,Class_Rank,0))) ->  | D58: =IF(ISNA(MATCH(G58,Class_Rank,0)),"",INDEX(Club_Names,,MATCH(G58,Class_Rank,0))) ->  | E58: =IF(ISNA(MATCH(G58,Class_Rank,0)),"",INDEX(Net_Error,,MATCH(G58,Class_Rank,0))) ->  | F58: =IF(ISNA(MATCH(G58,Class_Rank,0)),"",INDEX(Overall_Rank,,MATCH(G58,Class_Rank,0))) ->  | G58: 5.5
G59: 5.6
G60: 5.7
G61: 5.8
G62: 5.9

Sheet Novice Results
A1: ='Contest Entry'!B1 -> SYC
A2: ='Contest Entry'!B2 -> Stimson
A3: ='Contest Entry'!B3 -> 2018-09-15
A5: NOVICE RESULTS
A7: Boat | B7: Contestant | C7: Navigator | D7: Yacht Club | E7: % Error | F7: Novice
A9: =IF(F9<=Number_of_Novices,UPPER(INDEX(Boat_Names,,MATCH(F9,Novice_Rank,0))),"") -> SAGA | B9: =IF(F9<=Number_of_Novices,INDEX(Contestant_Names,,MATCH(F9,Novice_Rank,0)),"") -> Dan DeGard | C9: =IF(F9<=Number_of_Novices,INDEX(Navigator_Names,,MATCH(F9,Novice_Rank,0)),"") -> JJ Johnson | D9: =IF(F9<=Number_of_Novices,INDEX(Club_Names,,MATCH(F9,Novice_Rank,0)),"") -> BYC | E9: =IF(F9<=Number_of_Novices,INDEX(Net_Error,,MATCH(F9,Novice_Rank,0)),"") -> 0.0115778045 | F9: =IF(ROW()-8<=Number_of_Novices,ROW()-8,"") -> 1
A41: =IF(F41<=Number_of_Novices,UPPER(INDEX(Boat_Names,,MATCH(F41,Novice_Rank,0))),"") ->  | B41: =IF(F41<=Number_of_Novices,INDEX(Contestant_Names,,MATCH(F41,Novice_Rank,0)),"") ->  | C41: =IF(F41<=Number_of_Novices,INDEX(Navigator_Names,,MATCH(F41,Novice_Rank,0)),"") ->  | D41: =IF(F41<=Number_of_Novices,INDEX(Club_Names,,MATCH(F41,Novice_Rank,0)),"") ->  | E41: =IF(F41<=Number_of_Novices,INDEX(Net_Error,,MATCH(F41,Novice_Rank,0)),"") -> 
A67: =IF(F67<=Number_of_Novices,UPPER(INDEX('Log Entry'!$C$4:$BJ$4,,MATCH(F67,'Log Entry'!$C$81:$BJ$81,0))),"") ->  | B67: =IF(F67<=Number_of_Novices,INDEX('Log Entry'!$C$2:$BJ$2,,MATCH(F67,'Log Entry'!$C$81:$BJ$81,0)),"") ->  | C67: =IF(F67<=Number_of_Novices,INDEX('Log Entry'!$C$3:$BJ$3,,MATCH(F67,'Log Entry'!$C$81:$BJ$81,0)),"") ->  | D67: =IF(F67<=Number_of_Novices,INDEX('Log Entry'!$C$5:$BJ$5,,MATCH(F67,'Log Entry'!$C$81:$BJ$81,0)),"") ->  | E67: =IF(F67<=Number_of_Novices,INDEX('Log Entry'!$C$75:$BJ$75,,MATCH(F67,'Log Entry'!$C$81:$BJ$81,0)),"") ->  | F67: =IF(ROW()-8<=Number_of_Novices,ROW()-8,"") -> 
A68: =IF(F68<=Number_of_Novices,UPPER(INDEX('Log Entry'!$C$4:$BJ$4,,MATCH(F68,'Log Entry'!$C$81:$BJ$81,0))),"") ->  | B68: =IF(F68<=Number_of_Novices,INDEX('Log Entry'!$C$2:$BJ$2,,MATCH(F68,'Log Entry'!$C$81:$BJ$81,0)),"") ->  | C68: =IF(F68<=Number_of_Novices,INDEX('Log Entry'!$C$3:$BJ$3,,MATCH(F68,'Log Entry'!$C$81:$BJ$81,0)),"") ->  | D68: =IF(F68<=Number_of_Novices,INDEX('Log Entry'!$C$5:$BJ$5,,MATCH(F68,'Log Entry'!$C$81:$BJ$81,0)),"") ->  | E68: =IF(F68<=Number_of_Novices,INDEX('Log Entry'!$C$75:$BJ$75,,MATCH(F68,'Log Entry'!$C$81:$BJ$81,0)),"") -> 

Sheet Boats & Observers
A1: ='Contest Entry'!B1 -> SYC
A2: ='Contest Entry'!B2 -> Stimson
A3: ='Contest Entry'!B3 -> 2018-09-15
A5: BOAT and OBSERVER LIST
A7: Boat | B7: Contestant | C7: Navigator | D7: Club | E7: Observer
A9: =IF(ROW()-8<=Number_of_Contestants,UPPER(INDEX(Boat_Names,,MATCH(ROW()-8,Alpha_Boat_Rank,0))),"") -> FREEDOM | B9: =IF(ROW()-8<=Number_of_Contestants,INDEX(Contestant_Names,,MATCH(ROW()-8,Alpha_Boat_Rank,0)),"") -> Jim Korzetz | C9: =IF(ROW()-8<=Number_of_Contestants,INDEX(Navigator_Names,,MATCH(ROW()-8,Alpha_Boat_Rank,0)),"") -> Dick Timmerman | D9: =IF(ROW()-8<=Number_of_Contestants,INDEX(Club_Names,,MATCH(ROW()-8,Alpha_Boat_Rank,0)),"") -> PYC | E9: =IF(ROW()-8<=Number_of_Contestants,INDEX(Observer_Names,,MATCH(ROW()-8,Alpha_Boat_Rank,0)),"") -> 0
A10: KLETTITAT | B10: Team Klett/Elbon/Cullen | C10: Elbon/Klett | D10: QCYC | E10: 0
A11: MISS MIRANDA | B11: Larry O'Keefe | C11: Ted Burns | D11: SYC | E11: 0
A12: PANACHE | B12: Brent Reys | C12: Alex Lorenz | D12: SYC | E12: 0
A13: PEACHY KEEN | B13: Mike Henry | C13: Billie Henry | D13: BYC | E13: 0
A14: RAZZLE | B14: Ken Case | C14: Debbie Case | D14: SYC | E14: 0
A15: SAGA | B15: Dan DeGard | C15: JJ Johnson | D15: BYC | E15: 0
A16: SARAH B | B16: Jim VanAntwerp | C16: OJ Potter | D16: BYC | E16: 0
A17: SOJOURN | B17: Clint Chapin | C17: Lynn Hvalsoe | D17: MBYC | E17: 0
A41: =IF(ROW()-8<=Number_of_Contestants,UPPER(INDEX(Boat_Names,,MATCH(ROW()-8,Alpha_Boat_Rank,0))),"") ->  | B41: =IF(ROW()-8<=Number_of_Contestants,INDEX(Contestant_Names,,MATCH(ROW()-8,Alpha_Boat_Rank,0)),"") ->  | C41: =IF(ROW()-8<=Number_of_Contestants,INDEX(Navigator_Names,,MATCH(ROW()-8,Alpha_Boat_Rank,0)),"") ->  | D41: =IF(ROW()-8<=Number_of_Contestants,INDEX(Club_Names,,MATCH(ROW()-8,Alpha_Boat_Rank,0)),"") ->  | E41: =IF(ROW()-8<=Number_of_Contestants,INDEX(Observer_Names,,MATCH(ROW()-8,Alpha_Boat_Rank,0)),"") -> 

Sheet Club Participation
D1: ='Contest Entry'!B1 -> SYC
D2: ='Contest Entry'!B2 -> Stimson
D3: ='Contest Entry'!B3 -> 2018-09-15
C5: YACHT CLUB PARTICIPATION
C7: Yacht Club | D7: Boat | E7: Contestant | F7: Navigator
B8: 1
A9: =IF(AND(B8=1,C9<>""),B9,"") -> 3 | B9: =IF(C9=C10,B10+1,1) -> 3 | C9: =IF(ROW()-8<=Number_of_Contestants,INDEX(Club_Names,,MATCH(ROW()-8,Club_Boat_Rank,0)),"") -> BYC | D9: =IF(ROW()-8<=Number_of_Contestants,UPPER(INDEX(Boat_Names,,MATCH(ROW()-8,Club_Boat_Rank,0))),"") -> PEACHY KEEN | E9: =IF(ROW()-8<=Number_of_Contestants,INDEX(Contestant_Names,,MATCH(ROW()-8,Club_Boat_Rank,0)),"") -> Mike Henry | F9: =IF(ROW()-8<=Number_of_Contestants,INDEX(Navigator_Names,,MATCH(ROW()-8,Club_Boat_Rank,0)),"") -> Billie Henry
A10: =IF(AND(B9=1,C10<>""),B10,"") ->  | B10: =IF(C10=C11,B11+1,1) -> 2 | C10: BYC | D10: SAGA | E10: Dan DeGard | F10: JJ Johnson
B11: 1 | C11: BYC | D11: SARAH B | E11: Jim VanAntwerp | F11: OJ Potter
A12: 1 | B12: 1 | C12: MBYC | D12: SOJOURN | E12: Clint Chapin | F12: Lynn Hvalsoe
A13: 1 | B13: 1 | C13: PYC | D13: FREEDOM | E13: Jim Korzetz | F13: Dick Timmerman
A14: 1 | B14: 1 | C14: QCYC | D14: KLETTITAT | E14: Team Klett/Elbon/Cullen | F14: Elbon/Klett
A15: 3 | B15: 3 | C15: SYC | D15: MISS MIRANDA | E15: Larry O'Keefe | F15: Ted Burns
B16: 2 | C16: SYC | D16: PANACHE | E16: Brent Reys | F16: Alex Lorenz
B17: 1 | C17: SYC | D17: RAZZLE | E17: Ken Case | F17: Debbie Case
B18: 39
B19: 38
B20: 37
B21: 36
B22: 35
B23: 34
B24: 33
B25: 32
B26: 31
B27: 30
B28: 29
B29: 28
B30: 27
B31: 26
B32: 25
B33: 24
B34: 23
B35: 22
B36: 21
B37: 20
B38: 19
A39: =IF(AND(B38=1,C39<>""),B39,"") ->  | B39: =IF(C39=C40,B40+1,1) -> 18
B40: 17
B41: 16 | C41: =IF(ROW()-8<=Number_of_Contestants,INDEX(Club_Names,,MATCH(ROW()-8,Club_Boat_Rank,0)),"") ->  | D41: =IF(ROW()-8<=Number_of_Contestants,UPPER(INDEX(Boat_Names,,MATCH(ROW()-8,Club_Boat_Rank,0))),"") ->  | E41: =IF(ROW()-8<=Number_of_Contestants,INDEX(Contestant_Names,,MATCH(ROW()-8,Club_Boat_Rank,0)),"") ->  | F41: =IF(ROW()-8<=Number_of_Contestants,INDEX(Navigator_Names,,MATCH(ROW()-8,Club_Boat_Rank,0)),"") -> 
B42: 15
B43: 14
B44: 13
B45: 12
B46: 11
B47: 10
B48: 9
B49: 8
B50: 7
B51: 6
B52: 5
B53: 4
B54: 3
B55: 2
B56: =IF(C56=C57,B57+1,1) -> 1
G57: =IF(ROW()-8<=Number_of_Contestants,INDEX('Log Entry'!$C$3:$BJ$3,,MATCH(ROW()-8,'Log Entry'!$C$85:$BJ$85,0)),"") -> 
G58: =IF(ROW()-8<=Number_of_Contestants,INDEX('Log Entry'!$C$3:$BJ$3,,MATCH(ROW()-8,'Log Entry'!$C$85:$BJ$85,0)),"") -> 
G59: =IF(ROW()-8<=Number_of_Contestants,INDEX('Log Entry'!$C$3:$BJ$3,,MATCH(ROW()-8,'Log Entry'!$C$85:$BJ$85,0)),"") -> 
G60: =IF(ROW()-8<=Number_of_Contestants,INDEX('Log Entry'!$C$3:$BJ$3,,MATCH(ROW()-8,'Log Entry'!$C$85:$BJ$85,0)),"") -> 
G61: =IF(ROW()-8<=Number_of_Contestants,INDEX('Log Entry'!$C$3:$BJ$3,,MATCH(ROW()-8,'Log Entry'!$C$85:$BJ$85,0)),"") -> 
G62: =IF(ROW()-8<=Number_of_Contestants,INDEX('Log Entry'!$C$3:$BJ$3,,MATCH(ROW()-8,'Log Entry'!$C$85:$BJ$85,0)),"") -> 
G63: =IF(ROW()-8<=Number_of_Contestants,INDEX('Log Entry'!$C$3:$BJ$3,,MATCH(ROW()-8,'Log Entry'!$C$85:$BJ$85,0)),"") -> 
G64: =IF(ROW()-8<=Number_of_Contestants,INDEX('Log Entry'!$C$3:$BJ$3,,MATCH(ROW()-8,'Log Entry'!$C$85:$BJ$85,0)),"") -> 
G65: =IF(ROW()-8<=Number_of_Contestants,INDEX('Log Entry'!$C$3:$BJ$3,,MATCH(ROW()-8,'Log Entry'!$C$85:$BJ$85,0)),"") -> 
G66: =IF(ROW()-8<=Number_of_Contestants,INDEX('Log Entry'!$C$3:$BJ$3,,MATCH(ROW()-8,'Log Entry'!$C$85:$BJ$85,0)),"") -> 
G67: =IF(ROW()-8<=Number_of_Contestants,INDEX('Log Entry'!$C$3:$BJ$3,,MATCH(ROW()-8,'Log Entry'!$C$85:$BJ$85,0)),"") -> 
G68: =IF(ROW()-8<=Number_of_Contestants,INDEX('Log Entry'!$C$3:$BJ$3,,MATCH(ROW()-8,'Log Entry'!$C$85:$BJ$85,0)),"") -> 
G69: =IF(ROW()-8<=Number_of_Contestants,INDEX('Log Entry'!$C$3:$BJ$3,,MATCH(ROW()-8,'Log Entry'!$C$85:$BJ$85,0)),"") -> 
G70: =IF(ROW()-8<=Number_of_Contestants,INDEX('Log Entry'!$C$3:$BJ$3,,MATCH(ROW()-8,'Log Entry'!$C$85:$BJ$85,0)),"") -> 

Sheet Team Trophy
C1: ='Contest Entry'!B1 -> SYC
C2: ='Contest Entry'!B2 -> Stimson
C3: ='Contest Entry'!B3 -> 2018-09-15
C5: TEAM TROPHY
C7: Boat | D7: Contestant | E7: Navigator | F7: Yacht Club | G7: Percent Error | H7: Avg Error
B8: 1
A9: =RANK(H9,$H$9:$H$70,1)-ROWS($A$9:$A$70)+COUNTIF($H$9:$H$70,"<>0") -> 1 | B9: =IF(F9=F10,B10+1,1) -> 3 | C9: =IF(ROW()-8<=Number_of_Contestants,UPPER(INDEX(Boat_Names,,MATCH(ROW()-8,Club_Error_Rank,0))),"") -> SARAH B | D9: =IF(ROW()-8<=Number_of_Contestants,INDEX(Contestant_Names,,MATCH(ROW()-8,Club_Error_Rank,0)),"") -> Jim VanAntwerp | E9: =IF(ROW()-8<=Number_of_Contestants,INDEX(Navigator_Names,,MATCH(ROW()-8,Club_Error_Rank,0)),"") -> OJ Potter | F9: =IF(ROW()-8<=Number_of_Contestants,INDEX(Club_Names,,MATCH(ROW()-8,Club_Error_Rank,0)),"") -> BYC | G9: =IF(ROW()-8<=Number_of_Contestants,INDEX(Net_Error,,MATCH(ROW()-8,Club_Error_Rank,0)),"") -> 0.003175253875 | H9: =IF(AND(ROW()-8<=Number_of_Contestants,B8=1,B9>=Team_Size),AVERAGE(OFFSET(G9,0,0,Team_Size,1)),0) -> 0.006315719843
A10: -45 | B10: =IF(F10=F11,B11+1,1) -> 2 | C10: PEACHY KEEN | D10: Mike Henry | E10: Billie Henry | F10: BYC | G10: 0.004194101151 | H10: 0
A11: -45 | B11: 1 | C11: SAGA | D11: Dan DeGard | E11: JJ Johnson | F11: BYC | G11: 0.0115778045 | H11: 0
A12: -45 | B12: 1 | C12: SOJOURN | D12: Clint Chapin | E12: Lynn Hvalsoe | F12: MBYC | G12: 0.01017315015 | H12: 0
A13: -45 | B13: 1 | C13: FREEDOM | D13: Jim Korzetz | E13: Dick Timmerman | F13: PYC | G13: 0.001615999447 | H13: 0
A14: -45 | B14: 1 | C14: KLETTITAT | D14: Team Klett/Elbon/Cullen | E14: Elbon/Klett | F14: QCYC | G14: 0.01015729293 | H14: 0
A15: 2 | B15: 3 | C15: MISS MIRANDA | D15: Larry O'Keefe | E15: Ted Burns | F15: SYC | G15: 0.006423914804 | H15: 0.01500888671
A16: -45 | B16: 2 | C16: PANACHE | D16: Brent Reys | E16: Alex Lorenz | F16: SYC | G16: 0.01192046018 | H16: 0
A17: -45 | B17: 1 | C17: RAZZLE | D17: Ken Case | E17: Debbie Case | F17: SYC | G17: 0.02668228514 | H17: 0
A18: -45 | B18: 39 | H18: 0
A19: -45 | B19: 38 | H19: 0
A20: -45 | B20: 37 | H20: 0
A21: -45 | B21: 36 | H21: 0
A22: -45 | B22: 35 | H22: 0
A23: -45 | B23: 34 | H23: 0
A24: -45 | B24: 33 | H24: 0
A25: -45 | B25: 32 | H25: 0
A26: -45 | B26: 31 | H26: 0
A27: -45 | B27: 30 | H27: 0
A28: -45 | B28: 29 | H28: 0
A29: -45 | B29: 28 | H29: 0
A30: -45 | B30: 27 | H30: 0
A31: -45 | B31: 26 | H31: 0
A32: -45 | B32: 25 | H32: 0
A33: -45 | B33: 24 | H33: 0
A34: -45 | B34: 23 | H34: 0
A35: -45 | B35: 22 | H35: 0
A36: -45 | B36: =IF(F36=F37,B37+1,1) -> 21 | H36: 0
A37: -45 | B37: 20 | H37: 0
A38: -45 | B38: 19 | H38: 0
A39: -45 | B39: 18 | H39: 0
A40: -45 | B40: 17 | H40: 0
A41: -45 | B41: 16 | C41: =IF(ROW()-8<=Number_of_Contestants,UPPER(INDEX(Boat_Names,,MATCH(ROW()-8,Club_Error_Rank,0))),"") ->  | D41: =IF(ROW()-8<=Number_of_Contestants,INDEX(Contestant_Names,,MATCH(ROW()-8,Club_Error_Rank,0)),"") ->  | E41: =IF(ROW()-8<=Number_of_Contestants,INDEX(Navigator_Names,,MATCH(ROW()-8,Club_Error_Rank,0)),"") ->  | F41: =IF(ROW()-8<=Number_of_Contestants,INDEX(Club_Names,,MATCH(ROW()-8,Club_Error_Rank,0)),"") ->  | G41: =IF(ROW()-8<=Number_of_Contestants,INDEX(Net_Error,,MATCH(ROW()-8,Club_Error_Rank,0)),"") ->  | H41: =IF(AND(ROW()-8<=Number_of_Contestants,B40=1,B41>=Team_Size),AVERAGE(OFFSET(G41,0,0,Team_Size,1)),0) -> 0
A42: -45 | B42: 15 | H42: 0
A43: -45 | B43: 14 | H43: 0
A44: -45 | B44: 13 | H44: 0
A45: -45 | B45: 12 | H45: 0
A46: -45 | B46: 11 | H46: 0
A47: -45 | B47: 10 | H47: 0
A48: -45 | B48: 9 | H48: 0
A49: -45 | B49: 8 | H49: 0
A50: -45 | B50: 7 | H50: 0
A51: -45 | B51: 6 | H51: 0
A52: -45 | B52: 5 | H52: 0
A53: -45 | B53: 4 | H53: 0
A54: -45 | B54: 3 | H54: 0
A55: -45 | B55: 2 | H55: 0
A56: -45 | B56: 1 | H56: 0

Sheet Leg Scores
A1: ='Contest Entry'!B1 -> SYC
A2: ='Contest Entry'!B2 -> Stimson
A3: ='Contest Entry'!B3 -> 2018-09-15
A5: BEST LOW SCORE PER LEG
A7: Boat | B7: Club | C7: Contestant | D7: CP1 | E7: CP2 | F7: CP3 | G7: CP4 | H7: CP5 | I7: CP6 | J7: CP7 | K7: CP8
C8: Worst: | D8: =MAX(D$11:D$69) -> 50 | E8: =MAX(E$11:E$69) -> 122 | F8: 43 | G8: 36 | H8: 0 | I8: =MAX(I$11:I$69) -> 0 | J8: 0 | K8: 0
C9: Average: | D9: =AVERAGE(D$11:D$69) -> 23 | E9: =AVERAGE(E$11:E$69) -> 33.77777778 | F9: 19.44444444 | G9: 11.33333333 | I9: =AVERAGE(I$11:I$69) -> 
A10: =ROW() -> 10 | C10: Best: | D10: =MIN(D$11:D$69) -> 0 | E10: 1 | F10: 5 | G10: 2 | H10: 0 | I10: 0 | J10: 0 | K10: 0
A11: =IF(ROW()-$A$10<=Number_of_Contestants,UPPER(INDEX(Boat_Names,,MATCH(ROW()-$A$10,Alpha_Boat_Rank,0))),"") -> FREEDOM | B11: =IF(ROW()-$A$10<=Number_of_Contestants,INDEX(Club_Names,,MATCH(ROW()-$A$10,Alpha_Boat_Rank,0)),"") -> PYC | C11: =IF(ROW()-$A$10<=Number_of_Contestants,INDEX(Contestant_Names,,MATCH(ROW()-$A$10,Alpha_Boat_Rank,0)),"") -> Jim Korzetz | D11: =IF(AND(ROW()-$A$10<=Number_of_Contestants,COLUMN()-3<=Number_of_CPs),ABS(INDEX(CP1_Error,,MATCH(ROW()-$A$10,Alpha_Boat_Rank,0))),"") -> 0 | E11: =IF(AND(ROW()-$A$10<=Number_of_Contestants,COLUMN()-3<=Number_of_CPs),ABS(INDEX(CP2_Error,,MATCH(ROW()-$A$10,Alpha_Boat_Rank,0))),"") -> 3 | F11: =IF(AND(ROW()-$A$10<=Number_of_Contestants,COLUMN()-3<=Number_of_CPs),ABS(INDEX(CP3_Error,,MATCH(ROW()-$A$10,Alpha_Boat_Rank,0))),"") -> 5 | G11: =IF(AND(ROW()-$A$10<=Number_of_Contestants,COLUMN()-3<=Number_of_CPs),ABS(INDEX(CP4_Error,,MATCH(ROW()-$A$10,Alpha_Boat_Rank,0))),"") -> 8 | H11: =IF(AND(ROW()-$A$10<=Number_of_Contestants,COLUMN()-3<=Number_of_CPs),ABS(INDEX(CP5_Error,,MATCH(ROW()-$A$10,Alpha_Boat_Rank,0))),"") ->  | I11: =IF(AND(ROW()-$A$10<=Number_of_Contestants,COLUMN()-3<=Number_of_CPs),ABS(INDEX(CP6_Error,,MATCH(ROW()-$A$10,Alpha_Boat_Rank,0))),"") ->  | J11: =IF(AND(ROW()-$A$10<=Number_of_Contestants,COLUMN()-3<=Number_of_CPs),ABS(INDEX(CP7_Error,,MATCH(ROW()-$A$10,Alpha_Boat_Rank,0))),"") ->  | K11: =IF(AND(ROW()-$A$10<=Number_of_Contestants,COLUMN()-3<=Number_of_CPs),ABS(INDEX(CP8_Error,,MATCH(ROW()-$A$10,Alpha_Boat_Rank,0))),"") -> 
A12: KLETTITAT | B12: QCYC | C12: Team Klett/Elbon/Cullen | D12: 43 | E12: 29 | F12: 6 | G12: 2
A13: MISS MIRANDA | B13: SYC | C13: Larry O'Keefe | D13: 15 | E13: 1 | F13: 43 | G13: 3
A14: PANACHE | B14: SYC | C14: Brent Reys | D14: 50 | E14: 17 | F14: 11 | G14: 17
A15: PEACHY KEEN | B15: BYC | C15: Mike Henry | D15: 23 | E15: 1 | F15: 17 | G15: 3
A16: RAZZLE | B16: SYC | C16: Ken Case | D16: 38 | E16: 122 | F16: 38 | G16: 12
A17: SAGA | B17: BYC | C17: Dan DeGard | D17: 17 | E17: 61 | F17: 5 | G17: 36
A18: SARAH B | B18: BYC | C18: Jim VanAntwerp | D18: 0 | E18: 11 | F18: 20 | G18: 10
A19: SOJOURN | B19: MBYC | C19: Clint Chapin | D19: 21 | E19: 59 | F19: 30 | G19: 11
A43: =IF(ROW()-$A$10<=Number_of_Contestants,UPPER(INDEX(Boat_Names,,MATCH(ROW()-$A$10,Alpha_Boat_Rank,0))),"") ->  | B43: =IF(ROW()-$A$10<=Number_of_Contestants,INDEX(Club_Names,,MATCH(ROW()-$A$10,Alpha_Boat_Rank,0)),"") ->  | C43: =IF(ROW()-$A$10<=Number_of_Contestants,INDEX(Contestant_Names,,MATCH(ROW()-$A$10,Alpha_Boat_Rank,0)),"") ->  | D43: =IF(AND(ROW()-$A$10<=Number_of_Contestants,COLUMN()-3<=Number_of_CPs),ABS(INDEX(CP1_Error,,MATCH(ROW()-$A$10,Alpha_Boat_Rank,0))),"") ->  | E43: =IF(AND(ROW()-$A$10<=Number_of_Contestants,COLUMN()-3<=Number_of_CPs),ABS(INDEX(CP2_Error,,MATCH(ROW()-$A$10,Alpha_Boat_Rank,0))),"") ->  | F43: =IF(AND(ROW()-$A$10<=Number_of_Contestants,COLUMN()-3<=Number_of_CPs),ABS(INDEX(CP3_Error,,MATCH(ROW()-$A$10,Alpha_Boat_Rank,0))),"") ->  | G43: =IF(AND(ROW()-$A$10<=Number_of_Contestants,COLUMN()-3<=Number_of_CPs),ABS(INDEX(CP4_Error,,MATCH(ROW()-$A$10,Alpha_Boat_Rank,0))),"") ->  | H43: =IF(AND(ROW()-$A$10<=Number_of_Contestants,COLUMN()-3<=Number_of_CPs),ABS(INDEX(CP5_Error,,MATCH(ROW()-$A$10,Alpha_Boat_Rank,0))),"") ->  | I43: =IF(AND(ROW()-$A$10<=Number_of_Contestants,COLUMN()-3<=Number_of_CPs),ABS(INDEX(CP6_Error,,MATCH(ROW()-$A$10,Alpha_Boat_Rank,0))),"") ->  | J43: =IF(AND(ROW()-$A$10<=Number_of_Contestants,COLUMN()-3<=Number_of_CPs),ABS(INDEX(CP7_Error,,MATCH(ROW()-$A$10,Alpha_Boat_Rank,0))),"") ->  | K43: =IF(AND(ROW()-$A$10<=Number_of_Contestants,COLUMN()-3<=Number_of_CPs),ABS(INDEX(CP8_Error,,MATCH(ROW()-$A$10,Alpha_Boat_Rank,0))),"") -> 
A71: =IF(ROW()-8<=Number_of_Contestants,UPPER(INDEX('Log Entry'!$C$4:$BJ$4,,MATCH(ROW()-8,'Log Entry'!$C$83:$BJ$83,0))),"") ->  | B71: =IF(ROW()-8<=Number_of_Contestants,INDEX('Log Entry'!$C$5:$BJ$5,,MATCH(ROW()-8,'Log Entry'!$C$83:$BJ$83,0)),"") ->  | C71: =IF(ROW()-8<=Number_of_Contestants,INDEX('Log Entry'!$C$2:$BJ$2,,MATCH(ROW()-8,'Log Entry'!$C$83:$BJ$83,0)),"") ->  | D71: =IF(ROW()-8<=Number_of_Contestants,ABS(INDEX('Log Entry'!$C$61:$BJ$61,,MATCH(ROW()-8,'Log Entry'!$C$83:$BJ$83,0))),"") ->  | E71: =IF(ROW()-8<=Number_of_Contestants,ABS(INDEX('Log Entry'!$C$62:$BJ$62,,MATCH(ROW()-8,'Log Entry'!$C$83:$BJ$83,0))),"") ->  | F71: =IF(ROW()-8<=Number_of_Contestants,ABS(INDEX('Log Entry'!$C$63:$BJ$63,,MATCH(ROW()-8,'Log Entry'!$C$83:$BJ$83,0))),"") ->  | G71: =IF(ROW()-8<=Number_of_Contestants,ABS(INDEX('Log Entry'!$C$64:$BJ$64,,MATCH(ROW()-8,'Log Entry'!$C$83:$BJ$83,0))),"") ->  | H71: =IF(ROW()-8<=Number_of_Contestants,ABS(INDEX('Log Entry'!$C$65:$BJ$65,,MATCH(ROW()-8,'Log Entry'!$C$83:$BJ$83,0))),"") ->  | I71: =IF(ROW()-8<=Number_of_Contestants,ABS(INDEX('Log Entry'!$C$66:$BJ$66,,MATCH(ROW()-8,'Log Entry'!$C$83:$BJ$83,0))),"") ->  | J71: =IF(ROW()-8<=Number_of_Contestants,ABS(INDEX('Log Entry'!$C$67:$BJ$67,,MATCH(ROW()-8,'Log Entry'!$C$83:$BJ$83,0))),"") ->  | K71: =IF(ROW()-8<=Number_of_Contestants,ABS(INDEX('Log Entry'!$C$68:$BJ$68,,MATCH(ROW()-8,'Log Entry'!$C$83:$BJ$83,0))),"") -> 
A72: =IF(ROW()-8<=Number_of_Contestants,UPPER(INDEX('Log Entry'!$C$4:$BJ$4,,MATCH(ROW()-8,'Log Entry'!$C$83:$BJ$83,0))),"") ->  | B72: =IF(ROW()-8<=Number_of_Contestants,INDEX('Log Entry'!$C$5:$BJ$5,,MATCH(ROW()-8,'Log Entry'!$C$83:$BJ$83,0)),"") ->  | C72: =IF(ROW()-8<=Number_of_Contestants,INDEX('Log Entry'!$C$2:$BJ$2,,MATCH(ROW()-8,'Log Entry'!$C$83:$BJ$83,0)),"") ->  | D72: =IF(ROW()-8<=Number_of_Contestants,ABS(INDEX('Log Entry'!$C$61:$BJ$61,,MATCH(ROW()-8,'Log Entry'!$C$83:$BJ$83,0))),"") ->  | E72: =IF(ROW()-8<=Number_of_Contestants,ABS(INDEX('Log Entry'!$C$62:$BJ$62,,MATCH(ROW()-8,'Log Entry'!$C$83:$BJ$83,0))),"") ->  | F72: =IF(ROW()-8<=Number_of_Contestants,ABS(INDEX('Log Entry'!$C$63:$BJ$63,,MATCH(ROW()-8,'Log Entry'!$C$83:$BJ$83,0))),"") ->  | G72: =IF(ROW()-8<=Number_of_Contestants,ABS(INDEX('Log Entry'!$C$64:$BJ$64,,MATCH(ROW()-8,'Log Entry'!$C$83:$BJ$83,0))),"") ->  | H72: =IF(ROW()-8<=Number_of_Contestants,ABS(INDEX('Log Entry'!$C$65:$BJ$65,,MATCH(ROW()-8,'Log Entry'!$C$83:$BJ$83,0))),"") ->  | I72: =IF(ROW()-8<=Number_of_Contestants,ABS(INDEX('Log Entry'!$C$66:$BJ$66,,MATCH(ROW()-8,'Log Entry'!$C$83:$BJ$83,0))),"") ->  | J72: =IF(ROW()-8<=Number_of_Contestants,ABS(INDEX('Log Entry'!$C$67:$BJ$67,,MATCH(ROW()-8,'Log Entry'!$C$83:$BJ$83,0))),"") ->  | K72: =IF(ROW()-8<=Number_of_Contestants,ABS(INDEX('Log Entry'!$C$68:$BJ$68,,MATCH(ROW()-8,'Log Entry'!$C$83:$BJ$83,0))),"") -> 

Sheet Cross-Check Log
A1: 170
A2: =MATCH(A1,'Log Entry'!C1:BJ1,0) -> 
B3: CROSS-CHECK LOG
B4: This Log is used to verify that the Official Race Scorer has correctly entered the data from the Contestant's Log. Please cross-check it against your Log to make sure there are no discrepancies.
B7: CONTEST NAME: | D7: =Contest_Name -> Stimson | N7: DATE: | R7: =Contest_Date -> 2018-09-15
B8: CONTESTANT: | D8: =INDEX(Contestant_Names,,$A$2) ->  | N8: BOAT NAME: | R8: =INDEX(Boat_Names,,$A$2) -> 
B10: from CONTESTANT PREDICTED LOG | G10: from CONTEST LOG | N10: TIME OUT(S) | U10: ACTUAL RESULTS
B11: Predicted Start | G11: Actual Start | N11: TIME OUT(S) "IF NEEDED" | U11: Difference From | Y11: SECONDS OF ERROR
B12: Time of Day | G12: Time of Day | U12: Predicted start
B13: Hr : Min : Sec | G13: Hr : Min : Sec | U13: Max | V13: Min : Sec
B14: =INDEX(Predicted_Start_Times,,$A$2) ->  | G14: =INDEX(Actual_Start_Times,,$A$2) ->  | U14: 5 min | V14: =INDEX(Start_Difference_Times,,$A$2) -> 
B15: CP# | C15: PREDICTED RUN TIME | G15: Actual TIME OF DAY | N15: Actual T.O. RUN TIMES | U15: Actual Run time
C16: Hr : Min : Sec | G16: Hr : Min : Sec | N16: Hr : Min : Sec | U16: Hr : Min : Sec | Y16: Fast | AA16: Slow
B17: 1 | C17: =INDEX(CP1_Predicted_Run_Times,,$A$2) ->  | G17: =INDEX(CP1_Actual_Times,,$A$2) ->  | N17: =INDEX(CP1_Time_Outs,,$A$2) ->  | U17: =INDEX(CP1_Actual_Run_Times,,$A$2) ->  | Y17: =IF(AB17<0,0,AB17) ->  | AA17: =IF(AB17<0,AB17*-1,IF(AND(AB17=0,C17<>0),0.000001,0)) ->  | AB17: =INDEX(CP1_Error,,$A$2) -> 
B18: 2 | C18: =INDEX(CP2_Predicted_Run_Times,,$A$2) ->  | G18: =INDEX(CP2_Actual_Times,,$A$2) ->  | N18: =INDEX(CP2_Time_Outs,,$A$2) ->  | U18: =INDEX(CP2_Actual_Run_Times,,$A$2) ->  | Y18: =IF(AB18<0,0,AB18) ->  | AA18: =IF(AB18<0,AB18*-1,IF(AND(AB18=0,C18<>0),0.000001,0)) ->  | AB18: =INDEX(CP2_Error,,$A$2) -> 
B19: 3 | C19: =INDEX(CP3_Predicted_Run_Times,,$A$2) ->  | G19: =INDEX(CP3_Actual_Times,,$A$2) ->  | N19: =INDEX(CP3_Time_Outs,,$A$2) ->  | U19: =INDEX(CP3_Actual_Run_Times,,$A$2) ->  | AB19: =INDEX(CP3_Error,,$A$2) -> 
B20: 4 | C20: =INDEX(CP4_Predicted_Run_Times,,$A$2) ->  | G20: =INDEX(CP4_Actual_Times,,$A$2) ->  | N20: =INDEX(CP4_Time_Outs,,$A$2) ->  | U20: =INDEX(CP4_Actual_Run_Times,,$A$2) ->  | AB20: =INDEX(CP4_Error,,$A$2) -> 
B21: 5 | C21: =INDEX(CP5_Predicted_Run_Times,,$A$2) ->  | G21: =INDEX(CP5_Actual_Times,,$A$2) ->  | N21: =INDEX(CP5_Time_Outs,,$A$2) ->  | U21: =INDEX(CP5_Actual_Run_Times,,$A$2) ->  | AB21: =INDEX(CP5_Error,,$A$2) -> 
B22: 6 | C22: =INDEX(CP6_Predicted_Run_Times,,$A$2) ->  | G22: =INDEX(CP6_Actual_Times,,$A$2) ->  | N22: =INDEX(CP6_Time_Outs,,$A$2) ->  | U22: =INDEX(CP6_Actual_Run_Times,,$A$2) ->  | AB22: =INDEX(CP6_Error,,$A$2) -> 
B23: 7 | C23: =INDEX(CP7_Predicted_Run_Times,,$A$2) ->  | G23: =INDEX(CP7_Actual_Times,,$A$2) ->  | N23: =INDEX(CP7_Time_Outs,,$A$2) ->  | U23: =INDEX(CP7_Actual_Run_Times,,$A$2) ->  | AB23: =INDEX(CP7_Error,,$A$2) -> 
B24: 8 | C24: =INDEX(CP8_Predicted_Run_Times,,$A$2) ->  | G24: =INDEX(CP8_Actual_Times,,$A$2) ->  | N24: =INDEX(CP8_Time_Outs,,$A$2) ->  | U24: =INDEX(CP8_Actual_Run_Times,,$A$2) ->  | AB24: =INDEX(CP8_Error,,$A$2) -> 
B25: TOTALS | C25: =INDEX(Total_Predicted_Run_Times,,$A$2) ->  | G25: Actual Total Run Time (Hr:Min:Sec) | P25: =INDEX(Actual_Total_Run_Times,,$A$2) ->  | U25: ACTUAL TOTAL BY FAST & SLOW (seconds) | Y25: =IF(P26=0,"",SUM(Y17:Z24)) ->  | AA25: =IF(P26=0,"",SUM(AA17:AA24)) -> 
B26: TOTAL SEC | C26: =INDEX(Total_Predicted_Seconds,,$A$2) ->  | G26: Actual Total Run Time (seconds) | P26: =INDEX(Total_Actual_Seconds,,$A$2) -> 
B27: FINISH | C27: =INDEX(Finish_Times,,$A$2) ->  | U27: ACTUAL TOTAL SECONDS OF ERROR | Y27: =IF(P26=0,"",Y25+AA25) -> 
B29: CALCULATION PROOFS
B30: A) SLOW SECONDS OF ERROR MINUS FAST SECONDS OF ERROR: | U30: =IF(OR(C25=0,P25=0),"",AA25-Y25) -> 
B31: B) DIFFERENCE BETWEEN PREDICTED AND ACTUAL TOTAL SECONDS: | U31: =IF(OR(C26=0,P26=0),"",P26-C26) -> 
B32: DIFFERENCE BETWEEN ABOVE A AND B (RESULTS MUST EQUAL ZERO): | U32: =IF(OR(C26=0,P26=0),"",U30-U31) -> 
B34: NET ERROR CALCULATIONS
B35: OFFICIAL MILEAGE (NM) | U35: =Official_Mileage -> 14
B36: PREDICTED SPEED FOR HANDICAP (kn), (Official mi X 3600 ) / Total Pred sec | U36: =INDEX(Predicted_Speeds,,$A$2) -> 
B37: HANDICAP, Refer to Predicted Log Racing Handbook for Predicted Speed | U37: =INDEX(Handicaps,,$A$2) -> 
B38: GROSS ERROR %, (Total Seconds of Error X 100) / total predicted sec (without Handicap for Lake Races) | U38: =INDEX(Gross_Errors,,$A$2) -> 
B39: PENALTY ERROR % (If Any) | U39: =INDEX(Penalties,,$A$2) -> 
B40: NET ERROR %. Gross Error X Handicap (Salt Water Races) | U40: =INDEX(Net_Error,,$A$2) -> 
B42: SIGNED BY CONTESTANT:

Sheet Class Certificates
A1: ="Class 1 - 2nd Place "&YEAR(Contest_Date) -> Class 1 - 2nd Place 2018
A3: =LOOKUP('Class Results'!D15,'Yacht Clubs'!A2:B11) -> 
A4: =TEXT('Class Results'!E15,"0.0000%")&" Error" -> Error
A5: ='Class Results'!A15&" - "&'Class Results'!B15&"/"&'Class Results'!C15 -> - /
A6: ="Class 1 - 3rd Place "&YEAR(Contest_Date) -> Class 1 - 3rd Place 2018
A8: =LOOKUP('Class Results'!D16,'Yacht Clubs'!A2:B11) -> 
A9: =TEXT('Class Results'!E16,"0.0000%")&" Error" -> Error
A10: ='Class Results'!A16&" - "&'Class Results'!B16&"/"&'Class Results'!C16 -> - /
A11: ="Class 2 - 2nd Place "&YEAR(Contest_Date) -> Class 2 - 2nd Place 2018
A13: =LOOKUP('Class Results'!D25,'Yacht Clubs'!A2:B11) -> 
A14: =TEXT('Class Results'!E25,"0.0000%")&" Error" -> Error
A15: ='Class Results'!A25&" - "&'Class Results'!B25&"/"&'Class Results'!C25 -> - /
A16: ="Class 2 - 3nd Place "&YEAR(Contest_Date) -> Class 2 - 3nd Place 2018
A18: =LOOKUP('Class Results'!D26,'Yacht Clubs'!A2:B11) -> 
A19: =TEXT('Class Results'!E26,"0.0000%")&" Error" -> Error
A20: ='Class Results'!A26&" - "&'Class Results'!B26&"/"&'Class Results'!C26 -> - /
A21: ="Class 3 - 2nd Place "&YEAR(Contest_Date) -> Class 3 - 2nd Place 2018
A23: =LOOKUP('Class Results'!D35,'Yacht Clubs'!A2:B11) -> 
A24: =TEXT('Class Results'!E35,"0.0000%")&" Error" -> Error
A25: ='Class Results'!A35&" - "&'Class Results'!B35&"/"&'Class Results'!C35 -> - /
A26: ="Class 3 - 3nd Place "&YEAR(Contest_Date) -> Class 3 - 3nd Place 2018
A28: =LOOKUP('Class Results'!D36,'Yacht Clubs'!A2:B11) -> 
A29: =TEXT('Class Results'!E36,"0.0000%")&" Error" -> Error
A30: ='Class Results'!A36&" - "&'Class Results'!B36&"/"&'Class Results'!C36 -> - /
A31: ="Class 4 - 2nd Place "&YEAR(Contest_Date) -> Class 4 - 2nd Place 2018
A33: =LOOKUP('Class Results'!D45,'Yacht Clubs'!A2:B11) -> 
A34: =TEXT('Class Results'!E45,"0.0000%")&" Error" -> Error
A35: ='Class Results'!A45&" - "&'Class Results'!B45&"/"&'Class Results'!C45 -> - /
A36: ="Class 4 - 3nd Place "&YEAR(Contest_Date) -> Class 4 - 3nd Place 2018
A38: =LOOKUP('Class Results'!D46,'Yacht Clubs'!A2:B11) -> 
A39: =TEXT('Class Results'!E46,"0.0000%")&" Error" -> Error
A40: ='Class Results'!A46&" - "&'Class Results'!B46&"/"&'Class Results'!C46 -> - /
A41: ="Class 5 - 2nd Place "&YEAR(Contest_Date) -> Class 5 - 2nd Place 2018
A43: =LOOKUP('Class Results'!D55,'Yacht Clubs'!A2:B11) -> Seattle Yacht Club
A44: =TEXT('Class Results'!E55,"0.0000%")&" Error" -> 2.6682% Error
A45: ='Class Results'!A55&" - "&'Class Results'!B55&"/"&'Class Results'!C55 -> RAZZLE - Ken Case/Debbie Case
A46: ="Class 5 - 3nd Place "&YEAR(Contest_Date) -> Class 5 - 3nd Place 2018
A48: =LOOKUP('Class Results'!D56,'Yacht Clubs'!A2:B11) -> 
A49: =TEXT('Class Results'!E56,"0.0000%")&" Error" -> Error
A50: ='Class Results'!A56&" - "&'Class Results'!B56&"/"&'Class Results'!C56 -> - /

Sheet Yacht Clubs
A1: Yacht Clubs (in alphabetical order)
A2: BYC | B2: Bremerton Yacht Club
A3: GHYC | B3: Gig Harbor Yacht Club
A4: MBYC | B4: Meydenbauer Bay Yacht Club
A5: POYC | B5: Port Orchard Yacht Club
A6: PYC | B6: Poulsbo Yacht Club
A7: QCYC | B7: Queen City Yacht Club
A8: RYC | B8: Rainier Yacht Club
A9: SYC | B9: Seattle Yacht Club
A10: Totem YC | B10: Totem Yacht Club
A11: TYC | B11: Tacoma Yacht Club

Sheet Contestants
A1: IPBA # | B1: Contestant | C1: Navigator | D1: Boat Name | E1: Club | F1: Cruise | G1: Slow | H1: Class
A2: 624 | B2: Steve Hazlerig | C2: Zach Johnson | D2: Solara | E2: SYC | F2: 8.887 | G2: 6.993 | H2: 3
A3: 600 | B3: Bob Lindal | C3: Mike McGillin | D3: SUZY Q - A | E3: QCYC | F3: 10.04 | G3: 6.923 | H3: 5
A4: 539 | B4: Scott Strandjord | C4: Jim V / Tyler S | D4: Redemption | E4: SYC | F4: 9.073 | G4: 6.993 | H4: 4
A5: 165 | B5: Brent Reys | C5: Alex Lorenz | D5: PANACHE | E5: SYC | F5: 9.474 | G5: 6.923 | H5: 4
A6: 7 | B6: Jim Korzetz | C6: Dick Timmerman | D6: FREEDOM | E6: PYC | F6: 8.39 | G6: 7 | H6: 2
A7: 511 | B7: Fred Cole | C7: Linda Cole | D7: Mouse Trap | E7: POYC | F7: 9.555 | G7: 7 | H7: 5
A8: 688 | B8: George Gregg | C8: Bob Johnson | D8: Noble | E8: PYC | F8: 7.847 | G8: 7 | H8: 1
A9: 715 | B9: Eva Bennison | C9: Dick Bennison | D9: Well Done | E9: TYC | F9: 9.508 | G9: 7 | H9: 5
A10: 689 | B10: Clint Chapin | C10: Lynn Hvalsoe | D10: Sojourn | E10: MBYC | F10: 7.3 | G10: 7 | H10: 1
A11: 169 | B11: Dennis Sheehan | C11: Julie Sheehan | D11: Nauti Gal | E11: PYC | F11: 7.482 | G11: 7 | H11: 1
A12: 366 | B12: Jerry Downer | C12: Shirley Downer | D12: NORWESTER | E12: GHYC | F12: 8.323 | G12: 7 | H12: 2
A13: 583 | B13: Steve Brett | C13: Deana Brett | D13: Ocean Jewel | E13: BYC | F13: 8.26 | G13: 7 | H13: 2
A14: 655 | B14: Jim Korzetz | C14: Dick Timmerman | D14: Freedom | E14: PYC | F14: 8.613 | G14: 7 | H14: 3
A15: 120 | B15: Mike Henry | C15: Billie Henry | D15: Peachy Keen | E15: BYC | F15: 8.175 | G15: 7 | H15: 2
A16: 677 | B16: Ken Case | C16: Debbie Case | D16: Razzle | E16: SYC | F16: 9.89 | G16: 7 | H16: 5
A17: 672 | B17: Paul Austin | C17: Don Decock | D17: Nifty Fifty | E17: MBYC | F17: 8 | G17: 7 | H17: 1
A18: 204 | B18: Dave Padgett | C18: Russ Oberg | D18: Slip Away | E18: QCYC | F18: 8.889 | G18: 7 | H18: 3
A19: 170 | B19: Todd Prodzinski | C19: Larry O'Keefe | D19: Miss Miranda | E19: SYC | F19: 8.867 | G19: 7 | H19: 3
A20: 686 | B20: George Babbitt | C20: Louise Babbitt | D20: General Quarters | E20: GHYC | F20: 8.61 | G20: 7 | H20: 3
A21: 678 | B21: Bill Anderson | C21: Trish Anderson | D21: The Tillie | E21: QCYC | F21: 9.01 | G21: 7 | H21: 4
A22: 640 | B22: Chuck Irwin | C22: Beth Irwin | D22: LAUGHIN' PLACE | E22: TYC | F22: 9.552 | G22: 7 | H22: 5
A23: 666 | B23: Tom Green | C23: Bruce Cullen | D23: Diastole | E23: MBYC | F23: 10.793 | G23: 7 | H23: 5
A24: 683 | B24: Dan Frank | C24: Gary Dove | D24: Moon Shine | E24: MBYC | F24: 8.57 | G24: 7 | H24: 3
A25: 2 | B25: Dave White | C25: Peggy White | D25: LAZY GAL | E25: QCYC | F25: 9.113
A26: 3 | B26: Bob Johnson | C26: Pat Johnson | D26: SCHOTTISCHE IV | E26: PYC | F26: 8.01
A27: 5 | B27: Gordon Dickson | C27: Marilyn Dickson | D27: SEA BEAR II | E27: MBYC | F27: 15
A28: 6 | B28: Jeff Sayer | C28: Carol Sayer | D28: WAYWARD SUN | E28: OYC | F28: 0
A29: 8 | B29: Ron Records | C29: Nancy Records | D29: CONTIGO | E29: GHYC | F29: 0
A30: 9 | B30: Jerry Burton | C30: Barbara Burton | D30: SEA CLOUD | E30: GHYC | F30: 0
A31: 10 | B31: Ray Pond | C31: Bruce Wegner | D31: TOMORROW | E31: TYC | F31: 0
A32: 11 | B32: Dick Perkins | C32: Barbara Perkins | D32: VOYAGER | E32: TYC | F32: 0
A33: 12 | B33: John Bare | C33: Jan Bare | D33: KLATAWA | E33: GHYC | F33: 0
A34: 15 | B34: Dave Wilson | C34: Jan Wilson | D34: SKOOKUM | E34: QCYC | F34: 9.689
A35: 16 | B35: Tom Brooke | C35: Mike Mueller | D35: GREAT ESCAPE | E35: PYC | F35: 8.93
A36: 16 | B36: Mike Mueller | C36: Steve Lant | D36: PERSEUS | E36: PYC | F36: 9.36
A37: 19 | B37: Bob Johnson | C37: Frenda Brotherton | D37: DRAGONS LAIR | E37: PYC | F37: 0
A38: 20 | B38: Raymond Gorski | C38: Richard Stevenson | D38: GREAT BEAR | E38: BYC | F38: 0
A39: 22 | B39: Richard Johnson | C39: Scott Strandjord | D39: FRIENDLY TOO | E39: SYC | F39: 0
A40: 24 | B40: Cliff Casad | C40: Carole Casad | D40: TAURUS II | E40: MBYC | F40: 8.053
A41: 26 | B41: Mike Leedy | C41: Sharon Leedy | D41: SEA TRUST | E41: BYC | F41: 9.745
A42: 30 | B42: Robert Morrice | C42: Rob Morrice | D42: RAPPORT | E42: QCYC | F42: 0
A43: 31 | B43: Russ Oberg | C43: Dave Krows | D43: KATHRINE J. | E43: QCYC | F43: 0
A44: 32 | B44: Carl Weiss | C44: Al Reiche | D44: BLUE CRAB | E44: QCYC | F44: 0
A45: 33 | B45: Ron Rolstad | C45: Carolyn Rolstad | D45: BRASS TACKS | E45: QCYC | F45: 0
A46: 35 | B46: Bob Daugherty | C46: Kathy Daugherty | D46: LADYKAT | E46: PYC | F46: 0
A47: 38 | B47: John Burwell | C47: Nina Burwell | D47: GAVIA | E47: BYC | F47: 7.2 | H47: 1
A48: 39 | B48: John Murphey | C48: Ellen Murphey | D48: STURDY GAL | E48: MBYC | F48: 9.068 | H48: 4
A49: 39 | B49: John Murphey | C49: Ellen Murphey | D49: MADERA | E49: MBYC | F49: 9.13
A50: 40 | B50: John Barker | C50: Joan Barker | D50: SEA CHANGE | E50: TyYC | F50: 0
A51: 42 | B51: Don Floyd | C51: Jerry Kosse | D51: DANCIN BEAR | E51: BYC | F51: 0
A52: 44 | B52: Bob Wheeler | C52: unknown | D52: CAROUSEL | E52: BYC | F52: 0
A53: 45 | B53: Jeff Ewell | C53: Nancy Ewell | D53: RENEGADE | E53: QCYC | F53: 0
A54: 47 | B54: Ross Nooney | C54: Jess | D54: NOONER | E54: QCYC | F54: 0
A55: 48 | B55: Larrie Chmela | C55: Budwiser | D55: FOUR SEAS | E55: QCYC | F55: 0
A56: 49 | B56: Jerry Downer | C56: Shirley Downer | D56: NORWESTER | E56: GHYC | F56: 9.967
A57: 52 | B57: Tim DeCook | C57: DeCook, Carolyn | D57: SARATOGA | E57: QCYC | F57: 0
A58: 53 | B58: Sherri Kennamer | C58: Sally Sturart | D58: TARA | E58: BEYC | F58: 8.036
A59: 55 | B59: Phil Hardwick | C59: Gordon Roome | D59: HECTOR | E59: QCYC | F59: 0
A60: 56 | B60: Dick Johnson | C60: Bob Doty | D60: SPIRIT | E60: SYC | F60: 0
A61: 60 | B61: John Rosendale | C61: Keith Conrad | D61: MISTIC BLUE | E61: BYC | F61: 8.44
A62: 65 | B62: Randy Trott | C62: Marcia Trott | D62: RICOHET | F62: 0
A63: 68 | B63: Julian Keith | C63: Chris Julian | D63: CAPIVATE | F63: 0
A64: 71 | B64: Scott Grimm | C64: Peter Grimm | D64: GEE GEE | E64: QCYC | F64: 0
A65: 72 | B65: Bob Mihailov | C65: Pat O'Connor | D65: INSIDE PASSAGE | F65: 0
A66: 76 | B66: Steve Stearns | C66: Marcel Poliquin | D66: SEA LORY | F66: 0
A67: 78 | B67: Dale Armstrong | C67: Bud Lilly | D67: STOLEN MOMENTS | E67: BYC | F67: 9.57
A68: 79 | B68: Dave Brooks | C68: Doug Breckel | D68: ANDIAMO | F68: 0
A69: 81 | B69: Dave Miller | C69: Scott Miller | D69: SEA NYMPH II | E69: BYC | F69: 7.9 | H69: 1
A70: 84 | B70: Dave Bucy | C70: Dave Bucy | D70: BIDARKA III | E70: MBYC | F70: 9.6
A71: 100 | B71: Dean Lentgis | C71: Larry Chmela | D71: KALOS FILOS | E71: QCYC | F71: 9.27 | H71: 4
A72: 103 | B72: Owen Ritter | C72: Linda Ritter | D72: OUTBOUND | E72: BYC | F72: 7 | H72: 1
A73: 170 | B73: Bill Grady | C73: Todd Prodzinski | D73: ZORRO | E73: SYC | F73: 8.845
A74: 186 | B74: Jim Killingsworth | C74: Dan Schwartz/B.J. Killingsworth | D74: DAISY | E74: SYC | F74: 7.466
A75: 203 | B75: Don Larson | C75: Chris Larson | D75: TEWASI | E75: POYC | F75: 7.62 | H75: 1
A76: 216 | B76: Bob Yates | C76: Al Richie | D76: RHUMB LINE | E76: QCYC | F76: 9.309
A77: 224 | B77: Bruce Cullen | C77: Miriam Cullen | D77: CAROLINE | E77: MBYC | F77: 8.477 | H77: 2
A78: 224 | B78: Bruce Cullen | C78: Vince Firlotte | D78: FANTOME | E78: QCYC | F78: 10.169
A79: 229 | B79: Schell Harmon | C79: Av Harmon | D79: HALF SCHELL | E79: MBYC | F79: 8.82
A80: 372 | B80: Jim Anderson | C80: Linda Anderson | D80: FIDALGO | E80: GHYC | F80: 7.476 | H80: 1
A81: 391 | B81: John Carrosino | C81: Glynis Carrosino | D81: RENDEZVOUS | E81: MBYC | F81: 8.054
A82: 433 | B82: John Rogers | C82: Shirley Rogers | D82: NIRVANA | E82: QCYC | F82: 8.3 | H82: 2
A83: 464 | B83: Richard Kay | C83: Richard Kay | D83: MATANA | E83: QCYC | F83: 7.8
A84: 469 | B84: Bill Rumbold | C84: Lynne Rumbold | D84: SUNDANCE 2 | E84: BYC | F84: 8.304
A85: 479 | B85: Jeff Swan | C85: Claire Swan | D85: CLAIRE MARIE | E85: POYC | F85: 9.986 | H85: 5
A86: 502 | B86: Lynn Montgomery | C86: Larry Chmela | D86: LIKELY LADY | E86: QCYC | F86: 10.404
A87: 511 | B87: Fred Cole | C87: Dean Anderson | D87: DREAM TOO | E87: POYC | F87: 8.386
A88: 517 | B88: Bob Yates | C88: Al Reiche | D88: SEA DAWN | E88: QCYC | F88: 9.239
A89: 526 | B89: David Garland | C89: Shannon Underwood | D89: LUCKY DOG | E89: MBYC | F89: 9.47
A90: 531 | B90: Rob Rothe | C90: Ross Murry | D90: STARLIGHT EXPRESS | E90: SYC | F90: 9.863
A91: 533 | B91: Team Klett/Elbon/Cullen | C91: Elbon/Klett | D91: KLETTITAT | E91: QCYC | F91: 9.61 | H91: 5
A92: 533 | B92: Team Klett/Elbon | C92: Team Klett/Elbon | D92: PUKA KAI | E92: QCYC | F92: 8.948
A93: 544 | B93: Russ Oberg | C93: Sharon Benyon | D93: NORDIC LADY | E93: QCYC | F93: 8.52
A94: 549 | B94: Jim Vaupell | C94: SYC | D94: Panahce6 | E94: SYC | F94: 9.5 | H94: 3
A95: 554 | B95: Dick Spence | C95: Jan Spence | D95: KICHIGAI | E95: QCYC | F95: 8.44
A96: 584 | B96: Greg Abell | C96: Connie Abell | D96: SEABELL | E96: MBYC | F96: 9
A97: 588 | B97: Patrick Baker | C97: Phil Tenning | D97: CHOPPERS | E97: QCYC | F97: 8.845 | H97: 3
A98: 588 | B98: Terry Baker | C98: Carl Tenning | D98: CHOPPERS II | E98: QCYC | F98: 8.56
A99: 630 | B99: Bill Baxter | C99: Brad Graf | D99: MY LIZZY TOO | E99: SYC | F99: 11.215
A100: 632 | B100: Glenn Ryan | C100: Craig Kenyon | D100: AMNESIA | E100: MBYC | F100: 9.23 | H100: 4
A101: 634 | B101: Andy Gerde | C101: Carol Soffel | D101: WINDY I | E101: QCYC | F101: 7.75
A102: 636 | B102: Terynia Smith | C102: Bud Smith | D102: PATTY WAGON | E102: MBYC | F102: 9.549 | H102: 5
A103: 636 | B103: Vern Smith | C103: Terynia Smith | D103: PATTYWAGON | E103: MBYC | F103: 9.549
A104: 638 | B104: Loretta Pieretti | C104: Bill Sevarge | D104: SISSY DOLL | E104: MBYC | F104: 6.95 | H104: 1
A105: 671 | B105: Dick Bennison | C105: Eva Bennison | D105: WELL DONE | E105: TYC | F105: 9.508 | H105: 5
A106: 681 | B106: Chuck Silvernail | C106: Molly Ells | D106: SOLMAR | E106: BYC | F106: 7.793 | H106: 1
A107: 687 | B107: Arnie Gaillard | C107: Shultz/Vaupell | D107: BYE Y'ALL | E107: SYC | F107: 10.1
A108: 901 | B108: Phil Osterli | C108: Linda Osterli | D108: Nordic Spirit | E108: PYC | F108: 8.312 | H108: 2
A109: 902 | B109: Dick Hall | D109: Wine Down | E109: POYC
A110: 903 | B110: Ray Mazza | C110: Brent Parks | D110: Current Affair | E110: POYC | F110: 9.347 | H110: 4
A111: 904 | B111: George Bagley | C111: Ryan Bales | D111: Delta Dancer | E111: SYC
A112: 608 | B112: Bill Herman | C112: Bill Halley | D112: Summer Hours | E112: MBYC | F112: 8.73 | H112: 3
A113: 363 | B113: Jim Veres | C113: Paul Haack | D113: Vagabond | E113: MBYC | F113: 10.2 | H113: 1
A114: 905 | B114: Jim Mitchell | C114: Lisa Mitchell | D114: Penalty Box | E114: MBYC | F114: 7.25 | H114: 1
A115: 647 | B115: Dave Sokoloski | C115: Cameron Sokoloski | D115: Sunbear II | E115: MBYC | F115: 6.631 | H115: 1
A116: 999 | B116: Tim Subert | C116: Sandy Subert | D116: BEACHMUSIC | E116: RYC | F116: 8 | H116: 1
A117: 998 | B117: Val Watson | C117: Bob Watson | D117: PHANTOM | E117: Totem YC | F117: 8.2 | H117: 2
A118: 997 | B118: Barry Rutten | C118: Tom Larkin | D118: SALTY | E118: QCYC | F118: 7.477 | H118: 1
A119: 996 | B119: Jim Mitchell | C119: Lisa Mitchell | D119: PENALTY BOX | E119: MBYC | F119: 7.25 | H119: 1
A120: 995 | B120: Bill Herman | C120: Mike Olsson | D120: SUMMER HOURS | E120: MBYC
A121: 860 | B121: Dave Cordodor | C121: Jan | D121: QUICK CHARGE | E121: BYC | F121: 8.51 | H121: 3
A122: 990
A123: 925 | B123: Mike | C123: Jo | D123: OLD MAN IV | E123: USN | F123: 8.6 | H123: 3
A124: 926 | B124: Tom Dion | C124: Kelli | D124: JOINT VENTURE | E124: DIYC | F124: 7 | H124: 1
A125: 646 | B125: Tom Huddleston | C125: Dionne | D125: WHISTLER | E125: BYC | F125: 7 | H125: 1
A126: 694 | B126: Jim VanAntwerp | C126: OJ Potter | D126: SARAH B | E126: BYC | F126: 7 | H126: 1
A127: 527 | B127: Leo Longenecker | C127: Stacy | D127: REALITY CHECK | E127: BYC | F127: 8.375 | H127: 2
A128: 927 | B128: Ryan Lunceford | C128: Steve McNally | D128: PICKLE | E128: BYC | F128: 8.1 | H128: 2
A129: 560 | B129: Rob Bruins | C129: Steve Franklin | D129: OCEAN PEARL | E129: BYC | F129: 9.637 | H129: 5
A130: 617 | B130: Charles Billings | C130: Mike Conger | D130: NOBSKA | E130: BYC | F130: 7 | H130: 1
A131: 540 | B131: John Rosendale | C131: Keith Conrad | D131: MISTIC ISLE | E131: BYC | F131: 7.355 | H131: 1
A132: 662 | B132: Bob Lewis | C132: Paula Lewis | D132: LIBERTY | E132: BYC | F132: 7 | H132: 1
A133: 294 | B133: Ray Norton | C133: Crystal Norton | D133: IMPRESSIONS | E133: BYC | F133: 10.96 | H133: 5
A134: 458 | B134: John Burwell | C134: Kurt Nelson | D134: GAVIA | E134: BYC | F134: 7.278 | H134: 1
A135: 609 | B135: Gene Paxton | C135: Martha Paxton | D135: EVENTIDE | E135: BYC | F135: 7 | H135: 1
A136: 8101 | B136: Scott Miller | C136: Dave Miller | D136: SEA NYMPH II | E136: BYC | F136: 7.9
A137: 668 | B137: Ryan Lunceford | C137: Steve McNally | D137: PICKLE | E137: BYC | F137: 7.6 | H137: 1
A138: 292 | B138: Tom Ripley | D138: BELIEVE IT OR NOT | E138: SYC
A139: 579 | B139: Val Watson | C139: Bob Watson | D139: PHANTOM | E139: Totem YC | F139: 8.2 | H139: 2
A140: 890
A141: 704 | B141: Tim Subert | C141: Sandy Subert | D141: BEACH MUSIC | E141: RYC | F141: 8.5 | H141: 2
A142: 614 | B142: John Adair | C142: Dan Robinson | D142: PACIFIC STAR | E142: BYC | F142: 8.25 | H142: 2
A143: 705 | B143: Tom Ripley | C143: Keith Bystrom | D143: BELIEVE IT OR NOT | E143: SYC | F143: 7.52 | H143: 1
A144: 706 | B144: Willard Thomas | C144: Diane Thomas | D144: SEA LIFE | E144: TYC | F144: 9.552 | H144: 5
A145: 86 | B145: Chris Williamson | C145: Willow Williamson | D145: KNOT BEHAVIN | E145: TYC | F145: 9.4 | H145: 4
A146: 664 | B146: Tom Dion | C146: Kelli Dion | D146: JOINT VENTURE | E146: DIYC | F146: 7.75
A147: 707 | B147: Seth McNeil | C147: Ben Haak | D147: YANKEE CLIPPER | E147: Sea Scouts | F147: 7 | H147: 1
A148: 663 | B148: Larry O'Keefe | C148: Ted Burns | D148: MISS MIRANDA | E148: SYC | F148: 8.592 | H148: 3
A149: 605 | F149: 8.03 | H149: 2
A150: 675 | F150: 8.2 | H150: 2
A151: 166 | B151: Brent Reys
A152: 167 | B152: Bob Munn | C152: SYC | D152: Panache2 | E152: SYC | F152: 9.5 | H152: 3
A153: 168 | B153: Zach Johnson | C153: SYC | D153: Panache3 | E153: SYC | F153: 9.5 | H153: 3
A154: 171 | B154: Bill Grady | C154: SYC | D154: ZORRO2 | E154: SYC | F154: 8.785 | H154: 3
A155: 172 | B155: Roni Grady | C155: SYC | D155: ZORRO3 | E155: SYC | F155: 8.785 | H155: 3
A156: 173 | B156: Sara Prodzinski | C156: SYC | D156: ZORRO4 | E156: SYC | F156: 8.785 | H156: 3
A157: 174
A158: 1100 | B158: Dan DeGard | C158: JJ Johnson | D158: SAGA | E158: BYC | F158: 8 | H158: 1
A159: 370 | B159: Steve Orr | C159: Shannon Orr | D159: STELLA MARIS | E159: BYC | F159: 8.1 | H159: 2
A160: 589 | B160: Mark Sparks | C160: Elijah Sparks | D160: GOOD TIDINGS | E160: PYC | F160: 8.53 | H160: 3
A161: 1200 | B161: Mike McGillin | C161: Bob Lindal | D161: SUZY Q - B | E161: QCYC | F161: 10.04 | H161: 5
